{"text_format":"1","workbook":"xlsx","n_sheets":10,"sheets":["Instrumentos","Instrucciones","Servicios_Registros","Atributos activos información","Series y Subseries","SER_SUBSER","DEPENDENCIAS","PROCESOS","PROC","Doc Relacionada"],"not_rendered":{"charts":0,"images":0,"macros":1,"external_links":0,"defined_names":11,"comments":1,"pivot_tables":0},"unopened":[],"bounds":{"document_bytes":16777216,"sheet_cells":100000,"rows_first":2000,"rows_last":500,"rows_between":2000,"halvings":0,"cell_chars":16384,"cell_head_chars":4096},"cells_cut":0,"cells_raw":0,"read":"whole","date_system":"1900"}

{"sheet":"Instrumentos","index":0,"n_rows":6,"n_cols":2,"rows_kept":6,"cut":false,"hidden":false,"merged":[]}
[]
["COMPONENTE","DESCRIPCIÓN"]
["Elementos básicos","Elementos básicos compartidos en los tres instrumentos de gestión de la información (Registro de activos de información, Índice de información clasificada y reservada, y esquema de publicación e información)."]
["Activos de Información","Es el inventario de la información pública que el sujeto obligado genere, obtenga, adquiera, transforme o controle."]
["Indice de información clasificada y reservada","Es el inventario de la información pública generada, obtenida, adquirida o controlada por el sujeto obligado, y que su divulgación o entrega puede causar daño a determinados derechos, por tanto se califica como clasificada (datos privado de persona natural) o reservada (derechos o intereses públicos), por lo que no es publicable."]
["Esquema de publicación","Es el instrumento del que disponen los sujetos obligados para informar, de forma ordenada, a la ciudadanía, interesados y usuarios, sobre la información publicada y que publicará, y sobre los medios a través de los cuales se puede acceder a la misma."]

{"sheet":"Instrucciones","index":1,"n_rows":57,"n_cols":3,"rows_kept":57,"cut":false,"hidden":false,"merged":[[1,1,1,2],[2,1,2,2],[3,1,3,2],[4,1,4,2]]}
[]
[null,"Instrucciones para el diligenciamiento Componente de Atributos de Información"]
[null,"En el diligenciamiento del formato NO utilizar mayúsculas sostenidas, letra cursiva, doble espacios, cambiar los títulos, ni combinar celdas, lo anterior con el fin de facilitar la interoperabilidad de la información.\nAdicione tantas filas como requiera, de acuerdo al número de atributos que enumere."]
[null,"Información: Es un conjunto de datos organizados y procesados que tienen un significado, relevancia, propósito y contexto, que resulta útil para que los usuarios finales, ejecuten de manera apropiada su proceso de negocio y pueda tomar decisiones. La información puede servir como evidencia de las actuaciones de las entidades.\nUn documento, un listado de contratistas o funcionarios, la satisfacción de usuarios frente a un servicio, indicadores del entorno se consideran ejemplos de información y deben ser gestionados como tal."]
[null,"A continuación se describe de qué manera deben ser diligenciados los campos del formato y cuál es la información que debe suministrarse en cada uno de ellos. Por favor proceda a diligenciar los campos de acuerdo a lo descrito."]
[]
[null,"Campos por diligenciar","Descripción"]
[null,"1. Categoría de la información","Término con que se da a conocer el nombre o asunto de la información; este puede ser Documento técnico, Matriz, Requerimiento, Plan de Acción, Informe, Acta, Documento CONPES, entre otros."]
[null,"2.Código Atributos Información","Consecutivo o código interno asignado por la entidad al registro de información."]
[null,"3. Nombre de la información","Corresponde al nombre de los posibles registros que se identificaron en la fase de SERVICIOS. (campo \"15. Información que produce el servicio\" del catalogo de servicios)"]
[null,"4.  Descripción de la información","Por favor indique cuáles son los criterios específicos que se utilizan para la elaboración de los documentos (variables particulares). Indique cuales son específicamente las características que fueron tenidas en cuenta para el desarrollo de la información. Por ejemplo, si es un informe, nombrar las peculiaridades o rasgos que contiene, como periodicidad, número de casos, recursos, grupos, entre otros."]
[null,"5. Idioma","Corresponde al idioma en el que se registra la información."]
[null,"6. Medio de conservación y/o soporte","Marque con una X según corresponda, y describa el soporte.\nFísico: Papel - carpeta física, libros, manuscritos, informes impresos, expedientes impresos.\nSoporte análogo: microfilm, grabaciones, cintas fonográficas, cintas de video, rollos cinematográficos o fotografía entre otros. \nSoporte digital: Discos duros del computador, Disquetes, CD, DVD, memoria USB.\nElectrónico: Información generada, recibida, almacenada, y comunicada por medios electrónicos, que permanece en estos medios durante su ciclo de vida. Ejemplo Redes, correo electrónico, intranet, extranet.\nDescripción del soporte: Describir el soporte de almacenamiento de acuerdo al tipo de conservación seleccionado."]
[null,"7. Presentación de la información (Formato).","Identifica la forma, tamaño o modo en la que se presenta la información o se permite su visualización o consulta, tales como: hoja de cálculo, imagen, audio, video, documento de texto, etc."]
[null,"8. Código Servicio Información","Corresponde al código del servicio con que se asocia el atributo. Debe coincidir con el código registrado en el Catálogo de Servicios de acuerdo al campo \"1. Código de Servicio\"."]
[null,"9. Nivel Proceso","De acuerdo al mapa de procesos de la entidad, el cual se encuentra en Intranet. Elegir de la lista desplegable: Nivel Central, Alcaldía Local, Compartido."]
[null,"10. Tipo Proceso","De acuerdo al mapa de procesos de la entidad, el cual se encuentra en Intranet. Elegir de la lista desplegable: Apoyo, Estratégico, Misional, Evaluación y Mejora, Transversal."]
[null,"11. Nombre del proceso","De acuerdo al mapa de procesos de la entidad, el cual se encuentra en Intranet."]
[null,"12. Nombre del Procedimiento","El sistema visualizará solamente los procedimiento del proceso seleccionado anteriormente."]
[null,"13. Normatividad del procedimiento","Normas que reglamentan y regulan las actividades y funciones de su dependencia de acuerdo al proceso que pertenece, y que posiblemente se encuentren mencionadas en el procedimiento o documentación que las respalda."]
[null,"14. Código del Formato","En caso de utilizar algún formato para la recolección, identificación o clasificación de su información, debe mencionarlo en este campo. En caso de no estar codificado, responder \"NO TIENE REGISTRO ASOCIADO\""]
[null,"15. Tipo de Información","Datos no estructurados: No tiene un formato específico como una base de datos. Se almacenan en múltiples formatos como documentos PDF o Word, PowerPoint, correos electrónicos, ficheros multimedia de imagen JPEG, audio, MP3 o video.\nDatos semiestructurados: Tienen un formato que puede ser definido, pero no es fácil su comprensión por el usuario y requiere el uso de reglas complejas que ayudan a leer cada pieza de la información, ejemplo archivo de Word con etiquetas de metadatos, registros Web logs, el texto de las etiquetas de lenguajes XML y XTML.\nDatos estructurados: Tienen perfectamente definido la longitud, el formato y el tamaño de sus datos. Se almacenan en formato tabla, hojas de cálculo o en bases de datos relacionales."]
[null,"16. Tipo de origen","Marcar con una X según sea el caso:\nLa fuente de información proviene de la misma entidad (Interna) u otras entidades (externa).  "]
[null,"17. Cuenta con clasificación documental \nSI/NO","El documento relacionado ya tiene asignada serie y subserie. \n(SI): Continúa en el campo \"Nombre o título de la categoría de información - SERIE \".\n(NO): Continúa en el campo \"Justifique por qué NO cuenta con clasificación documental\" y luego \"Descripción de la categoría de información - SERIE\".  "]
[null,"18. Justifique por qué NO cuenta con clasificación documental","Justifique porque su documento NO cuenta con clasificación documental (serie y subserie); eligiendo una opción de la lista desplegable: La generación del documento es muy reciente o La \"TRD\" no se ajusta a la producción documental."]
[null,"19. Proponga una categoría de información.\n(Sólo se registra sí en la casilla 18 se respondió NO)","Definir brevemente de qué se trata la información. El diligenciamiento del campo se requiere para la asignación de una nueva serie y subserie. "]
[null,"20. Nombre o título de la categoría de información - SERIE ","Término general con que se da a conocer el nombre o asunto de la información. Seleccione de la lista desplegable, teniendo en cuenta que la fuente de información para diligenciar este campo, corresponde a la Tabla de Retención Documental - TDR vigente "]
[null,"21. Código SERIE ","Es asignado por el sistema de acuerdo a la selección del campo anterior. Tenga en cuenta que la fuente de información para diligenciar este campo, corresponde a la Tabla de Retención Documental - TDR vigente"]
[null,"22. Nombre Subserie","Nombre o título de la información - Subserie (Elementos básicos). Seleccione de la lista desplegable, teniendo en cuenta que la fuente de información para diligenciar este campo, corresponde a la Tabla de Retención Documental - TDR vigente "]
[null,"23. Código Subserie","Es asignado por el sistema de acuerdo a la selección del campo anterior. Tenga en cuenta que la fuente de información para diligenciar este campo, corresponde a la Tabla de Retención Documental - TDR vigente"]
[null,"24. Estado de la Información","Disponible: Información que está a disposición inmediata para ser consultada o solicitada. \nPero no se encuentra publicada.\nPublicada: Información de libre acceso por medios virtuales o en medios físicos dispuestos para tal fin. No es necesaria su solicitud."]
[null,"25. Fecha Generación de la Información","Identifica el momento de la creación de la información. Diligencie con la fecha de creación de la información en formato dd/mm/aaaa; el valor de la fecha deberá estar entre 01/01/2010 y la fecha del día de hoy."]
[null,"26. Dependencia Responsable de la producción de la información (Productor)","Nombre de la dependencia que creó la información y puede tomar decisión sobre ella."]
[null,"27. Código Dependencia (Productor)","Es asignado por el sistema de acuerdo a la selección del campo anterior."]
[null,"28. Dependencia responsable de la custodia de la información \n(Encargado)","Nombre de la dependencia encargada de la custodia o control de la información para efectos de permitir su acceso."]
[null,"29. Clasificación","Marque con una X según corresponda:\nPúblico: Información que un sujeto obligado genere, obtenga, adquiera o controle en su calidad de tal y pueda ser publicada o entregada por no causar daño a persona natural, jurídica o a intereses públicos.\nClasificado: Información exceptuada de acceso a la ciudadanía porque pertenece al ámbito propio, particular y privado o semiprivado de una personal natural o jurídica, por lo que su divulgación o entrega puede vulnerar su derecho a la vida, la salud, la seguridad, la integridad, la intimidad, y el secreto comercial, industrial o profesional. Ej. Historias laborales.\nReservado: Información exceptuada de acceso a la ciudadanía por daño a los intereses públicos, de acuerdo a las siguientes circunstancia:\na) La defensa y seguridad nacional. \nb) La seguridad pública. \nc) Las relaciones internacionales. \nd) La prevención, investigación y persecución de los delitos y las faltas disciplinarias, mientras que no se haga efectiva la medida de aseguramiento o se formule pliego de cargos, según el caso.\ne) El debido proceso y la igualdad de las partes en los procesos judiciales.\nf)  La administración efectiva de la justicia.\ng) Los derechos de la infancia y la adolescencia.\nh) La estabilidad macroeconómica y financiera del país. \ni) La salud pública."]
[null,"30. Objetivo Legítimo de la Excepción","De acuerdo a la clasificación de la información, elegir la excepción, dentro de las previstas en los artículos 18 y 19 de la Ley 1712 de 2014, así:\nEXCEPCIONES DE ACCESO A LA INFORMACIÓN\nArtículo 18 (Clasificada). Su publicación o entrega podrá ser rechazada o denegada de manera motivada y por escrito, siempre que el acceso pudiere causar un daño a los siguientes derechos:\na) El derecho de toda persona a la intimidad, bajo las limitaciones propias que impone la condición de servidor público, en concordancia con lo estipulado por el artículo 24 de la Ley 1437 de 2011.\nb) El derecho de toda persona a la vida, la salud o la seguridad.\nc) Los secretos comerciales, industriales y profesionales, así como los estipulados en el parágrafo del artículo 77 de la Ley 1474 de 2011.\nArtículo 19 (Reservada). Su publicación o entrega podrá ser rechazada o denegada de manera motivada y por escrito en las siguientes circunstancias, siempre que dicho acceso estuviere expresamente prohibido por una norma legal o constitucional:\na) La defensa y seguridad nacional.\nb) La seguridad pública;\nc) Las relaciones internacionales.\nd) La prevención, investigación y persecución de los delitos y las faltas disciplinarias, mientras que no se haga efectiva la medida de aseguramiento o se formule pliego de cargos, según el caso.\ne) El debido proceso y la igualdad de las partes en los procesos judiciales.\nf) La administración efectiva de la justicia.\ng) Los derechos de la infancia y la adolescencia.\nh) La estabilidad macroeconómica y financiera del país.\ni) La salud pública.\nParágrafo. Se exceptúan también los documentos que contengan las opiniones o puntos de vista que formen parte del proceso deliberativo de los servidores públicos."]
[null,"31. Fundamento Constitucional o Legal","El fundamento constitucional o legal que justifican la clasificación o la reserva, señalando expresamente la norma, artículo, inciso o párrafo que la ampara. Normatividad sugerida:\n*Constitución Política de Colombia Art. 15 \"Todas las personas tienen derecho a su intimidad personal y familiar y a su buen nombre, y el Estado debe respetarlos y hacerlos respetar. De igual modo, tienen derecho a conocer, actualizar y rectificar las informaciones que se hayan recogido sobre ellas en bancos de datos y en archivos de entidades públicas y privadas.\"\n*Constitución Política de Colombia Art. 74 \"Todas las personas tienen derecho a acceder a los documentos públicos salvo los casos que establezca la Ley. El secreto profesional es inviolable.”\n*Ley 1712 de 2014 TRANSPARENCIA Y DERECHO DE ACCESO A LA INFORMACION PUBLICA - Art. 18 y 19 - Excepciones de acceso a la información (Ver campo anterior) \"Objeto Legítimo de la excepción\".\n*Ley 1437 de 2011 CÓDIGO DE PROCEDIMIENTO ADMINISTRATIVO Y DE LO CONTENCIOSO ADMINISTRATIVO - Art. 24 - Informaciones y documentos reservados.\nSólo tendrán carácter reservado las informaciones y documentos expresamente sometidos a reserva por la Constitución o la ley y en especial:\n1.\tLos protegidos por el secreto comercial o industrial.\n2.\tLos relacionados con la defensa o seguridad nacionales.\n3.\tLos amparados por el secreto profesional.\n4.\tLos que involucren derechos a la privacidad e intimidad de las personas, incluidas en las hojas de vida, la historia laboral y los expedientes pensionales y demás registros de personal que obren en los archivos de las instituciones públicas o privadas, así como la historia clínica, salvo que sean solicitados por los propios interesados o por sus apoderados con facultad expresa para acceder a esa información.\n5.\tLos relativos a las condiciones financieras de las operaciones de crédito público y tesorería que realice la Nación, así como a los estudios técnicos de valoración de los activos de la Nación. Estos documentos e informaciones estarán sometidos a reserva por un término de seis (6) meses contados a partir de la realización de la respectiva operación.\n* Ley 1266 de 2008 HABEAS DATA - Art.3 - Definiciones. Para los efectos de la presente ley, se entiende por:  \ng) Dato semiprivado. Es semiprivado el dato que no tiene naturaleza íntima, reservada, ni pública y cuyo conocimiento o divulgación puede interesar no sólo a su titular sino a cierto sector o grupo de personas o a la sociedad en general, como el dato financiero y crediticio de actividad comercial o de servicios.\nh) Dato privado. Es el dato que por su naturaleza íntima o reservada sólo es relevante para el titular.\n*Ley 1581 de 2012 PROTECCION DE DATOS PERSONALES -Art. 5 - Datos sensibles. Para los propósitos de la presente ley, se entiende por datos sensibles aquellos que afectan la intimidad del Titular o cuyo uso indebido puede generar su discriminación, tales como aquellos que revelen el origen racial o étnico, la orientación política, las convicciones religiosas o filosóficas, la pertenencia a sindicatos, organizaciones sociales, de derechos humanos o que promueva intereses de cualquier partido político o que garanticen derechos y garantías de partidos políticos de oposición, así como los datos relativos a la salud, a la vida sexual y los datos biométricos.\n*Ley 1755 de 2015 NORMATIVA PARA PETICIONES, QUEJAS, RECLAMOS, SOLICITUDES Y DENUNCIAS (PQRSD)Art.24 - Informaciones y documentos reservados.\nSolo tendrán carácter reservado las informaciones y documentos expresamente sometidos a reserva por la Constitución Política o la ley, y en especial:\n1.\tLos relacionados con la defensa o seguridad nacionales.\n2.\tLas instrucciones en materia diplomática o sobre negociaciones reservadas.\n3.\tLos que involucren derechos a la privacidad e intimidad de las personas, incluidas en las hojas de vida, la historia laboral y los expedientes pensionales y demás registros de personal que obren en los archivos de las instituciones públicas o privadas, así como la historia clínica. \n4.\tLos relativos a las condiciones financieras de las operaciones de crédito público y tesorería que realice la nación, así como a los estudios técnicos de valoración de los activos de la nación. Estos documentos e informaciones estarán sometidos a reserva por un término de seis (6) meses contados a partir de la realización de la respectiva operación.\n5.\tLos datos referentes a la información financiera y comercial, en los términos de la Ley Estatutaria 1266 de 2008.\n6.\tLos protegidos por el secreto comercial o industrial, así como los planes estratégicos de las empresas públicas de servicios públicos.\n7.\tLos amparados por el secreto profesional.\n8.\tLos datos genéticos humanos.\nParágrafo. Para efecto de la solicitud de información de carácter reservado, enunciada en los numerales 3, 5, 6 y 7 solo podrá ser solicitada por el titular de la información, por sus apoderados o por personas autorizadas con facultad expresa para acceder a esa información.\n* Ley 1564 de 2012 CODIGO GENERAL DEL PROCESO Art.123 - Examen de los expedientes. Los expedientes solo podrán ser examinados:\n1.\tPor las partes, sus apoderados y los dependientes autorizados por estos de manera general y por escrito, sin que sea necesario auto que los reconozca, pero solo en relación con los asuntos en que aquellos intervengan.\n2.\tPor los abogados inscritos que no tengan la calidad de apoderados de las partes. Estos podrán examinar el expediente una vez se haya notificado a la parte demandada.\n3.\tPor los auxiliares de la justicia en los casos donde estén actuando, para lo de su cargo.\n4.\tPor los funcionarios públicos en razón de su cargo.\n5.\tPor las personas autorizadas por el juez con fines de docencia o de investigación científica.\n6.\tPor los directores y miembros de consultorio jurídico debidamente acreditados, en los casos donde actúen.\n\nHallándose pendiente alguna notificación que deba hacerse personalmente a una parte o a su apoderado, estos solo podrán examinar el expediente después de surtida la notificación.\n* Ley 734 de 2002 - CODIGO DISCIPLINARIO UNICO - Art. 95 - Reserva de la actuación disciplinaria. En el procedimiento ordinario las actuaciones disciplinarias serán reservadas hasta cuando se formule el pliego de cargos o la providencia que ordene el archivo definitivo, sin perjuicio de los derechos de los sujetos procesales. En el procedimiento especial ante el Procurador General de la Nación y en el procedimiento verbal, hasta la decisión de citar audiencia.\n* Ley 1010 de 2006 - ACOSO LABORAL - Art. 9 Medidas preventivas y correctivas del acoso laboral\n1.\tLos reglamentos de trabajo de las empresas e instituciones deberán prever mecanismos de prevención de las conductas de acoso laboral y establecer un procedimiento interno, confidencial, conciliatorio y efectivo para superar las que ocurran en el lugar de trabajo."]
[null,"32. Fundamento Jurídico de la excepción","Explicar o justificar el porqué la información debe ser clasificada o reservada bajo el fundamento constitucional o legal nombrado en la casilla anterior."]
[null,"33. Excepción Total o Parcial ","Según sea integral o parcial la calificación, las partes o secciones clasificadas o reservadas.\nIndicar si la totalidad del documento es clasificado o reservado o si solo una parte corresponde a esta calificación."]
[null,"34. Fecha de la Calificación","Fecha en que se calificó la información como reservada o clasificada (dd/mm/aa). Diligencie con la fecha de creación de la información en formato dd/mm/aaaa; el valor de la fecha deberá estar entre 01/01/2010 y la fecha del día de hoy."]
[null,"35. Plazo de la Clasificación o reserva","Tiempo que cobija la clasificación o reserva. La clasificación es ilimitada en años, la reserva solo puede durar como máximo por 15 años desde la creación del documento."]
[null,"36. Datos abiertos","Se coloca SI o No, según SI la fuente de información constituye dato abierto, recordemos que se define como información pública dispuesta en formatos que permiten su uso y reutilización bajo licencia abierta y sin restricciones legales para su aprovechamiento."]
[null,"37. Tipo de dato (Valor primario).","Este atributo sólo es utilizado si la respuesta en el atributo de Datos Abiertos es SI. Corresponde al tipo de clasificación temática."]
[null,"38. Cobertura geográfica","Este atributo sólo es utilizado si la respuesta en el atributo de Datos Abiertos es SI. Hace referencia a la zona o área geográfica a la que corresponden los datos. Por ejemplo, Cundinamarca, el municipio de Soacha, Bogotá, Región amazónica."]
[null," 39. ¿Puede definirse por localidad?","Elegir SI o NO de la lista desplegable."]
[null,"40. Indique la o las LOCALIDADES","Escribir el nombre la de la localidad en caso de haber respondido SI en el campo anterior."]
[null,"41. ¿Puede definirse por UPZ?","Elegir SI o NO de la lista desplegable."]
[null,"42.  ¿Puede definirse por Barrio?","Elegir SI o NO de la lista desplegable."]
[null,"43.  ¿Puede definirse por No. Predial?","Elegir SI o NO de la lista desplegable."]
[null,"44.  ¿Desagrega variables poblacionales?","Elegir SI o NO de la lista desplegable."]
[null,"45. Indique la o las variables que se desagregan\n(Ver Hoja \"poblacionales\")","En caso de haber respondido SI en el campo anterior, indicar las variables poblacionales en las que se desagregan de acuerdo con las listadas en la Hoja \"Poblacionales\" "]
[null,"46. Frecuencia de actualización de la información","Identifica la periodicidad o el segmento de tiempo en el que se debe actualizar la información, de acuerdo a su naturaleza y a la normativa aplicable. "]
[null,"47.  Fecha de corte última actualización","Indicar cual es la fecha en la que se realizó la última actualización de la información (dd/mm/aa)."]
[null,"48. Lugar de consulta (URL de publicación).","Si la respuesta en el atributo de Datos Abiertos es SI. Dirección electrónica del lugar donde se encuentra disponibles los datos abiertos y dispuestos para su descarga. "]
[null,"49. Cumple con las normas de Accesibilidad para discapacitados","La información se encuentra en formatos especiales alternativos que le facilite el acceso a las personas en situación de discapacidad. "]
[null,"50. Cumple con características para grupos Étnicos y/o culturales del país.","La información se encuentra en diversos idiomas, lenguas o formatos alternativos comprensibles por grupos étnicos y culturales del país."]

{"sheet":"Servicios_Registros","index":2,"n_rows":22,"n_cols":4,"rows_kept":22,"cut":false,"hidden":false,"merged":[[1,0,21,0],[1,1,4,1],[5,1,11,1],[12,1,14,1],[15,1,19,1],[20,1,21,1]]}
["DEPENDENCIA","SERVICIOS","POSIBLES REGISTROS","CATEGORÍA"]
["NOMBRE DE LA DEPENDENCIA",1,"1.1. "]
[null,null,"1.2. "]
[null,null,"1.3. "]
[null,null,"1.4. "]
[null,2,"2.1. "]
[null,null,"2.2. "]
[null,null,"2.3. "]
[null,null,"2.4. "]
[null,null,"2.5. "]
[null,null,"2.6. "]
[null,null,"2.7. "]
[null,3,"3.1. "]
[null,null,"3.2. "]
[null,null,"3.3. "]
[null,4,"4.1. "]
[null,null,"4.2. "]
[null,null,"4.3. "]
[null,null,"4.4. "]
[null,null,"4.5. "]
[null,5,"5.1. "]
[null,null,"5.2. "]

{"sheet":"Atributos activos información","index":3,"n_rows":213,"n_cols":59,"rows_kept":213,"cut":false,"hidden":false,"merged":[[3,11,3,30],[4,1,5,1],[4,28,5,28],[4,29,5,29],[4,30,5,30],[4,2,5,2],[4,11,5,11],[4,10,5,10],[4,14,5,14],[4,3,5,3],[4,4,5,4],[4,12,5,12],[4,13,5,13],[4,48,5,48],[4,49,5,49],[4,25,5,25],[4,23,5,23],[4,15,5,15],[4,31,5,31],[4,16,5,16],[4,17,5,17],[4,18,5,18],[4,19,5,19],[4,20,5,20],[4,24,5,24],[4,27,5,27],[4,26,5,26],[4,50,5,50],[4,51,5,51],[4,5,5,5],[4,47,5,47],[4,40,5,40],[4,41,5,41],[4,42,5,42],[4,43,5,43],[4,44,5,44],[4,45,5,45],[4,38,5,38],[4,39,5,39],[4,46,5,46],[4,34,5,34],[4,32,5,32],[4,33,5,33],[4,57,5,57],[4,58,5,58],[4,52,5,52],[4,53,5,53],[4,54,5,54],[4,55,5,55],[4,56,5,56]]}
[]
[]
[]
[null,"ELEMENTOS BASICOS DE LOS INSTRUMENTOS",null,null,null,null,null,null,null,null,null,"INVENTARIO DE ACTIVOS DE INFORMACION",null,null,null,null,null,null,null,null,null,null,null,null,null,null,null,null,null,null,null,"ÍNDICE DE INFORMACIÓN CLASIFICADA Y RESERVADA",null,null,null,null,null,null,null,null,null,null,null,null,"ESQUEMA DE PUBLICACIÓN DE INFORMACIÓN"]
[null,"1. Categoría de la información","2.Código Atributos Información","3. Nombre de la información","4. Descripción de la información","5. Idioma","6. Medio de conservación y/o soporte",null,null,null,"7. Presentación de la información (Formato).","8. Código Servicio Información","9. Nivel Proceso","10. Tipo Proceso","Código Proceso","11. Nombre del proceso","12. Documentación relacionada","Código del Procedimiento","13. Normatividad del procedimiento","14. Código del Formato","15. Tipo de Información","16. Tipo de Origen",null,"17. Cuenta con clasificación documental \nSI/NO","18. Justifique por qué NO cuenta con clasificación documental","19. Proponga una categoría de información.\n(Sólo se registra sí en la casilla 17 se respondió NO)","20. Nombre o título de la categoría de información - SERIE ","21. Código SERIE ","22. Nombre Subserie","23. Código Subserie","24. Estado de la Información","25. Fecha Generación de la Información","26. Dependencia Responsable de la producción de la información (Productor)","27. Código Dependencia (Productor)","28. Dependencia responsable de la custodia de la información \n(Encargado)","29. Clasificación",null,null,"30. Objetivo Legítimo de la Excepción","31. Fundamento Constitucional o Legal","32. Fundamento Jurídico de la excepción","33. Excepción Total o Parcial ","34. Fecha de la Calificación","35. Plazo de la Clasificación o reserva","36. Datos abiertos","37. Tipo de dato (Valor primario).","38. Cobertura geográfica"," 39. ¿Puede definirse por localidad?","40. Indique la o las LOCALIDADES","41.  ¿Puede definirse por UPZ?","42.  ¿Puede definirse por Barrio?","43.  ¿Puede definirse por No. Predial?","44.  ¿Desagrega variables poblacionales?","45. Indique la o las variables que se desagregan\n\n(Ver Hoja \"poblacionales\")","46. Frecuencia de actualización de la información","47.  Fecha de corte última actualización","48. Lugar de consulta (URL de publicación).","49. Cumple con las normas de Accesibilidad para discapacitados","50. Cumple con características para grupos Étnicos y/o culturales del pais."]
[null,null,null,null,null,null,"Físico","Análogo o Digital","Electrónico","Descripción del soporte",null,null,null,null,null,null,null,null,null,null,null,"Interno","Externo",null,null,null,null,null,null,null,null,null,null,null,null,"Público","Clasificado","Reservado"]
[]
[]
[null,null,null,null,null,null,null,null,null,null,null,null,null,null,{"$f":"IFERROR(VLOOKUP($P9,TProcesos[#All],2,0),\" \")","v":" "},null,null,{"$f":"IFERROR(VLOOKUP($Q9,TDocRelacionados[#All],2,0),\" \")","v":" "},null,null,null,null,null,null,null,null,null,{"$f":"IFERROR(INDEX(CodSerieRango,MATCH($AA9,NomSeries,0),1),\" \")","v":" "},null,{"$f":"IFERROR(INDEX(CodSS[],MATCH($AC9,NomSS[],0),1),\" \")","v":" "},null,null,null," "]
[null,null,null,null,null,null,null,null,null,null,null,null,null,null,{"$f":"IFERROR(VLOOKUP($P10,TProcesos[#All],2,0),\" \")","v":" "},null,null,{"$f":"IFERROR(VLOOKUP($Q10,TDocRelacionados[#All],2,0),\" \")","v":" "},null,null,null,null,null,null,null,null,null," ",null,{"$f":"IFERROR(INDEX(CodSS[],MATCH($AC10,NomSS[],0),1),\" \")","v":" "}]
[null,null,null,null,null,null,null,null,null,null,null,null,null,null,{"$f":"IFERROR(VLOOKUP($P11,TProcesos[#All],2,0),\" \")","v":" "},null,null,{"$f":"IFERROR(VLOOKUP($Q11,TDocRelacionados[#All],2,0),\" \")","v":" "},null,null,null,null,null,null,null,null,null," ",null,{"$f":"IFERROR(INDEX(CodSS[],MATCH($AC11,NomSS[],0),1),\" \")","v":" "},null,null,null," "]
[null,null,null,null,null,null,null,null,null,null,null,null,null,null,{"$f":"IFERROR(VLOOKUP($P12,TProcesos[#All],2,0),\" \")","v":" "},null,null,{"$f":"IFERROR(VLOOKUP($Q12,TDocRelacionados[#All],2,0),\" \")","v":" "},null,null,null,null,null,null,null,null,null," ",null,{"$f":"IFERROR(INDEX(CodSS[],MATCH($AC12,NomSS[],0),1),\" \")","v":" "},null,null,null," "]
[null,null,null,null,null,null,null,null,null,null,null,null,null,null,{"$f":"IFERROR(VLOOKUP($P13,TProcesos[#All],2,0),\" \")","v":" "},null,null,{"$f":"IFERROR(VLOOKUP($Q13,TDocRelacionados[#All],2,0),\" \")","v":" "},null,null,null,null,null,null,null,null,null," ",null,{"$f":"IFERROR(INDEX(CodSS[],MATCH($AC13,NomSS[],0),1),\" \")","v":" "},null,null,null," "]
[null,null,null,null,null,null,null,null,null,null,null,null,null,null,{"$f":"IFERROR(VLOOKUP($P14,TProcesos[#All],2,0),\" \")","v":" "},null,null,{"$f":"IFERROR(VLOOKUP($Q14,TDocRelacionados[#All],2,0),\" \")","v":" "},null,null,null,null,null,null,null,null,null," ",null,{"$f":"IFERROR(INDEX(CodSS[],MATCH($AC14,NomSS[],0),1),\" \")","v":" "},null,null,null," "]
[null,null,null,null,null,null,null,null,null,null,null,null,null,null,{"$f":"IFERROR(VLOOKUP($P15,TProcesos[#All],2,0),\" \")","v":" "},null,null,{"$f":"IFERROR(VLOOKUP($Q15,TDocRelacionados[#All],2,0),\" \")","v":" "},null,null,null,null,null,null,null,null,null," ",null,{"$f":"IFERROR(INDEX(CodSS[],MATCH($AC15,NomSS[],0),1),\" \")","v":" "},null,null,null," "]
[null,null,null,null,null,null,null,null,null,null,null,null,null,null,{"$f":"IFERROR(VLOOKUP($P16,TProcesos[#All],2,0),\" \")","v":" "},null,null,{"$f":"IFERROR(VLOOKUP($Q16,TDocRelacionados[#All],2,0),\" \")","v":" "},null,null,null,null,null,null,null,null,null," ",null,{"$f":"IFERROR(INDEX(CodSS[],MATCH($AC16,NomSS[],0),1),\" \")","v":" "},null,null,null," "]
[null,null,null,null,null,null,null,null,null,null,null,null,null,null,null,null,null,{"$f":"IFERROR(VLOOKUP($Q17,TDocRelacionados[#All],2,0),\" \")","v":" "},null,null,null,null,null,null,null,null,null," ",null,{"$f":"IFERROR(INDEX(CodSS[],MATCH($AC17,NomSS[],0),1),\" \")","v":" "},null,null,null," "]
[null,null,null,null,null,null,null,null,null,null,null,null,null,null,{"$f":"IFERROR(VLOOKUP($P18,TProcesos[#All],2,0),\" \")","v":" "},null,null,{"$f":"IFERROR(VLOOKUP($Q18,TDocRelacionados[#All],2,0),\" \")","v":" "},null,null,null,null,null,null,null,null,null," ",null,{"$f":"IFERROR(INDEX(CodSS[],MATCH($AC18,NomSS[],0),1),\" \")","v":" "},null,null,null," "]
[null,null,null,null,null,null,null,null,null,null,null,null,null,null,{"$f":"IFERROR(VLOOKUP($P19,TProcesos[#All],2,0),\" \")","v":" "},null,null,{"$f":"IFERROR(VLOOKUP($Q19,TDocRelacionados[#All],2,0),\" \")","v":" "},null,null,null,null,null,null,null,null,null," ",null,{"$f":"IFERROR(INDEX(CodSS[],MATCH($AC19,NomSS[],0),1),\" \")","v":" "},null,null,null," "]
[null,null,null,null,null,null,null,null,null,null,null,null,null,null,{"$f":"IFERROR(VLOOKUP($P20,TProcesos[#All],2,0),\" \")","v":" "},null,null,{"$f":"IFERROR(VLOOKUP($Q20,TDocRelacionados[#All],2,0),\" \")","v":" "},null,null,null,null,null,null,null,null,null," ",null,{"$f":"IFERROR(INDEX(CodSS[],MATCH($AC20,NomSS[],0),1),\" \")","v":" "},null,null,null," "]
[null,null,null,null,null,null,null,null,null,null,null,null,null,null,{"$f":"IFERROR(VLOOKUP($P21,TProcesos[#All],2,0),\" \")","v":" "},null,null,{"$f":"IFERROR(VLOOKUP($Q21,TDocRelacionados[#All],2,0),\" \")","v":" "},null,null,null,null,null,null,null,null,null," ",null,{"$f":"IFERROR(INDEX(CodSS[],MATCH($AC21,NomSS[],0),1),\" \")","v":" "},null,null,null," "]
[null,null,null,null,null,null,null,null,null,null,null,null,null,null,{"$f":"IFERROR(VLOOKUP($P22,TProcesos[#All],2,0),\" \")","v":" "},null,null,{"$f":"IFERROR(VLOOKUP($Q22,TDocRelacionados[#All],2,0),\" \")","v":" "},null,null,null,null,null,null,null,null,null," ",null,{"$f":"IFERROR(INDEX(CodSS[],MATCH($AC22,NomSS[],0),1),\" \")","v":" "},null,null,null," "]
[null,null,null,null,null,null,null,null,null,null,null,null,null,null,{"$f":"IFERROR(VLOOKUP($P23,TProcesos[#All],2,0),\" \")","v":" "},null,null,{"$f":"IFERROR(VLOOKUP($Q23,TDocRelacionados[#All],2,0),\" \")","v":" "},null,null,null,null,null,null,null,null,null," ",null,{"$f":"IFERROR(INDEX(CodSS[],MATCH($AC23,NomSS[],0),1),\" \")","v":" "},null,null,null," "]
[null,null,null,null,null,null,null,null,null,null,null,null,null,null,{"$f":"IFERROR(VLOOKUP($P24,TProcesos[#All],2,0),\" \")","v":" "},null,null,{"$f":"IFERROR(VLOOKUP($Q24,TDocRelacionados[#All],2,0),\" \")","v":" "},null,null,null,null,null,null,null,null,null," ",null,{"$f":"IFERROR(INDEX(CodSS[],MATCH($AC24,NomSS[],0),1),\" \")","v":" "},null,null,null," "]
[null,null,null,null,null,null,null,null,null,null,null,null,null,null,{"$f":"IFERROR(VLOOKUP($P25,TProcesos[#All],2,0),\" \")","v":" "},null,null,{"$f":"IFERROR(VLOOKUP($Q25,TDocRelacionados[#All],2,0),\" \")","v":" "},null,null,null,null,null,null,null,null,null," ",null,{"$f":"IFERROR(INDEX(CodSS[],MATCH($AC25,NomSS[],0),1),\" \")","v":" "},null,null,null," "]
[null,null,null,null,null,null,null,null,null,null,null,null,null,null,{"$f":"IFERROR(VLOOKUP($P26,TProcesos[#All],2,0),\" \")","v":" "},null,null,{"$f":"IFERROR(VLOOKUP($Q26,TDocRelacionados[#All],2,0),\" \")","v":" "},null,null,null,null,null,null,null,null,null," ",null,{"$f":"IFERROR(INDEX(CodSS[],MATCH($AC26,NomSS[],0),1),\" \")","v":" "},null,null,null," "]
[null,null,null,null,null,null,null,null,null,null,null,null,null,null,{"$f":"IFERROR(VLOOKUP($P27,TProcesos[#All],2,0),\" \")","v":" "},null,null,{"$f":"IFERROR(VLOOKUP($Q27,TDocRelacionados[#All],2,0),\" \")","v":" "},null,null,null,null,null,null,null,null,null," ",null,{"$f":"IFERROR(INDEX(CodSS[],MATCH($AC27,NomSS[],0),1),\" \")","v":" "},null,null,null," "]
[null,null,null,null,null,null,null,null,null,null,null,null,null,null,{"$f":"IFERROR(VLOOKUP($P28,TProcesos[#All],2,0),\" \")","v":" "},null,null,{"$f":"IFERROR(VLOOKUP($Q28,TDocRelacionados[#All],2,0),\" \")","v":" "},null,null,null,null,null,null,null,null,null," ",null,{"$f":"IFERROR(INDEX(CodSS[],MATCH($AC28,NomSS[],0),1),\" \")","v":" "},null,null,null," "]
[null,null,null,null,null,null,null,null,null,null,null,null,null,null,{"$f":"IFERROR(VLOOKUP($P29,TProcesos[#All],2,0),\" \")","v":" "},null,null,{"$f":"IFERROR(VLOOKUP($Q29,TDocRelacionados[#All],2,0),\" \")","v":" "},null,null,null,null,null,null,null,null,null," ",null,{"$f":"IFERROR(INDEX(CodSS[],MATCH($AC29,NomSS[],0),1),\" \")","v":" "},null,null,null," "]
[null,null,null,null,null,null,null,null,null,null,null,null,null,null,{"$f":"IFERROR(VLOOKUP($P30,TProcesos[#All],2,0),\" \")","v":" "},null,null,{"$f":"IFERROR(VLOOKUP($Q30,TDocRelacionados[#All],2,0),\" \")","v":" "},null,null,null,null,null,null,null,null,null," ",null,{"$f":"IFERROR(INDEX(CodSS[],MATCH($AC30,NomSS[],0),1),\" \")","v":" "},null,null,null," "]
[null,null,null,null,null,null,null,null,null,null,null,null,null,null,{"$f":"IFERROR(VLOOKUP($P31,TProcesos[#All],2,0),\" \")","v":" "},null,null,{"$f":"IFERROR(VLOOKUP($Q31,TDocRelacionados[#All],2,0),\" \")","v":" "},null,null,null,null,null,null,null,null,null," ",null,{"$f":"IFERROR(INDEX(CodSS[],MATCH($AC31,NomSS[],0),1),\" \")","v":" "},null,null,null," "]
[null,null,null,null,null,null,null,null,null,null,null,null,null,null,{"$f":"IFERROR(VLOOKUP($P32,TProcesos[#All],2,0),\" \")","v":" "},null,null,{"$f":"IFERROR(VLOOKUP($Q32,TDocRelacionados[#All],2,0),\" \")","v":" "},null,null,null,null,null,null,null,null,null," ",null,{"$f":"IFERROR(INDEX(CodSS[],MATCH($AC32,NomSS[],0),1),\" \")","v":" "},null,null,null," "]
[null,null,null,null,null,null,null,null,null,null,null,null,null,null,{"$f":"IFERROR(VLOOKUP($P33,TProcesos[#All],2,0),\" \")","v":" "},null,null,{"$f":"IFERROR(VLOOKUP($Q33,TDocRelacionados[#All],2,0),\" \")","v":" "},null,null,null,null,null,null,null,null,null," ",null,{"$f":"IFERROR(INDEX(CodSS[],MATCH($AC33,NomSS[],0),1),\" \")","v":" "},null,null,null," "]
[null,null,null,null,null,null,null,null,null,null,null,null,null,null,{"$f":"IFERROR(VLOOKUP($P34,TProcesos[#All],2,0),\" \")","v":" "},null,null,{"$f":"IFERROR(VLOOKUP($Q34,TDocRelacionados[#All],2,0),\" \")","v":" "},null,null,null,null,null,null,null,null,null," ",null,{"$f":"IFERROR(INDEX(CodSS[],MATCH($AC34,NomSS[],0),1),\" \")","v":" "},null,null,null," "]
[null,null,null,null,null,null,null,null,null,null,null,null,null,null,{"$f":"IFERROR(VLOOKUP($P35,TProcesos[#All],2,0),\" \")","v":" "},null,null,{"$f":"IFERROR(VLOOKUP($Q35,TDocRelacionados[#All],2,0),\" \")","v":" "},null,null,null,null,null,null,null,null,null," ",null,{"$f":"IFERROR(INDEX(CodSS[],MATCH($AC35,NomSS[],0),1),\" \")","v":" "},null,null,null," "]
[null,null,null,null,null,null,null,null,null,null,null,null,null,null,{"$f":"IFERROR(VLOOKUP($P36,TProcesos[#All],2,0),\" \")","v":" "},null,null,{"$f":"IFERROR(VLOOKUP($Q36,TDocRelacionados[#All],2,0),\" \")","v":" "},null,null,null,null,null,null,null,null,null," ",null,{"$f":"IFERROR(INDEX(CodSS[],MATCH($AC36,NomSS[],0),1),\" \")","v":" "},null,null,null," "]
[null,null,null,null,null,null,null,null,null,null,null,null,null,null,{"$f":"IFERROR(VLOOKUP($P37,TProcesos[#All],2,0),\" \")","v":" "},null,null,{"$f":"IFERROR(VLOOKUP($Q37,TDocRelacionados[#All],2,0),\" \")","v":" "},null,null,null,null,null,null,null,null,null," ",null,{"$f":"IFERROR(INDEX(CodSS[],MATCH($AC37,NomSS[],0),1),\" \")","v":" "},null,null,null," "]
[null,null,null,null,null,null,null,null,null,null,null,null,null,null,{"$f":"IFERROR(VLOOKUP($P38,TProcesos[#All],2,0),\" \")","v":" "},null,null,{"$f":"IFERROR(VLOOKUP($Q38,TDocRelacionados[#All],2,0),\" \")","v":" "},null,null,null,null,null,null,null,null,null," ",null,{"$f":"IFERROR(INDEX(CodSS[],MATCH($AC38,NomSS[],0),1),\" \")","v":" "},null,null,null," "]
[null,null,null,null,null,null,null,null,null,null,null,null,null,null,{"$f":"IFERROR(VLOOKUP($P39,TProcesos[#All],2,0),\" \")","v":" "},null,null,{"$f":"IFERROR(VLOOKUP($Q39,TDocRelacionados[#All],2,0),\" \")","v":" "},null,null,null,null,null,null,null,null,null," ",null,{"$f":"IFERROR(INDEX(CodSS[],MATCH($AC39,NomSS[],0),1),\" \")","v":" "},null,null,null," "]
[null,null,null,null,null,null,null,null,null,null,null,null,null,null,{"$f":"IFERROR(VLOOKUP($P40,TProcesos[#All],2,0),\" \")","v":" "},null,null,{"$f":"IFERROR(VLOOKUP($Q40,TDocRelacionados[#All],2,0),\" \")","v":" "},null,null,null,null,null,null,null,null,null," ",null,{"$f":"IFERROR(INDEX(CodSS[],MATCH($AC40,NomSS[],0),1),\" \")","v":" "},null,null,null," "]
[null,null,null,null,null,null,null,null,null,null,null,null,null,null,{"$f":"IFERROR(VLOOKUP($P41,TProcesos[#All],2,0),\" \")","v":" "},null,null,{"$f":"IFERROR(VLOOKUP($Q41,TDocRelacionados[#All],2,0),\" \")","v":" "},null,null,null,null,null,null,null,null,null," ",null,{"$f":"IFERROR(INDEX(CodSS[],MATCH($AC41,NomSS[],0),1),\" \")","v":" "},null,null,null," "]
[null,null,null,null,null,null,null,null,null,null,null,null,null,null,{"$f":"IFERROR(VLOOKUP($P42,TProcesos[#All],2,0),\" \")","v":" "},null,null,{"$f":"IFERROR(VLOOKUP($Q42,TDocRelacionados[#All],2,0),\" \")","v":" "},null,null,null,null,null,null,null,null,null," ",null,{"$f":"IFERROR(INDEX(CodSS[],MATCH($AC42,NomSS[],0),1),\" \")","v":" "},null,null,null," "]
[null,null,null,null,null,null,null,null,null,null,null,null,null,null,{"$f":"IFERROR(VLOOKUP($P43,TProcesos[#All],2,0),\" \")","v":" "},null,null,{"$f":"IFERROR(VLOOKUP($Q43,TDocRelacionados[#All],2,0),\" \")","v":" "},null,null,null,null,null,null,null,null,null," ",null,{"$f":"IFERROR(INDEX(CodSS[],MATCH($AC43,NomSS[],0),1),\" \")","v":" "},null,null,null," "]
[null,null,null,null,null,null,null,null,null,null,null,null,null,null,{"$f":"IFERROR(VLOOKUP($P44,TProcesos[#All],2,0),\" \")","v":" "},null,null,{"$f":"IFERROR(VLOOKUP($Q44,TDocRelacionados[#All],2,0),\" \")","v":" "},null,null,null,null,null,null,null,null,null," ",null,{"$f":"IFERROR(INDEX(CodSS[],MATCH($AC44,NomSS[],0),1),\" \")","v":" "},null,null,null," "]
[null,null,null,null,null,null,null,null,null,null,null,null,null,null,{"$f":"IFERROR(VLOOKUP($P45,TProcesos[#All],2,0),\" \")","v":" "},null,null,{"$f":"IFERROR(VLOOKUP($Q45,TDocRelacionados[#All],2,0),\" \")","v":" "},null,null,null,null,null,null,null,null,null," ",null,{"$f":"IFERROR(INDEX(CodSS[],MATCH($AC45,NomSS[],0),1),\" \")","v":" "},null,null,null," "]
[null,null,null,null,null,null,null,null,null,null,null,null,null,null,{"$f":"IFERROR(VLOOKUP($P46,TProcesos[#All],2,0),\" \")","v":" "},null,null,{"$f":"IFERROR(VLOOKUP($Q46,TDocRelacionados[#All],2,0),\" \")","v":" "},null,null,null,null,null,null,null,null,null," ",null,{"$f":"IFERROR(INDEX(CodSS[],MATCH($AC46,NomSS[],0),1),\" \")","v":" "},null,null,null," "]
[null,null,null,null,null,null,null,null,null,null,null,null,null,null,{"$f":"IFERROR(VLOOKUP($P47,TProcesos[#All],2,0),\" \")","v":" "},null,null,{"$f":"IFERROR(VLOOKUP($Q47,TDocRelacionados[#All],2,0),\" \")","v":" "},null,null,null,null,null,null,null,null,null," ",null,{"$f":"IFERROR(INDEX(CodSS[],MATCH($AC47,NomSS[],0),1),\" \")","v":" "},null,null,null," "]
[null,null,null,null,null,null,null,null,null,null,null,null,null,null,{"$f":"IFERROR(VLOOKUP($P48,TProcesos[#All],2,0),\" \")","v":" "},null,null,{"$f":"IFERROR(VLOOKUP($Q48,TDocRelacionados[#All],2,0),\" \")","v":" "},null,null,null,null,null,null,null,null,null," ",null,{"$f":"IFERROR(INDEX(CodSS[],MATCH($AC48,NomSS[],0),1),\" \")","v":" "},null,null,null," "]
[null,null,null,null,null,null,null,null,null,null,null,null,null,null,{"$f":"IFERROR(VLOOKUP($P49,TProcesos[#All],2,0),\" \")","v":" "},null,null,{"$f":"IFERROR(VLOOKUP($Q49,TDocRelacionados[#All],2,0),\" \")","v":" "},null,null,null,null,null,null,null,null,null," ",null,{"$f":"IFERROR(INDEX(CodSS[],MATCH($AC49,NomSS[],0),1),\" \")","v":" "},null,null,null," "]
[null,null,null,null,null,null,null,null,null,null,null,null,null,null,{"$f":"IFERROR(VLOOKUP($P50,TProcesos[#All],2,0),\" \")","v":" "},null,null,{"$f":"IFERROR(VLOOKUP($Q50,TDocRelacionados[#All],2,0),\" \")","v":" "},null,null,null,null,null,null,null,null,null," ",null,{"$f":"IFERROR(INDEX(CodSS[],MATCH($AC50,NomSS[],0),1),\" \")","v":" "},null,null,null," "]
[null,null,null,null,null,null,null,null,null,null,null,null,null,null,{"$f":"IFERROR(VLOOKUP($P51,TProcesos[#All],2,0),\" \")","v":" "},null,null,{"$f":"IFERROR(VLOOKUP($Q51,TDocRelacionados[#All],2,0),\" \")","v":" "},null,null,null,null,null,null,null,null,null," ",null,{"$f":"IFERROR(INDEX(CodSS[],MATCH($AC51,NomSS[],0),1),\" \")","v":" "},null,null,null," "]
[null,null,null,null,null,null,null,null,null,null,null,null,null,null,{"$f":"IFERROR(VLOOKUP($P52,TProcesos[#All],2,0),\" \")","v":" "},null,null,{"$f":"IFERROR(VLOOKUP($Q52,TDocRelacionados[#All],2,0),\" \")","v":" "},null,null,null,null,null,null,null,null,null," ",null,{"$f":"IFERROR(INDEX(CodSS[],MATCH($AC52,NomSS[],0),1),\" \")","v":" "},null,null,null," "]
[null,null,null,null,null,null,null,null,null,null,null,null,null,null,{"$f":"IFERROR(VLOOKUP($P53,TProcesos[#All],2,0),\" \")","v":" "},null,null,{"$f":"IFERROR(VLOOKUP($Q53,TDocRelacionados[#All],2,0),\" \")","v":" "},null,null,null,null,null,null,null,null,null," ",null,{"$f":"IFERROR(INDEX(CodSS[],MATCH($AC53,NomSS[],0),1),\" \")","v":" "},null,null,null," "]
[null,null,null,null,null,null,null,null,null,null,null,null,null,null,{"$f":"IFERROR(VLOOKUP($P54,TProcesos[#All],2,0),\" \")","v":" "},null,null,{"$f":"IFERROR(VLOOKUP($Q54,TDocRelacionados[#All],2,0),\" \")","v":" "},null,null,null,null,null,null,null,null,null," ",null,{"$f":"IFERROR(INDEX(CodSS[],MATCH($AC54,NomSS[],0),1),\" \")","v":" "},null,null,null," "]
[null,null,null,null,null,null,null,null,null,null,null,null,null,null,{"$f":"IFERROR(VLOOKUP($P55,TProcesos[#All],2,0),\" \")","v":" "},null,null,{"$f":"IFERROR(VLOOKUP($Q55,TDocRelacionados[#All],2,0),\" \")","v":" "},null,null,null,null,null,null,null,null,null," ",null,{"$f":"IFERROR(INDEX(CodSS[],MATCH($AC55,NomSS[],0),1),\" \")","v":" "},null,null,null," "]
[null,null,null,null,null,null,null,null,null,null,null,null,null,null,{"$f":"IFERROR(VLOOKUP($P56,TProcesos[#All],2,0),\" \")","v":" "},null,null,{"$f":"IFERROR(VLOOKUP($Q56,TDocRelacionados[#All],2,0),\" \")","v":" "},null,null,null,null,null,null,null,null,null," ",null,{"$f":"IFERROR(INDEX(CodSS[],MATCH($AC56,NomSS[],0),1),\" \")","v":" "},null,null,null," "]
[null,null,null,null,null,null,null,null,null,null,null,null,null,null,{"$f":"IFERROR(VLOOKUP($P57,TProcesos[#All],2,0),\" \")","v":" "},null,null,{"$f":"IFERROR(VLOOKUP($Q57,TDocRelacionados[#All],2,0),\" \")","v":" "},null,null,null,null,null,null,null,null,null," ",null,{"$f":"IFERROR(INDEX(CodSS[],MATCH($AC57,NomSS[],0),1),\" \")","v":" "},null,null,null," "]
[null,null,null,null,null,null,null,null,null,null,null,null,null,null,{"$f":"IFERROR(VLOOKUP($P58,TProcesos[#All],2,0),\" \")","v":" "},null,null,{"$f":"IFERROR(VLOOKUP($Q58,TDocRelacionados[#All],2,0),\" \")","v":" "},null,null,null,null,null,null,null,null,null," ",null,{"$f":"IFERROR(INDEX(CodSS[],MATCH($AC58,NomSS[],0),1),\" \")","v":" "},null,null,null," "]
[null,null,null,null,null,null,null,null,null,null,null,null,null,null,{"$f":"IFERROR(VLOOKUP($P59,TProcesos[#All],2,0),\" \")","v":" "},null,null,{"$f":"IFERROR(VLOOKUP($Q59,TDocRelacionados[#All],2,0),\" \")","v":" "},null,null,null,null,null,null,null,null,null," ",null,{"$f":"IFERROR(INDEX(CodSS[],MATCH($AC59,NomSS[],0),1),\" \")","v":" "},null,null,null," "]
[null,null,null,null,null,null,null,null,null,null,null,null,null,null,{"$f":"IFERROR(VLOOKUP($P60,TProcesos[#All],2,0),\" \")","v":" "},null,null,{"$f":"IFERROR(VLOOKUP($Q60,TDocRelacionados[#All],2,0),\" \")","v":" "},null,null,null,null,null,null,null,null,null," ",null,{"$f":"IFERROR(INDEX(CodSS[],MATCH($AC60,NomSS[],0),1),\" \")","v":" "},null,null,null," "]
[null,null,null,null,null,null,null,null,null,null,null,null,null,null,{"$f":"IFERROR(VLOOKUP($P61,TProcesos[#All],2,0),\" \")","v":" "},null,null,{"$f":"IFERROR(VLOOKUP($Q61,TDocRelacionados[#All],2,0),\" \")","v":" "},null,null,null,null,null,null,null,null,null," ",null,{"$f":"IFERROR(INDEX(CodSS[],MATCH($AC61,NomSS[],0),1),\" \")","v":" "},null,null,null," "]
[null,null,null,null,null,null,null,null,null,null,null,null,null,null,{"$f":"IFERROR(VLOOKUP($P62,TProcesos[#All],2,0),\" \")","v":" "},null,null,{"$f":"IFERROR(VLOOKUP($Q62,TDocRelacionados[#All],2,0),\" \")","v":" "},null,null,null,null,null,null,null,null,null," ",null,{"$f":"IFERROR(INDEX(CodSS[],MATCH($AC62,NomSS[],0),1),\" \")","v":" "},null,null,null," "]
[null,null,null,null,null,null,null,null,null,null,null,null,null,null,{"$f":"IFERROR(VLOOKUP($P63,TProcesos[#All],2,0),\" \")","v":" "},null,null,{"$f":"IFERROR(VLOOKUP($Q63,TDocRelacionados[#All],2,0),\" \")","v":" "},null,null,null,null,null,null,null,null,null," ",null,{"$f":"IFERROR(INDEX(CodSS[],MATCH($AC63,NomSS[],0),1),\" \")","v":" "},null,null,null," "]
[null,null,null,null,null,null,null,null,null,null,null,null,null,null,{"$f":"IFERROR(VLOOKUP($P64,TProcesos[#All],2,0),\" \")","v":" "},null,null,{"$f":"IFERROR(VLOOKUP($Q64,TDocRelacionados[#All],2,0),\" \")","v":" "},null,null,null,null,null,null,null,null,null," ",null,{"$f":"IFERROR(INDEX(CodSS[],MATCH($AC64,NomSS[],0),1),\" \")","v":" "},null,null,null," "]
[null,null,null,null,null,null,null,null,null,null,null,null,null,null,{"$f":"IFERROR(VLOOKUP($P65,TProcesos[#All],2,0),\" \")","v":" "},null,null,{"$f":"IFERROR(VLOOKUP($Q65,TDocRelacionados[#All],2,0),\" \")","v":" "},null,null,null,null,null,null,null,null,null," ",null,{"$f":"IFERROR(INDEX(CodSS[],MATCH($AC65,NomSS[],0),1),\" \")","v":" "},null,null,null," "]
[null,null,null,null,null,null,null,null,null,null,null,null,null,null,{"$f":"IFERROR(VLOOKUP($P66,TProcesos[#All],2,0),\" \")","v":" "},null,null,{"$f":"IFERROR(VLOOKUP($Q66,TDocRelacionados[#All],2,0),\" \")","v":" "},null,null,null,null,null,null,null,null,null," ",null,{"$f":"IFERROR(INDEX(CodSS[],MATCH($AC66,NomSS[],0),1),\" \")","v":" "},null,null,null," "]
[null,null,null,null,null,null,null,null,null,null,null,null,null,null,{"$f":"IFERROR(VLOOKUP($P67,TProcesos[#All],2,0),\" \")","v":" "},null,null,{"$f":"IFERROR(VLOOKUP($Q67,TDocRelacionados[#All],2,0),\" \")","v":" "},null,null,null,null,null,null,null,null,null," ",null,{"$f":"IFERROR(INDEX(CodSS[],MATCH($AC67,NomSS[],0),1),\" \")","v":" "},null,null,null," "]
[null,null,null,null,null,null,null,null,null,null,null,null,null,null,{"$f":"IFERROR(VLOOKUP($P68,TProcesos[#All],2,0),\" \")","v":" "},null,null,{"$f":"IFERROR(VLOOKUP($Q68,TDocRelacionados[#All],2,0),\" \")","v":" "},null,null,null,null,null,null,null,null,null," ",null,{"$f":"IFERROR(INDEX(CodSS[],MATCH($AC68,NomSS[],0),1),\" \")","v":" "},null,null,null," "]
[null,null,null,null,null,null,null,null,null,null,null,null,null,null,{"$f":"IFERROR(VLOOKUP($P69,TProcesos[#All],2,0),\" \")","v":" "},null,null,{"$f":"IFERROR(VLOOKUP($Q69,TDocRelacionados[#All],2,0),\" \")","v":" "},null,null,null,null,null,null,null,null,null," ",null,{"$f":"IFERROR(INDEX(CodSS[],MATCH($AC69,NomSS[],0),1),\" \")","v":" "},null,null,null," "]
[null,null,null,null,null,null,null,null,null,null,null,null,null,null,{"$f":"IFERROR(VLOOKUP($P70,TProcesos[#All],2,0),\" \")","v":" "},null,null,{"$f":"IFERROR(VLOOKUP($Q70,TDocRelacionados[#All],2,0),\" \")","v":" "},null,null,null,null,null,null,null,null,null," ",null,{"$f":"IFERROR(INDEX(CodSS[],MATCH($AC70,NomSS[],0),1),\" \")","v":" "},null,null,null," "]
[null,null,null,null,null,null,null,null,null,null,null,null,null,null,{"$f":"IFERROR(VLOOKUP($P71,TProcesos[#All],2,0),\" \")","v":" "},null,null,{"$f":"IFERROR(VLOOKUP($Q71,TDocRelacionados[#All],2,0),\" \")","v":" "},null,null,null,null,null,null,null,null,null," ",null,{"$f":"IFERROR(INDEX(CodSS[],MATCH($AC71,NomSS[],0),1),\" \")","v":" "},null,null,null," "]
[null,null,null,null,null,null,null,null,null,null,null,null,null,null,{"$f":"IFERROR(VLOOKUP($P72,TProcesos[#All],2,0),\" \")","v":" "},null,null,{"$f":"IFERROR(VLOOKUP($Q72,TDocRelacionados[#All],2,0),\" \")","v":" "},null,null,null,null,null,null,null,null,null,{"$f":"IFERROR(INDEX(CodSerieRango,MATCH($AA72,NomSeries,0),1),\" \")","v":" "},null,{"$f":"IFERROR(INDEX(CodSS[],MATCH($AC72,NomSS[],0),1),\" \")","v":" "},null,null,null," "]
[null,null,null,null,null,null,null,null,null,null,null,null,null,null,{"$f":"IFERROR(VLOOKUP($P73,TProcesos[#All],2,0),\" \")","v":" "},null,null,{"$f":"IFERROR(VLOOKUP($Q73,TDocRelacionados[#All],2,0),\" \")","v":" "},null,null,null,null,null,null,null,null,null," ",null,{"$f":"IFERROR(INDEX(CodSS[],MATCH($AC73,NomSS[],0),1),\" \")","v":" "},null,null,null," "]
[null,null,null,null,null,null,null,null,null,null,null,null,null,null,{"$f":"IFERROR(VLOOKUP($P74,TProcesos[#All],2,0),\" \")","v":" "},null,null,{"$f":"IFERROR(VLOOKUP($Q74,TDocRelacionados[#All],2,0),\" \")","v":" "},null,null,null,null,null,null,null,null,null," ",null,{"$f":"IFERROR(INDEX(CodSS[],MATCH($AC74,NomSS[],0),1),\" \")","v":" "},null,null,null," "]
[null,null,null,null,null,null,null,null,null,null,null,null,null,null,{"$f":"IFERROR(VLOOKUP($P75,TProcesos[#All],2,0),\" \")","v":" "},null,null,{"$f":"IFERROR(VLOOKUP($Q75,TDocRelacionados[#All],2,0),\" \")","v":" "},null,null,null,null,null,null,null,null,null," ",null,{"$f":"IFERROR(INDEX(CodSS[],MATCH($AC75,NomSS[],0),1),\" \")","v":" "},null,null,null," "]
[null,null,null,null,null,null,null,null,null,null,null,null,null,null,{"$f":"IFERROR(VLOOKUP($P76,TProcesos[#All],2,0),\" \")","v":" "},null,null,{"$f":"IFERROR(VLOOKUP($Q76,TDocRelacionados[#All],2,0),\" \")","v":" "},null,null,null,null,null,null,null,null,null," ",null,{"$f":"IFERROR(INDEX(CodSS[],MATCH($AC76,NomSS[],0),1),\" \")","v":" "},null,null,null," "]
[null,null,null,null,null,null,null,null,null,null,null,null,null,null,{"$f":"IFERROR(VLOOKUP($P77,TProcesos[#All],2,0),\" \")","v":" "},null,null,{"$f":"IFERROR(VLOOKUP($Q77,TDocRelacionados[#All],2,0),\" \")","v":" "},null,null,null,null,null,null,null,null,null," ",null,{"$f":"IFERROR(INDEX(CodSS[],MATCH($AC77,NomSS[],0),1),\" \")","v":" "},null,null,null," "]
[null,null,null,null,null,null,null,null,null,null,null,null,null,null,{"$f":"IFERROR(VLOOKUP($P78,TProcesos[#All],2,0),\" \")","v":" "},null,null,{"$f":"IFERROR(VLOOKUP($Q78,TDocRelacionados[#All],2,0),\" \")","v":" "},null,null,null,null,null,null,null,null,null," ",null,{"$f":"IFERROR(INDEX(CodSS[],MATCH($AC78,NomSS[],0),1),\" \")","v":" "},null,null,null," "]
[null,null,null,null,null,null,null,null,null,null,null,null,null,null,{"$f":"IFERROR(VLOOKUP($P79,TProcesos[#All],2,0),\" \")","v":" "},null,null,{"$f":"IFERROR(VLOOKUP($Q79,TDocRelacionados[#All],2,0),\" \")","v":" "},null,null,null,null,null,null,null,null,null," ",null,{"$f":"IFERROR(INDEX(CodSS[],MATCH($AC79,NomSS[],0),1),\" \")","v":" "},null,null,null," "]
[null,null,null,null,null,null,null,null,null,null,null,null,null,null,{"$f":"IFERROR(VLOOKUP($P80,TProcesos[#All],2,0),\" \")","v":" "},null,null,{"$f":"IFERROR(VLOOKUP($Q80,TDocRelacionados[#All],2,0),\" \")","v":" "},null,null,null,null,null,null,null,null,null," ",null,{"$f":"IFERROR(INDEX(CodSS[],MATCH($AC80,NomSS[],0),1),\" \")","v":" "},null,null,null," "]
[null,null,null,null,null,null,null,null,null,null,null,null,null,null,{"$f":"IFERROR(VLOOKUP($P81,TProcesos[#All],2,0),\" \")","v":" "},null,null,{"$f":"IFERROR(VLOOKUP($Q81,TDocRelacionados[#All],2,0),\" \")","v":" "},null,null,null,null,null,null,null,null,null," ",null,{"$f":"IFERROR(INDEX(CodSS[],MATCH($AC81,NomSS[],0),1),\" \")","v":" "},null,null,null," "]
[null,null,null,null,null,null,null,null,null,null,null,null,null,null,{"$f":"IFERROR(VLOOKUP($P82,TProcesos[#All],2,0),\" \")","v":" "},null,null,{"$f":"IFERROR(VLOOKUP($Q82,TDocRelacionados[#All],2,0),\" \")","v":" "},null,null,null,null,null,null,null,null,null," ",null,{"$f":"IFERROR(INDEX(CodSS[],MATCH($AC82,NomSS[],0),1),\" \")","v":" "},null,null,null," "]
[null,null,null,null,null,null,null,null,null,null,null,null,null,null,{"$f":"IFERROR(VLOOKUP($P83,TProcesos[#All],2,0),\" \")","v":" "},null,null,{"$f":"IFERROR(VLOOKUP($Q83,TDocRelacionados[#All],2,0),\" \")","v":" "},null,null,null,null,null,null,null,null,null," ",null,{"$f":"IFERROR(INDEX(CodSS[],MATCH($AC83,NomSS[],0),1),\" \")","v":" "},null,null,null," "]
[null,null,null,null,null,null,null,null,null,null,null,null,null,null,{"$f":"IFERROR(VLOOKUP($P84,TProcesos[#All],2,0),\" \")","v":" "},null,null,{"$f":"IFERROR(VLOOKUP($Q84,TDocRelacionados[#All],2,0),\" \")","v":" "},null,null,null,null,null,null,null,null,null," ",null,{"$f":"IFERROR(INDEX(CodSS[],MATCH($AC84,NomSS[],0),1),\" \")","v":" "},null,null,null," "]
[null,null,null,null,null,null,null,null,null,null,null,null,null,null,{"$f":"IFERROR(VLOOKUP($P85,TProcesos[#All],2,0),\" \")","v":" "},null,null,{"$f":"IFERROR(VLOOKUP($Q85,TDocRelacionados[#All],2,0),\" \")","v":" "},null,null,null,null,null,null,null,null,null," ",null,{"$f":"IFERROR(INDEX(CodSS[],MATCH($AC85,NomSS[],0),1),\" \")","v":" "},null,null,null," "]
[null,null,null,null,null,null,null,null,null,null,null,null,null,null,{"$f":"IFERROR(VLOOKUP($P86,TProcesos[#All],2,0),\" \")","v":" "},null,null,{"$f":"IFERROR(VLOOKUP($Q86,TDocRelacionados[#All],2,0),\" \")","v":" "},null,null,null,null,null,null,null,null,null," ",null,{"$f":"IFERROR(INDEX(CodSS[],MATCH($AC86,NomSS[],0),1),\" \")","v":" "},null,null,null," "]
[null,null,null,null,null,null,null,null,null,null,null,null,null,null,{"$f":"IFERROR(VLOOKUP($P87,TProcesos[#All],2,0),\" \")","v":" "},null,null,{"$f":"IFERROR(VLOOKUP($Q87,TDocRelacionados[#All],2,0),\" \")","v":" "},null,null,null,null,null,null,null,null,null," ",null,{"$f":"IFERROR(INDEX(CodSS[],MATCH($AC87,NomSS[],0),1),\" \")","v":" "},null,null,null," "]
[null,null,null,null,null,null,null,null,null,null,null,null,null,null,{"$f":"IFERROR(VLOOKUP($P88,TProcesos[#All],2,0),\" \")","v":" "},null,null,{"$f":"IFERROR(VLOOKUP($Q88,TDocRelacionados[#All],2,0),\" \")","v":" "},null,null,null,null,null,null,null,null,null," ",null,{"$f":"IFERROR(INDEX(CodSS[],MATCH($AC88,NomSS[],0),1),\" \")","v":" "},null,null,null," "]
[null,null,null,null,null,null,null,null,null,null,null,null,null,null,{"$f":"IFERROR(VLOOKUP($P89,TProcesos[#All],2,0),\" \")","v":" "},null,null,{"$f":"IFERROR(VLOOKUP($Q89,TDocRelacionados[#All],2,0),\" \")","v":" "},null,null,null,null,null,null,null,null,null," ",null,{"$f":"IFERROR(INDEX(CodSS[],MATCH($AC89,NomSS[],0),1),\" \")","v":" "},null,null,null," "]
[null,null,null,null,null,null,null,null,null,null,null,null,null,null,{"$f":"IFERROR(VLOOKUP($P90,TProcesos[#All],2,0),\" \")","v":" "},null,null,{"$f":"IFERROR(VLOOKUP($Q90,TDocRelacionados[#All],2,0),\" \")","v":" "},null,null,null,null,null,null,null,null,null," ",null,{"$f":"IFERROR(INDEX(CodSS[],MATCH($AC90,NomSS[],0),1),\" \")","v":" "},null,null,null," "]
[null,null,null,null,null,null,null,null,null,null,null,null,null,null,{"$f":"IFERROR(VLOOKUP($P91,TProcesos[#All],2,0),\" \")","v":" "},null,null,{"$f":"IFERROR(VLOOKUP($Q91,TDocRelacionados[#All],2,0),\" \")","v":" "},null,null,null,null,null,null,null,null,null," ",null,{"$f":"IFERROR(INDEX(CodSS[],MATCH($AC91,NomSS[],0),1),\" \")","v":" "},null,null,null," "]
[null,null,null,null,null,null,null,null,null,null,null,null,null,null,{"$f":"IFERROR(VLOOKUP($P92,TProcesos[#All],2,0),\" \")","v":" "},null,null,{"$f":"IFERROR(VLOOKUP($Q92,TDocRelacionados[#All],2,0),\" \")","v":" "},null,null,null,null,null,null,null,null,null," ",null,{"$f":"IFERROR(INDEX(CodSS[],MATCH($AC92,NomSS[],0),1),\" \")","v":" "},null,null,null," "]
[null,null,null,null,null,null,null,null,null,null,null,null,null,null,{"$f":"IFERROR(VLOOKUP($P93,TProcesos[#All],2,0),\" \")","v":" "},null,null,{"$f":"IFERROR(VLOOKUP($Q93,TDocRelacionados[#All],2,0),\" \")","v":" "},null,null,null,null,null,null,null,null,null," ",null,{"$f":"IFERROR(INDEX(CodSS[],MATCH($AC93,NomSS[],0),1),\" \")","v":" "},null,null,null," "]
[null,null,null,null,null,null,null,null,null,null,null,null,null,null,{"$f":"IFERROR(VLOOKUP($P94,TProcesos[#All],2,0),\" \")","v":" "},null,null,{"$f":"IFERROR(VLOOKUP($Q94,TDocRelacionados[#All],2,0),\" \")","v":" "},null,null,null,null,null,null,null,null,null," ",null,{"$f":"IFERROR(INDEX(CodSS[],MATCH($AC94,NomSS[],0),1),\" \")","v":" "},null,null,null," "]
[null,null,null,null,null,null,null,null,null,null,null,null,null,null,{"$f":"IFERROR(VLOOKUP($P95,TProcesos[#All],2,0),\" \")","v":" "},null,null,{"$f":"IFERROR(VLOOKUP($Q95,TDocRelacionados[#All],2,0),\" \")","v":" "},null,null,null,null,null,null,null,null,null," ",null,{"$f":"IFERROR(INDEX(CodSS[],MATCH($AC95,NomSS[],0),1),\" \")","v":" "},null,null,null," "]
[null,null,null,null,null,null,null,null,null,null,null,null,null,null,{"$f":"IFERROR(VLOOKUP($P96,TProcesos[#All],2,0),\" \")","v":" "},null,null,{"$f":"IFERROR(VLOOKUP($Q96,TDocRelacionados[#All],2,0),\" \")","v":" "},null,null,null,null,null,null,null,null,null," ",null,{"$f":"IFERROR(INDEX(CodSS[],MATCH($AC96,NomSS[],0),1),\" \")","v":" "},null,null,null," "]
[null,null,null,null,null,null,null,null,null,null,null,null,null,null,{"$f":"IFERROR(VLOOKUP($P97,TProcesos[#All],2,0),\" \")","v":" "},null,null,{"$f":"IFERROR(VLOOKUP($Q97,TDocRelacionados[#All],2,0),\" \")","v":" "},null,null,null,null,null,null,null,null,null," ",null,{"$f":"IFERROR(INDEX(CodSS[],MATCH($AC97,NomSS[],0),1),\" \")","v":" "},null,null,null," "]
[null,null,null,null,null,null,null,null,null,null,null,null,null,null,{"$f":"IFERROR(VLOOKUP($P98,TProcesos[#All],2,0),\" \")","v":" "},null,null,{"$f":"IFERROR(VLOOKUP($Q98,TDocRelacionados[#All],2,0),\" \")","v":" "},null,null,null,null,null,null,null,null,null," ",null,{"$f":"IFERROR(INDEX(CodSS[],MATCH($AC98,NomSS[],0),1),\" \")","v":" "},null,null,null," "]
[null,null,null,null,null,null,null,null,null,null,null,null,null,null,{"$f":"IFERROR(VLOOKUP($P99,TProcesos[#All],2,0),\" \")","v":" "},null,null,{"$f":"IFERROR(VLOOKUP($Q99,TDocRelacionados[#All],2,0),\" \")","v":" "},null,null,null,null,null,null,null,null,null," ",null,{"$f":"IFERROR(INDEX(CodSS[],MATCH($AC99,NomSS[],0),1),\" \")","v":" "},null,null,null," "]
[null,null,null,null,null,null,null,null,null,null,null,null,null,null,{"$f":"IFERROR(VLOOKUP($P100,TProcesos[#All],2,0),\" \")","v":" "},null,null,{"$f":"IFERROR(VLOOKUP($Q100,TDocRelacionados[#All],2,0),\" \")","v":" "},null,null,null,null,null,null,null,null,null," ",null,{"$f":"IFERROR(INDEX(CodSS[],MATCH($AC100,NomSS[],0),1),\" \")","v":" "},null,null,null," "]
[null,null,null,null,null,null,null,null,null,null,null,null,null,null,{"$f":"IFERROR(VLOOKUP($P101,TProcesos[#All],2,0),\" \")","v":" "},null,null,{"$f":"IFERROR(VLOOKUP($Q101,TDocRelacionados[#All],2,0),\" \")","v":" "},null,null,null,null,null,null,null,null,null," ",null,{"$f":"IFERROR(INDEX(CodSS[],MATCH($AC101,NomSS[],0),1),\" \")","v":" "},null,null,null," "]
[null,null,null,null,null,null,null,null,null,null,null,null,null,null,{"$f":"IFERROR(VLOOKUP($P102,TProcesos[#All],2,0),\" \")","v":" "},null,null,{"$f":"IFERROR(VLOOKUP($Q102,TDocRelacionados[#All],2,0),\" \")","v":" "},null,null,null,null,null,null,null,null,null," ",null,{"$f":"IFERROR(INDEX(CodSS[],MATCH($AC102,NomSS[],0),1),\" \")","v":" "},null,null,null," "]
[null,null,null,null,null,null,null,null,null,null,null,null,null,null,{"$f":"IFERROR(VLOOKUP($P103,TProcesos[#All],2,0),\" \")","v":" "},null,null,{"$f":"IFERROR(VLOOKUP($Q103,TDocRelacionados[#All],2,0),\" \")","v":" "},null,null,null,null,null,null,null,null,null," ",null,{"$f":"IFERROR(INDEX(CodSS[],MATCH($AC103,NomSS[],0),1),\" \")","v":" "},null,null,null," "]
[null,null,null,null,null,null,null,null,null,null,null,null,null,null,{"$f":"IFERROR(VLOOKUP($P104,TProcesos[#All],2,0),\" \")","v":" "},null,null,{"$f":"IFERROR(VLOOKUP($Q104,TDocRelacionados[#All],2,0),\" \")","v":" "},null,null,null,null,null,null,null,null,null," ",null,{"$f":"IFERROR(INDEX(CodSS[],MATCH($AC104,NomSS[],0),1),\" \")","v":" "},null,null,null," "]
[null,null,null,null,null,null,null,null,null,null,null,null,null,null,{"$f":"IFERROR(VLOOKUP($P105,TProcesos[#All],2,0),\" \")","v":" "},null,null,{"$f":"IFERROR(VLOOKUP($Q105,TDocRelacionados[#All],2,0),\" \")","v":" "},null,null,null,null,null,null,null,null,null," ",null,{"$f":"IFERROR(INDEX(CodSS[],MATCH($AC105,NomSS[],0),1),\" \")","v":" "},null,null,null," "]
[null,null,null,null,null,null,null,null,null,null,null,null,null,null,{"$f":"IFERROR(VLOOKUP($P106,TProcesos[#All],2,0),\" \")","v":" "},null,null,{"$f":"IFERROR(VLOOKUP($Q106,TDocRelacionados[#All],2,0),\" \")","v":" "},null,null,null,null,null,null,null,null,null," ",null,{"$f":"IFERROR(INDEX(CodSS[],MATCH($AC106,NomSS[],0),1),\" \")","v":" "},null,null,null," "]
[null,null,null,null,null,null,null,null,null,null,null,null,null,null,{"$f":"IFERROR(VLOOKUP($P107,TProcesos[#All],2,0),\" \")","v":" "},null,null,{"$f":"IFERROR(VLOOKUP($Q107,TDocRelacionados[#All],2,0),\" \")","v":" "},null,null,null,null,null,null,null,null,null," ",null,{"$f":"IFERROR(INDEX(CodSS[],MATCH($AC107,NomSS[],0),1),\" \")","v":" "},null,null,null," "]
[null,null,null,null,null,null,null,null,null,null,null,null,null,null,{"$f":"IFERROR(VLOOKUP($P108,TProcesos[#All],2,0),\" \")","v":" "},null,null,{"$f":"IFERROR(VLOOKUP($Q108,TDocRelacionados[#All],2,0),\" \")","v":" "},null,null,null,null,null,null,null,null,null," ",null,{"$f":"IFERROR(INDEX(CodSS[],MATCH($AC108,NomSS[],0),1),\" \")","v":" "},null,null,null," "]
[null,null,null,null,null,null,null,null,null,null,null,null,null,null,{"$f":"IFERROR(VLOOKUP($P109,TProcesos[#All],2,0),\" \")","v":" "},null,null,{"$f":"IFERROR(VLOOKUP($Q109,TDocRelacionados[#All],2,0),\" \")","v":" "},null,null,null,null,null,null,null,null,null," ",null,{"$f":"IFERROR(INDEX(CodSS[],MATCH($AC109,NomSS[],0),1),\" \")","v":" "},null,null,null," "]
[null,null,null,null,null,null,null,null,null,null,null,null,null,null,{"$f":"IFERROR(VLOOKUP($P110,TProcesos[#All],2,0),\" \")","v":" "},null,null,{"$f":"IFERROR(VLOOKUP($Q110,TDocRelacionados[#All],2,0),\" \")","v":" "},null,null,null,null,null,null,null,null,null," ",null,{"$f":"IFERROR(INDEX(CodSS[],MATCH($AC110,NomSS[],0),1),\" \")","v":" "},null,null,null," "]
[null,null,null,null,null,null,null,null,null,null,null,null,null,null,{"$f":"IFERROR(VLOOKUP($P111,TProcesos[#All],2,0),\" \")","v":" "},null,null,{"$f":"IFERROR(VLOOKUP($Q111,TDocRelacionados[#All],2,0),\" \")","v":" "},null,null,null,null,null,null,null,null,null," ",null,{"$f":"IFERROR(INDEX(CodSS[],MATCH($AC111,NomSS[],0),1),\" \")","v":" "},null,null,null," "]
[null,null,null,null,null,null,null,null,null,null,null,null,null,null,{"$f":"IFERROR(VLOOKUP($P112,TProcesos[#All],2,0),\" \")","v":" "},null,null,{"$f":"IFERROR(VLOOKUP($Q112,TDocRelacionados[#All],2,0),\" \")","v":" "},null,null,null,null,null,null,null,null,null," ",null,{"$f":"IFERROR(INDEX(CodSS[],MATCH($AC112,NomSS[],0),1),\" \")","v":" "},null,null,null," "]
[null,null,null,null,null,null,null,null,null,null,null,null,null,null,{"$f":"IFERROR(VLOOKUP($P113,TProcesos[#All],2,0),\" \")","v":" "},null,null,{"$f":"IFERROR(VLOOKUP($Q113,TDocRelacionados[#All],2,0),\" \")","v":" "},null,null,null,null,null,null,null,null,null," ",null,{"$f":"IFERROR(INDEX(CodSS[],MATCH($AC113,NomSS[],0),1),\" \")","v":" "},null,null,null," "]
[null,null,null,null,null,null,null,null,null,null,null,null,null,null,{"$f":"IFERROR(VLOOKUP($P114,TProcesos[#All],2,0),\" \")","v":" "},null,null,{"$f":"IFERROR(VLOOKUP($Q114,TDocRelacionados[#All],2,0),\" \")","v":" "},null,null,null,null,null,null,null,null,null," ",null,{"$f":"IFERROR(INDEX(CodSS[],MATCH($AC114,NomSS[],0),1),\" \")","v":" "},null,null,null," "]
[null,null,null,null,null,null,null,null,null,null,null,null,null,null,{"$f":"IFERROR(VLOOKUP($P115,TProcesos[#All],2,0),\" \")","v":" "},null,null,{"$f":"IFERROR(VLOOKUP($Q115,TDocRelacionados[#All],2,0),\" \")","v":" "},null,null,null,null,null,null,null,null,null," ",null,{"$f":"IFERROR(INDEX(CodSS[],MATCH($AC115,NomSS[],0),1),\" \")","v":" "},null,null,null," "]
[null,null,null,null,null,null,null,null,null,null,null,null,null,null,{"$f":"IFERROR(VLOOKUP($P116,TProcesos[#All],2,0),\" \")","v":" "},null,null,{"$f":"IFERROR(VLOOKUP($Q116,TDocRelacionados[#All],2,0),\" \")","v":" "},null,null,null,null,null,null,null,null,null," ",null,{"$f":"IFERROR(INDEX(CodSS[],MATCH($AC116,NomSS[],0),1),\" \")","v":" "},null,null,null," "]
[null,null,null,null,null,null,null,null,null,null,null,null,null,null,{"$f":"IFERROR(VLOOKUP($P117,TProcesos[#All],2,0),\" \")","v":" "},null,null,{"$f":"IFERROR(VLOOKUP($Q117,TDocRelacionados[#All],2,0),\" \")","v":" "},null,null,null,null,null,null,null,null,null," ",null,{"$f":"IFERROR(INDEX(CodSS[],MATCH($AC117,NomSS[],0),1),\" \")","v":" "},null,null,null," "]
[null,null,null,null,null,null,null,null,null,null,null,null,null,null,{"$f":"IFERROR(VLOOKUP($P118,TProcesos[#All],2,0),\" \")","v":" "},null,null,{"$f":"IFERROR(VLOOKUP($Q118,TDocRelacionados[#All],2,0),\" \")","v":" "},null,null,null,null,null,null,null,null,null," ",null,{"$f":"IFERROR(INDEX(CodSS[],MATCH($AC118,NomSS[],0),1),\" \")","v":" "},null,null,null," "]
[null,null,null,null,null,null,null,null,null,null,null,null,null,null,{"$f":"IFERROR(VLOOKUP($P119,TProcesos[#All],2,0),\" \")","v":" "},null,null,{"$f":"IFERROR(VLOOKUP($Q119,TDocRelacionados[#All],2,0),\" \")","v":" "},null,null,null,null,null,null,null,null,null," ",null,{"$f":"IFERROR(INDEX(CodSS[],MATCH($AC119,NomSS[],0),1),\" \")","v":" "},null,null,null," "]
[null,null,null,null,null,null,null,null,null,null,null,null,null,null,{"$f":"IFERROR(VLOOKUP($P120,TProcesos[#All],2,0),\" \")","v":" "},null,null,{"$f":"IFERROR(VLOOKUP($Q120,TDocRelacionados[#All],2,0),\" \")","v":" "},null,null,null,null,null,null,null,null,null," ",null,{"$f":"IFERROR(INDEX(CodSS[],MATCH($AC120,NomSS[],0),1),\" \")","v":" "},null,null,null," "]
[null,null,null,null,null,null,null,null,null,null,null,null,null,null,{"$f":"IFERROR(VLOOKUP($P121,TProcesos[#All],2,0),\" \")","v":" "},null,null,{"$f":"IFERROR(VLOOKUP($Q121,TDocRelacionados[#All],2,0),\" \")","v":" "},null,null,null,null,null,null,null,null,null," ",null,{"$f":"IFERROR(INDEX(CodSS[],MATCH($AC121,NomSS[],0),1),\" \")","v":" "},null,null,null," "]
[null,null,null,null,null,null,null,null,null,null,null,null,null,null,{"$f":"IFERROR(VLOOKUP($P122,TProcesos[#All],2,0),\" \")","v":" "},null,null,{"$f":"IFERROR(VLOOKUP($Q122,TDocRelacionados[#All],2,0),\" \")","v":" "},null,null,null,null,null,null,null,null,null," ",null,{"$f":"IFERROR(INDEX(CodSS[],MATCH($AC122,NomSS[],0),1),\" \")","v":" "},null,null,null," "]
[null,null,null,null,null,null,null,null,null,null,null,null,null,null,{"$f":"IFERROR(VLOOKUP($P123,TProcesos[#All],2,0),\" \")","v":" "},null,null,{"$f":"IFERROR(VLOOKUP($Q123,TDocRelacionados[#All],2,0),\" \")","v":" "},null,null,null,null,null,null,null,null,null," ",null,{"$f":"IFERROR(INDEX(CodSS[],MATCH($AC123,NomSS[],0),1),\" \")","v":" "},null,null,null," "]
[null,null,null,null,null,null,null,null,null,null,null,null,null,null,{"$f":"IFERROR(VLOOKUP($P124,TProcesos[#All],2,0),\" \")","v":" "},null,null,{"$f":"IFERROR(VLOOKUP($Q124,TDocRelacionados[#All],2,0),\" \")","v":" "},null,null,null,null,null,null,null,null,null," ",null,{"$f":"IFERROR(INDEX(CodSS[],MATCH($AC124,NomSS[],0),1),\" \")","v":" "},null,null,null," "]
[null,null,null,null,null,null,null,null,null,null,null,null,null,null,{"$f":"IFERROR(VLOOKUP($P125,TProcesos[#All],2,0),\" \")","v":" "},null,null,{"$f":"IFERROR(VLOOKUP($Q125,TDocRelacionados[#All],2,0),\" \")","v":" "},null,null,null,null,null,null,null,null,null," ",null,{"$f":"IFERROR(INDEX(CodSS[],MATCH($AC125,NomSS[],0),1),\" \")","v":" "},null,null,null," "]
[null,null,null,null,null,null,null,null,null,null,null,null,null,null,{"$f":"IFERROR(VLOOKUP($P126,TProcesos[#All],2,0),\" \")","v":" "},null,null,{"$f":"IFERROR(VLOOKUP($Q126,TDocRelacionados[#All],2,0),\" \")","v":" "},null,null,null,null,null,null,null,null,null," ",null,{"$f":"IFERROR(INDEX(CodSS[],MATCH($AC126,NomSS[],0),1),\" \")","v":" "},null,null,null," "]
[null,null,null,null,null,null,null,null,null,null,null,null,null,null,{"$f":"IFERROR(VLOOKUP($P127,TProcesos[#All],2,0),\" \")","v":" "},null,null,{"$f":"IFERROR(VLOOKUP($Q127,TDocRelacionados[#All],2,0),\" \")","v":" "},null,null,null,null,null,null,null,null,null," ",null,{"$f":"IFERROR(INDEX(CodSS[],MATCH($AC127,NomSS[],0),1),\" \")","v":" "},null,null,null," "]
[null,null,null,null,null,null,null,null,null,null,null,null,null,null,{"$f":"IFERROR(VLOOKUP($P128,TProcesos[#All],2,0),\" \")","v":" "},null,null,{"$f":"IFERROR(VLOOKUP($Q128,TDocRelacionados[#All],2,0),\" \")","v":" "},null,null,null,null,null,null,null,null,null," ",null,{"$f":"IFERROR(INDEX(CodSS[],MATCH($AC128,NomSS[],0),1),\" \")","v":" "},null,null,null," "]
[null,null,null,null,null,null,null,null,null,null,null,null,null,null,{"$f":"IFERROR(VLOOKUP($P129,TProcesos[#All],2,0),\" \")","v":" "},null,null,{"$f":"IFERROR(VLOOKUP($Q129,TDocRelacionados[#All],2,0),\" \")","v":" "},null,null,null,null,null,null,null,null,null," ",null,{"$f":"IFERROR(INDEX(CodSS[],MATCH($AC129,NomSS[],0),1),\" \")","v":" "},null,null,null," "]
[null,null,null,null,null,null,null,null,null,null,null,null,null,null,{"$f":"IFERROR(VLOOKUP($P130,TProcesos[#All],2,0),\" \")","v":" "},null,null,{"$f":"IFERROR(VLOOKUP($Q130,TDocRelacionados[#All],2,0),\" \")","v":" "},null,null,null,null,null,null,null,null,null," ",null,{"$f":"IFERROR(INDEX(CodSS[],MATCH($AC130,NomSS[],0),1),\" \")","v":" "},null,null,null," "]
[null,null,null,null,null,null,null,null,null,null,null,null,null,null,{"$f":"IFERROR(VLOOKUP($P131,TProcesos[#All],2,0),\" \")","v":" "},null,null,{"$f":"IFERROR(VLOOKUP($Q131,TDocRelacionados[#All],2,0),\" \")","v":" "},null,null,null,null,null,null,null,null,null," ",null,{"$f":"IFERROR(INDEX(CodSS[],MATCH($AC131,NomSS[],0),1),\" \")","v":" "},null,null,null," "]
[null,null,null,null,null,null,null,null,null,null,null,null,null,null,{"$f":"IFERROR(VLOOKUP($P132,TProcesos[#All],2,0),\" \")","v":" "},null,null,{"$f":"IFERROR(VLOOKUP($Q132,TDocRelacionados[#All],2,0),\" \")","v":" "},null,null,null,null,null,null,null,null,null," ",null,{"$f":"IFERROR(INDEX(CodSS[],MATCH($AC132,NomSS[],0),1),\" \")","v":" "},null,null,null," "]
[null,null,null,null,null,null,null,null,null,null,null,null,null,null,{"$f":"IFERROR(VLOOKUP($P133,TProcesos[#All],2,0),\" \")","v":" "},null,null,{"$f":"IFERROR(VLOOKUP($Q133,TDocRelacionados[#All],2,0),\" \")","v":" "},null,null,null,null,null,null,null,null,null," ",null,{"$f":"IFERROR(INDEX(CodSS[],MATCH($AC133,NomSS[],0),1),\" \")","v":" "},null,null,null," "]
[null,null,null,null,null,null,null,null,null,null,null,null,null,null,{"$f":"IFERROR(VLOOKUP($P134,TProcesos[#All],2,0),\" \")","v":" "},null,null,{"$f":"IFERROR(VLOOKUP($Q134,TDocRelacionados[#All],2,0),\" \")","v":" "},null,null,null,null,null,null,null,null,null," ",null,{"$f":"IFERROR(INDEX(CodSS[],MATCH($AC134,NomSS[],0),1),\" \")","v":" "},null,null,null," "]
[null,null,null,null,null,null,null,null,null,null,null,null,null,null,{"$f":"IFERROR(VLOOKUP($P135,TProcesos[#All],2,0),\" \")","v":" "},null,null,{"$f":"IFERROR(VLOOKUP($Q135,TDocRelacionados[#All],2,0),\" \")","v":" "},null,null,null,null,null,null,null,null,null," ",null,{"$f":"IFERROR(INDEX(CodSS[],MATCH($AC135,NomSS[],0),1),\" \")","v":" "},null,null,null," "]
[null,null,null,null,null,null,null,null,null,null,null,null,null,null,{"$f":"IFERROR(VLOOKUP($P136,TProcesos[#All],2,0),\" \")","v":" "},null,null,{"$f":"IFERROR(VLOOKUP($Q136,TDocRelacionados[#All],2,0),\" \")","v":" "},null,null,null,null,null,null,null,null,null,{"$f":"IFERROR(INDEX(CodSerieRango,MATCH($AA136,NomSeries,0),1),\" \")","v":" "},null,{"$f":"IFERROR(INDEX(CodSS[],MATCH($AC136,NomSS[],0),1),\" \")","v":" "},null,null,null," "]
[null,null,null,null,null,null,null,null,null,null,null,null,null,null,{"$f":"IFERROR(VLOOKUP($P137,TProcesos[#All],2,0),\" \")","v":" "},null,null,{"$f":"IFERROR(VLOOKUP($Q137,TDocRelacionados[#All],2,0),\" \")","v":" "},null,null,null,null,null,null,null,null,null," ",null,{"$f":"IFERROR(INDEX(CodSS[],MATCH($AC137,NomSS[],0),1),\" \")","v":" "},null,null,null," "]
[null,null,null,null,null,null,null,null,null,null,null,null,null,null,{"$f":"IFERROR(VLOOKUP($P138,TProcesos[#All],2,0),\" \")","v":" "},null,null,{"$f":"IFERROR(VLOOKUP($Q138,TDocRelacionados[#All],2,0),\" \")","v":" "},null,null,null,null,null,null,null,null,null," ",null,{"$f":"IFERROR(INDEX(CodSS[],MATCH($AC138,NomSS[],0),1),\" \")","v":" "},null,null,null," "]
[null,null,null,null,null,null,null,null,null,null,null,null,null,null,{"$f":"IFERROR(VLOOKUP($P139,TProcesos[#All],2,0),\" \")","v":" "},null,null,{"$f":"IFERROR(VLOOKUP($Q139,TDocRelacionados[#All],2,0),\" \")","v":" "},null,null,null,null,null,null,null,null,null," ",null,{"$f":"IFERROR(INDEX(CodSS[],MATCH($AC139,NomSS[],0),1),\" \")","v":" "},null,null,null," "]
[null,null,null,null,null,null,null,null,null,null,null,null,null,null,{"$f":"IFERROR(VLOOKUP($P140,TProcesos[#All],2,0),\" \")","v":" "},null,null,{"$f":"IFERROR(VLOOKUP($Q140,TDocRelacionados[#All],2,0),\" \")","v":" "},null,null,null,null,null,null,null,null,null," ",null,{"$f":"IFERROR(INDEX(CodSS[],MATCH($AC140,NomSS[],0),1),\" \")","v":" "},null,null,null," "]
[null,null,null,null,null,null,null,null,null,null,null,null,null,null,{"$f":"IFERROR(VLOOKUP($P141,TProcesos[#All],2,0),\" \")","v":" "},null,null,{"$f":"IFERROR(VLOOKUP($Q141,TDocRelacionados[#All],2,0),\" \")","v":" "},null,null,null,null,null,null,null,null,null," ",null,{"$f":"IFERROR(INDEX(CodSS[],MATCH($AC141,NomSS[],0),1),\" \")","v":" "},null,null,null," "]
[null,null,null,null,null,null,null,null,null,null,null,null,null,null,{"$f":"IFERROR(VLOOKUP($P142,TProcesos[#All],2,0),\" \")","v":" "},null,null,{"$f":"IFERROR(VLOOKUP($Q142,TDocRelacionados[#All],2,0),\" \")","v":" "},null,null,null,null,null,null,null,null,null," ",null,{"$f":"IFERROR(INDEX(CodSS[],MATCH($AC142,NomSS[],0),1),\" \")","v":" "},null,null,null," "]
[null,null,null,null,null,null,null,null,null,null,null,null,null,null,{"$f":"IFERROR(VLOOKUP($P143,TProcesos[#All],2,0),\" \")","v":" "},null,null,{"$f":"IFERROR(VLOOKUP($Q143,TDocRelacionados[#All],2,0),\" \")","v":" "},null,null,null,null,null,null,null,null,null," ",null,{"$f":"IFERROR(INDEX(CodSS[],MATCH($AC143,NomSS[],0),1),\" \")","v":" "},null,null,null," "]
[null,null,null,null,null,null,null,null,null,null,null,null,null,null,{"$f":"IFERROR(VLOOKUP($P144,TProcesos[#All],2,0),\" \")","v":" "},null,null,{"$f":"IFERROR(VLOOKUP($Q144,TDocRelacionados[#All],2,0),\" \")","v":" "},null,null,null,null,null,null,null,null,null," ",null,{"$f":"IFERROR(INDEX(CodSS[],MATCH($AC144,NomSS[],0),1),\" \")","v":" "},null,null,null," "]
[null,null,null,null,null,null,null,null,null,null,null,null,null,null,{"$f":"IFERROR(VLOOKUP($P145,TProcesos[#All],2,0),\" \")","v":" "},null,null,{"$f":"IFERROR(VLOOKUP($Q145,TDocRelacionados[#All],2,0),\" \")","v":" "},null,null,null,null,null,null,null,null,null," ",null,{"$f":"IFERROR(INDEX(CodSS[],MATCH($AC145,NomSS[],0),1),\" \")","v":" "},null,null,null," "]
[null,null,null,null,null,null,null,null,null,null,null,null,null,null,{"$f":"IFERROR(VLOOKUP($P146,TProcesos[#All],2,0),\" \")","v":" "},null,null,{"$f":"IFERROR(VLOOKUP($Q146,TDocRelacionados[#All],2,0),\" \")","v":" "},null,null,null,null,null,null,null,null,null," ",null,{"$f":"IFERROR(INDEX(CodSS[],MATCH($AC146,NomSS[],0),1),\" \")","v":" "},null,null,null," "]
[null,null,null,null,null,null,null,null,null,null,null,null,null,null,{"$f":"IFERROR(VLOOKUP($P147,TProcesos[#All],2,0),\" \")","v":" "},null,null,{"$f":"IFERROR(VLOOKUP($Q147,TDocRelacionados[#All],2,0),\" \")","v":" "},null,null,null,null,null,null,null,null,null," ",null,{"$f":"IFERROR(INDEX(CodSS[],MATCH($AC147,NomSS[],0),1),\" \")","v":" "},null,null,null," "]
[null,null,null,null,null,null,null,null,null,null,null,null,null,null,{"$f":"IFERROR(VLOOKUP($P148,TProcesos[#All],2,0),\" \")","v":" "},null,null,{"$f":"IFERROR(VLOOKUP($Q148,TDocRelacionados[#All],2,0),\" \")","v":" "},null,null,null,null,null,null,null,null,null," ",null,{"$f":"IFERROR(INDEX(CodSS[],MATCH($AC148,NomSS[],0),1),\" \")","v":" "},null,null,null," "]
[null,null,null,null,null,null,null,null,null,null,null,null,null,null,{"$f":"IFERROR(VLOOKUP($P149,TProcesos[#All],2,0),\" \")","v":" "},null,null,{"$f":"IFERROR(VLOOKUP($Q149,TDocRelacionados[#All],2,0),\" \")","v":" "},null,null,null,null,null,null,null,null,null," ",null,{"$f":"IFERROR(INDEX(CodSS[],MATCH($AC149,NomSS[],0),1),\" \")","v":" "},null,null,null," "]
[null,null,null,null,null,null,null,null,null,null,null,null,null,null,{"$f":"IFERROR(VLOOKUP($P150,TProcesos[#All],2,0),\" \")","v":" "},null,null,{"$f":"IFERROR(VLOOKUP($Q150,TDocRelacionados[#All],2,0),\" \")","v":" "},null,null,null,null,null,null,null,null,null," ",null,{"$f":"IFERROR(INDEX(CodSS[],MATCH($AC150,NomSS[],0),1),\" \")","v":" "},null,null,null," "]
[null,null,null,null,null,null,null,null,null,null,null,null,null,null,{"$f":"IFERROR(VLOOKUP($P151,TProcesos[#All],2,0),\" \")","v":" "},null,null,{"$f":"IFERROR(VLOOKUP($Q151,TDocRelacionados[#All],2,0),\" \")","v":" "},null,null,null,null,null,null,null,null,null," ",null,{"$f":"IFERROR(INDEX(CodSS[],MATCH($AC151,NomSS[],0),1),\" \")","v":" "},null,null,null," "]
[null,null,null,null,null,null,null,null,null,null,null,null,null,null,{"$f":"IFERROR(VLOOKUP($P152,TProcesos[#All],2,0),\" \")","v":" "},null,null,{"$f":"IFERROR(VLOOKUP($Q152,TDocRelacionados[#All],2,0),\" \")","v":" "},null,null,null,null,null,null,null,null,null," ",null,{"$f":"IFERROR(INDEX(CodSS[],MATCH($AC152,NomSS[],0),1),\" \")","v":" "},null,null,null," "]
[null,null,null,null,null,null,null,null,null,null,null,null,null,null,{"$f":"IFERROR(VLOOKUP($P153,TProcesos[#All],2,0),\" \")","v":" "},null,null,{"$f":"IFERROR(VLOOKUP($Q153,TDocRelacionados[#All],2,0),\" \")","v":" "},null,null,null,null,null,null,null,null,null," ",null,{"$f":"IFERROR(INDEX(CodSS[],MATCH($AC153,NomSS[],0),1),\" \")","v":" "},null,null,null," "]
[null,null,null,null,null,null,null,null,null,null,null,null,null,null,{"$f":"IFERROR(VLOOKUP($P154,TProcesos[#All],2,0),\" \")","v":" "},null,null,{"$f":"IFERROR(VLOOKUP($Q154,TDocRelacionados[#All],2,0),\" \")","v":" "},null,null,null,null,null,null,null,null,null," ",null,{"$f":"IFERROR(INDEX(CodSS[],MATCH($AC154,NomSS[],0),1),\" \")","v":" "},null,null,null," "]
[null,null,null,null,null,null,null,null,null,null,null,null,null,null,{"$f":"IFERROR(VLOOKUP($P155,TProcesos[#All],2,0),\" \")","v":" "},null,null,{"$f":"IFERROR(VLOOKUP($Q155,TDocRelacionados[#All],2,0),\" \")","v":" "},null,null,null,null,null,null,null,null,null," ",null,{"$f":"IFERROR(INDEX(CodSS[],MATCH($AC155,NomSS[],0),1),\" \")","v":" "},null,null,null," "]
[null,null,null,null,null,null,null,null,null,null,null,null,null,null,{"$f":"IFERROR(VLOOKUP($P156,TProcesos[#All],2,0),\" \")","v":" "},null,null,{"$f":"IFERROR(VLOOKUP($Q156,TDocRelacionados[#All],2,0),\" \")","v":" "},null,null,null,null,null,null,null,null,null," ",null,{"$f":"IFERROR(INDEX(CodSS[],MATCH($AC156,NomSS[],0),1),\" \")","v":" "},null,null,null," "]
[null,null,null,null,null,null,null,null,null,null,null,null,null,null,{"$f":"IFERROR(VLOOKUP($P157,TProcesos[#All],2,0),\" \")","v":" "},null,null,{"$f":"IFERROR(VLOOKUP($Q157,TDocRelacionados[#All],2,0),\" \")","v":" "},null,null,null,null,null,null,null,null,null," ",null,{"$f":"IFERROR(INDEX(CodSS[],MATCH($AC157,NomSS[],0),1),\" \")","v":" "},null,null,null," "]
[null,null,null,null,null,null,null,null,null,null,null,null,null,null,{"$f":"IFERROR(VLOOKUP($P158,TProcesos[#All],2,0),\" \")","v":" "},null,null,{"$f":"IFERROR(VLOOKUP($Q158,TDocRelacionados[#All],2,0),\" \")","v":" "},null,null,null,null,null,null,null,null,null," ",null,{"$f":"IFERROR(INDEX(CodSS[],MATCH($AC158,NomSS[],0),1),\" \")","v":" "},null,null,null," "]
[null,null,null,null,null,null,null,null,null,null,null,null,null,null,{"$f":"IFERROR(VLOOKUP($P159,TProcesos[#All],2,0),\" \")","v":" "},null,null,{"$f":"IFERROR(VLOOKUP($Q159,TDocRelacionados[#All],2,0),\" \")","v":" "},null,null,null,null,null,null,null,null,null," ",null,{"$f":"IFERROR(INDEX(CodSS[],MATCH($AC159,NomSS[],0),1),\" \")","v":" "},null,null,null," "]
[null,null,null,null,null,null,null,null,null,null,null,null,null,null,{"$f":"IFERROR(VLOOKUP($P160,TProcesos[#All],2,0),\" \")","v":" "},null,null,{"$f":"IFERROR(VLOOKUP($Q160,TDocRelacionados[#All],2,0),\" \")","v":" "},null,null,null,null,null,null,null,null,null," ",null,{"$f":"IFERROR(INDEX(CodSS[],MATCH($AC160,NomSS[],0),1),\" \")","v":" "},null,null,null," "]
[null,null,null,null,null,null,null,null,null,null,null,null,null,null,{"$f":"IFERROR(VLOOKUP($P161,TProcesos[#All],2,0),\" \")","v":" "},null,null,{"$f":"IFERROR(VLOOKUP($Q161,TDocRelacionados[#All],2,0),\" \")","v":" "},null,null,null,null,null,null,null,null,null," ",null,{"$f":"IFERROR(INDEX(CodSS[],MATCH($AC161,NomSS[],0),1),\" \")","v":" "},null,null,null," "]
[null,null,null,null,null,null,null,null,null,null,null,null,null,null,{"$f":"IFERROR(VLOOKUP($P162,TProcesos[#All],2,0),\" \")","v":" "},null,null,{"$f":"IFERROR(VLOOKUP($Q162,TDocRelacionados[#All],2,0),\" \")","v":" "},null,null,null,null,null,null,null,null,null," ",null,{"$f":"IFERROR(INDEX(CodSS[],MATCH($AC162,NomSS[],0),1),\" \")","v":" "},null,null,null," "]
[null,null,null,null,null,null,null,null,null,null,null,null,null,null,{"$f":"IFERROR(VLOOKUP($P163,TProcesos[#All],2,0),\" \")","v":" "},null,null,{"$f":"IFERROR(VLOOKUP($Q163,TDocRelacionados[#All],2,0),\" \")","v":" "},null,null,null,null,null,null,null,null,null," ",null,{"$f":"IFERROR(INDEX(CodSS[],MATCH($AC163,NomSS[],0),1),\" \")","v":" "},null,null,null," "]
[null,null,null,null,null,null,null,null,null,null,null,null,null,null,{"$f":"IFERROR(VLOOKUP($P164,TProcesos[#All],2,0),\" \")","v":" "},null,null,{"$f":"IFERROR(VLOOKUP($Q164,TDocRelacionados[#All],2,0),\" \")","v":" "},null,null,null,null,null,null,null,null,null," ",null,{"$f":"IFERROR(INDEX(CodSS[],MATCH($AC164,NomSS[],0),1),\" \")","v":" "},null,null,null," "]
[null,null,null,null,null,null,null,null,null,null,null,null,null,null,{"$f":"IFERROR(VLOOKUP($P165,TProcesos[#All],2,0),\" \")","v":" "},null,null,{"$f":"IFERROR(VLOOKUP($Q165,TDocRelacionados[#All],2,0),\" \")","v":" "},null,null,null,null,null,null,null,null,null," ",null,{"$f":"IFERROR(INDEX(CodSS[],MATCH($AC165,NomSS[],0),1),\" \")","v":" "},null,null,null," "]
[null,null,null,null,null,null,null,null,null,null,null,null,null,null,{"$f":"IFERROR(VLOOKUP($P166,TProcesos[#All],2,0),\" \")","v":" "},null,null,{"$f":"IFERROR(VLOOKUP($Q166,TDocRelacionados[#All],2,0),\" \")","v":" "},null,null,null,null,null,null,null,null,null," ",null,{"$f":"IFERROR(INDEX(CodSS[],MATCH($AC166,NomSS[],0),1),\" \")","v":" "},null,null,null," "]
[null,null,null,null,null,null,null,null,null,null,null,null,null,null,{"$f":"IFERROR(VLOOKUP($P167,TProcesos[#All],2,0),\" \")","v":" "},null,null,{"$f":"IFERROR(VLOOKUP($Q167,TDocRelacionados[#All],2,0),\" \")","v":" "},null,null,null,null,null,null,null,null,null," ",null,{"$f":"IFERROR(INDEX(CodSS[],MATCH($AC167,NomSS[],0),1),\" \")","v":" "},null,null,null," "]
[null,null,null,null,null,null,null,null,null,null,null,null,null,null,{"$f":"IFERROR(VLOOKUP($P168,TProcesos[#All],2,0),\" \")","v":" "},null,null,{"$f":"IFERROR(VLOOKUP($Q168,TDocRelacionados[#All],2,0),\" \")","v":" "},null,null,null,null,null,null,null,null,null," ",null,{"$f":"IFERROR(INDEX(CodSS[],MATCH($AC168,NomSS[],0),1),\" \")","v":" "},null,null,null," "]
[null,null,null,null,null,null,null,null,null,null,null,null,null,null,{"$f":"IFERROR(VLOOKUP($P169,TProcesos[#All],2,0),\" \")","v":" "},null,null,{"$f":"IFERROR(VLOOKUP($Q169,TDocRelacionados[#All],2,0),\" \")","v":" "},null,null,null,null,null,null,null,null,null," ",null,{"$f":"IFERROR(INDEX(CodSS[],MATCH($AC169,NomSS[],0),1),\" \")","v":" "},null,null,null," "]
[null,null,null,null,null,null,null,null,null,null,null,null,null,null,{"$f":"IFERROR(VLOOKUP($P170,TProcesos[#All],2,0),\" \")","v":" "},null,null,{"$f":"IFERROR(VLOOKUP($Q170,TDocRelacionados[#All],2,0),\" \")","v":" "},null,null,null,null,null,null,null,null,null," ",null,{"$f":"IFERROR(INDEX(CodSS[],MATCH($AC170,NomSS[],0),1),\" \")","v":" "},null,null,null," "]
[null,null,null,null,null,null,null,null,null,null,null,null,null,null,{"$f":"IFERROR(VLOOKUP($P171,TProcesos[#All],2,0),\" \")","v":" "},null,null,{"$f":"IFERROR(VLOOKUP($Q171,TDocRelacionados[#All],2,0),\" \")","v":" "},null,null,null,null,null,null,null,null,null," ",null,{"$f":"IFERROR(INDEX(CodSS[],MATCH($AC171,NomSS[],0),1),\" \")","v":" "},null,null,null," "]
[null,null,null,null,null,null,null,null,null,null,null,null,null,null,{"$f":"IFERROR(VLOOKUP($P172,TProcesos[#All],2,0),\" \")","v":" "},null,null,{"$f":"IFERROR(VLOOKUP($Q172,TDocRelacionados[#All],2,0),\" \")","v":" "},null,null,null,null,null,null,null,null,null," ",null,{"$f":"IFERROR(INDEX(CodSS[],MATCH($AC172,NomSS[],0),1),\" \")","v":" "},null,null,null," "]
[null,null,null,null,null,null,null,null,null,null,null,null,null,null,{"$f":"IFERROR(VLOOKUP($P173,TProcesos[#All],2,0),\" \")","v":" "},null,null,{"$f":"IFERROR(VLOOKUP($Q173,TDocRelacionados[#All],2,0),\" \")","v":" "},null,null,null,null,null,null,null,null,null," ",null,{"$f":"IFERROR(INDEX(CodSS[],MATCH($AC173,NomSS[],0),1),\" \")","v":" "},null,null,null," "]
[null,null,null,null,null,null,null,null,null,null,null,null,null,null,{"$f":"IFERROR(VLOOKUP($P174,TProcesos[#All],2,0),\" \")","v":" "},null,null,{"$f":"IFERROR(VLOOKUP($Q174,TDocRelacionados[#All],2,0),\" \")","v":" "},null,null,null,null,null,null,null,null,null," ",null,{"$f":"IFERROR(INDEX(CodSS[],MATCH($AC174,NomSS[],0),1),\" \")","v":" "},null,null,null," "]
[null,null,null,null,null,null,null,null,null,null,null,null,null,null,{"$f":"IFERROR(VLOOKUP($P175,TProcesos[#All],2,0),\" \")","v":" "},null,null,{"$f":"IFERROR(VLOOKUP($Q175,TDocRelacionados[#All],2,0),\" \")","v":" "},null,null,null,null,null,null,null,null,null," ",null,{"$f":"IFERROR(INDEX(CodSS[],MATCH($AC175,NomSS[],0),1),\" \")","v":" "},null,null,null," "]
[null,null,null,null,null,null,null,null,null,null,null,null,null,null,{"$f":"IFERROR(VLOOKUP($P176,TProcesos[#All],2,0),\" \")","v":" "},null,null,{"$f":"IFERROR(VLOOKUP($Q176,TDocRelacionados[#All],2,0),\" \")","v":" "},null,null,null,null,null,null,null,null,null," ",null,{"$f":"IFERROR(INDEX(CodSS[],MATCH($AC176,NomSS[],0),1),\" \")","v":" "},null,null,null," "]
[null,null,null,null,null,null,null,null,null,null,null,null,null,null,{"$f":"IFERROR(VLOOKUP($P177,TProcesos[#All],2,0),\" \")","v":" "},null,null,{"$f":"IFERROR(VLOOKUP($Q177,TDocRelacionados[#All],2,0),\" \")","v":" "},null,null,null,null,null,null,null,null,null," ",null,{"$f":"IFERROR(INDEX(CodSS[],MATCH($AC177,NomSS[],0),1),\" \")","v":" "},null,null,null," "]
[null,null,null,null,null,null,null,null,null,null,null,null,null,null,{"$f":"IFERROR(VLOOKUP($P178,TProcesos[#All],2,0),\" \")","v":" "},null,null,{"$f":"IFERROR(VLOOKUP($Q178,TDocRelacionados[#All],2,0),\" \")","v":" "},null,null,null,null,null,null,null,null,null," ",null,{"$f":"IFERROR(INDEX(CodSS[],MATCH($AC178,NomSS[],0),1),\" \")","v":" "},null,null,null," "]
[null,null,null,null,null,null,null,null,null,null,null,null,null,null,{"$f":"IFERROR(VLOOKUP($P179,TProcesos[#All],2,0),\" \")","v":" "},null,null,{"$f":"IFERROR(VLOOKUP($Q179,TDocRelacionados[#All],2,0),\" \")","v":" "},null,null,null,null,null,null,null,null,null," ",null,{"$f":"IFERROR(INDEX(CodSS[],MATCH($AC179,NomSS[],0),1),\" \")","v":" "},null,null,null," "]
[null,null,null,null,null,null,null,null,null,null,null,null,null,null,{"$f":"IFERROR(VLOOKUP($P180,TProcesos[#All],2,0),\" \")","v":" "},null,null,{"$f":"IFERROR(VLOOKUP($Q180,TDocRelacionados[#All],2,0),\" \")","v":" "},null,null,null,null,null,null,null,null,null," ",null,{"$f":"IFERROR(INDEX(CodSS[],MATCH($AC180,NomSS[],0),1),\" \")","v":" "},null,null,null," "]
[null,null,null,null,null,null,null,null,null,null,null,null,null,null,{"$f":"IFERROR(VLOOKUP($P181,TProcesos[#All],2,0),\" \")","v":" "},null,null,{"$f":"IFERROR(VLOOKUP($Q181,TDocRelacionados[#All],2,0),\" \")","v":" "},null,null,null,null,null,null,null,null,null," ",null,{"$f":"IFERROR(INDEX(CodSS[],MATCH($AC181,NomSS[],0),1),\" \")","v":" "},null,null,null," "]
[null,null,null,null,null,null,null,null,null,null,null,null,null,null,{"$f":"IFERROR(VLOOKUP($P182,TProcesos[#All],2,0),\" \")","v":" "},null,null,{"$f":"IFERROR(VLOOKUP($Q182,TDocRelacionados[#All],2,0),\" \")","v":" "},null,null,null,null,null,null,null,null,null," ",null,{"$f":"IFERROR(INDEX(CodSS[],MATCH($AC182,NomSS[],0),1),\" \")","v":" "},null,null,null," "]
[null,null,null,null,null,null,null,null,null,null,null,null,null,null,{"$f":"IFERROR(VLOOKUP($P183,TProcesos[#All],2,0),\" \")","v":" "},null,null,{"$f":"IFERROR(VLOOKUP($Q183,TDocRelacionados[#All],2,0),\" \")","v":" "},null,null,null,null,null,null,null,null,null," ",null,{"$f":"IFERROR(INDEX(CodSS[],MATCH($AC183,NomSS[],0),1),\" \")","v":" "},null,null,null," "]
[null,null,null,null,null,null,null,null,null,null,null,null,null,null,{"$f":"IFERROR(VLOOKUP($P184,TProcesos[#All],2,0),\" \")","v":" "},null,null,{"$f":"IFERROR(VLOOKUP($Q184,TDocRelacionados[#All],2,0),\" \")","v":" "},null,null,null,null,null,null,null,null,null," ",null,{"$f":"IFERROR(INDEX(CodSS[],MATCH($AC184,NomSS[],0),1),\" \")","v":" "},null,null,null," "]
[null,null,null,null,null,null,null,null,null,null,null,null,null,null,{"$f":"IFERROR(VLOOKUP($P185,TProcesos[#All],2,0),\" \")","v":" "},null,null,{"$f":"IFERROR(VLOOKUP($Q185,TDocRelacionados[#All],2,0),\" \")","v":" "},null,null,null,null,null,null,null,null,null," ",null,{"$f":"IFERROR(INDEX(CodSS[],MATCH($AC185,NomSS[],0),1),\" \")","v":" "},null,null,null," "]
[null,null,null,null,null,null,null,null,null,null,null,null,null,null,{"$f":"IFERROR(VLOOKUP($P186,TProcesos[#All],2,0),\" \")","v":" "},null,null,{"$f":"IFERROR(VLOOKUP($Q186,TDocRelacionados[#All],2,0),\" \")","v":" "},null,null,null,null,null,null,null,null,null," ",null,{"$f":"IFERROR(INDEX(CodSS[],MATCH($AC186,NomSS[],0),1),\" \")","v":" "},null,null,null," "]
[null,null,null,null,null,null,null,null,null,null,null,null,null,null,{"$f":"IFERROR(VLOOKUP($P187,TProcesos[#All],2,0),\" \")","v":" "},null,null,{"$f":"IFERROR(VLOOKUP($Q187,TDocRelacionados[#All],2,0),\" \")","v":" "},null,null,null,null,null,null,null,null,null," ",null,{"$f":"IFERROR(INDEX(CodSS[],MATCH($AC187,NomSS[],0),1),\" \")","v":" "},null,null,null," "]
[null,null,null,null,null,null,null,null,null,null,null,null,null,null,{"$f":"IFERROR(VLOOKUP($P188,TProcesos[#All],2,0),\" \")","v":" "},null,null,{"$f":"IFERROR(VLOOKUP($Q188,TDocRelacionados[#All],2,0),\" \")","v":" "},null,null,null,null,null,null,null,null,null," ",null,{"$f":"IFERROR(INDEX(CodSS[],MATCH($AC188,NomSS[],0),1),\" \")","v":" "},null,null,null," "]
[null,null,null,null,null,null,null,null,null,null,null,null,null,null,{"$f":"IFERROR(VLOOKUP($P189,TProcesos[#All],2,0),\" \")","v":" "},null,null,{"$f":"IFERROR(VLOOKUP($Q189,TDocRelacionados[#All],2,0),\" \")","v":" "},null,null,null,null,null,null,null,null,null," ",null,{"$f":"IFERROR(INDEX(CodSS[],MATCH($AC189,NomSS[],0),1),\" \")","v":" "},null,null,null," "]
[null,null,null,null,null,null,null,null,null,null,null,null,null,null,{"$f":"IFERROR(VLOOKUP($P190,TProcesos[#All],2,0),\" \")","v":" "},null,null,{"$f":"IFERROR(VLOOKUP($Q190,TDocRelacionados[#All],2,0),\" \")","v":" "},null,null,null,null,null,null,null,null,null," ",null,{"$f":"IFERROR(INDEX(CodSS[],MATCH($AC190,NomSS[],0),1),\" \")","v":" "},null,null,null," "]
[null,null,null,null,null,null,null,null,null,null,null,null,null,null,{"$f":"IFERROR(VLOOKUP($P191,TProcesos[#All],2,0),\" \")","v":" "},null,null,{"$f":"IFERROR(VLOOKUP($Q191,TDocRelacionados[#All],2,0),\" \")","v":" "},null,null,null,null,null,null,null,null,null," ",null,{"$f":"IFERROR(INDEX(CodSS[],MATCH($AC191,NomSS[],0),1),\" \")","v":" "},null,null,null," "]
[null,null,null,null,null,null,null,null,null,null,null,null,null,null,{"$f":"IFERROR(VLOOKUP($P192,TProcesos[#All],2,0),\" \")","v":" "},null,null,{"$f":"IFERROR(VLOOKUP($Q192,TDocRelacionados[#All],2,0),\" \")","v":" "},null,null,null,null,null,null,null,null,null," ",null,{"$f":"IFERROR(INDEX(CodSS[],MATCH($AC192,NomSS[],0),1),\" \")","v":" "},null,null,null," "]
[null,null,null,null,null,null,null,null,null,null,null,null,null,null,{"$f":"IFERROR(VLOOKUP($P193,TProcesos[#All],2,0),\" \")","v":" "},null,null,{"$f":"IFERROR(VLOOKUP($Q193,TDocRelacionados[#All],2,0),\" \")","v":" "},null,null,null,null,null,null,null,null,null," ",null,{"$f":"IFERROR(INDEX(CodSS[],MATCH($AC193,NomSS[],0),1),\" \")","v":" "},null,null,null," "]
[null,null,null,null,null,null,null,null,null,null,null,null,null,null,{"$f":"IFERROR(VLOOKUP($P194,TProcesos[#All],2,0),\" \")","v":" "},null,null,{"$f":"IFERROR(VLOOKUP($Q194,TDocRelacionados[#All],2,0),\" \")","v":" "},null,null,null,null,null,null,null,null,null," ",null,{"$f":"IFERROR(INDEX(CodSS[],MATCH($AC194,NomSS[],0),1),\" \")","v":" "},null,null,null," "]
[null,null,null,null,null,null,null,null,null,null,null,null,null,null,{"$f":"IFERROR(VLOOKUP($P195,TProcesos[#All],2,0),\" \")","v":" "},null,null,{"$f":"IFERROR(VLOOKUP($Q195,TDocRelacionados[#All],2,0),\" \")","v":" "},null,null,null,null,null,null,null,null,null," ",null,{"$f":"IFERROR(INDEX(CodSS[],MATCH($AC195,NomSS[],0),1),\" \")","v":" "},null,null,null," "]
[null,null,null,null,null,null,null,null,null,null,null,null,null,null,{"$f":"IFERROR(VLOOKUP($P196,TProcesos[#All],2,0),\" \")","v":" "},null,null,{"$f":"IFERROR(VLOOKUP($Q196,TDocRelacionados[#All],2,0),\" \")","v":" "},null,null,null,null,null,null,null,null,null," ",null,{"$f":"IFERROR(INDEX(CodSS[],MATCH($AC196,NomSS[],0),1),\" \")","v":" "},null,null,null," "]
[null,null,null,null,null,null,null,null,null,null,null,null,null,null,{"$f":"IFERROR(VLOOKUP($P197,TProcesos[#All],2,0),\" \")","v":" "},null,null,{"$f":"IFERROR(VLOOKUP($Q197,TDocRelacionados[#All],2,0),\" \")","v":" "},null,null,null,null,null,null,null,null,null," ",null,{"$f":"IFERROR(INDEX(CodSS[],MATCH($AC197,NomSS[],0),1),\" \")","v":" "},null,null,null," "]
[null,null,null,null,null,null,null,null,null,null,null,null,null,null,{"$f":"IFERROR(VLOOKUP($P198,TProcesos[#All],2,0),\" \")","v":" "},null,null,{"$f":"IFERROR(VLOOKUP($Q198,TDocRelacionados[#All],2,0),\" \")","v":" "},null,null,null,null,null,null,null,null,null," ",null,{"$f":"IFERROR(INDEX(CodSS[],MATCH($AC198,NomSS[],0),1),\" \")","v":" "},null,null,null," "]
[null,null,null,null,null,null,null,null,null,null,null,null,null,null,{"$f":"IFERROR(VLOOKUP($P199,TProcesos[#All],2,0),\" \")","v":" "},null,null,{"$f":"IFERROR(VLOOKUP($Q199,TDocRelacionados[#All],2,0),\" \")","v":" "},null,null,null,null,null,null,null,null,null," ",null,{"$f":"IFERROR(INDEX(CodSS[],MATCH($AC199,NomSS[],0),1),\" \")","v":" "},null,null,null," "]
[null,null,null,null,null,null,null,null,null,null,null,null,null,null,{"$f":"IFERROR(VLOOKUP($P200,TProcesos[#All],2,0),\" \")","v":" "},null,null,{"$f":"IFERROR(VLOOKUP($Q200,TDocRelacionados[#All],2,0),\" \")","v":" "},null,null,null,null,null,null,null,null,null,{"$f":"IFERROR(INDEX(CodSerieRango,MATCH($AA200,NomSeries,0),1),\" \")","v":" "},null,{"$f":"IFERROR(INDEX(CodSS[],MATCH($AC200,NomSS[],0),1),\" \")","v":" "},null,null,null," "]
[null,null,null,null,null,null,null,null,null,null,null,null,null,null,{"$f":"IFERROR(VLOOKUP($P201,TProcesos[#All],2,0),\" \")","v":" "},null,null,{"$f":"IFERROR(VLOOKUP($Q201,TDocRelacionados[#All],2,0),\" \")","v":" "},null,null,null,null,null,null,null,null,null," ",null,{"$f":"IFERROR(INDEX(CodSS[],MATCH($AC201,NomSS[],0),1),\" \")","v":" "},null,null,null," "]
[null,null,null,null,null,null,null,null,null,null,null,null,null,null,{"$f":"IFERROR(VLOOKUP($P202,TProcesos[#All],2,0),\" \")","v":" "},null,null,{"$f":"IFERROR(VLOOKUP($Q202,TDocRelacionados[#All],2,0),\" \")","v":" "},null,null,null,null,null,null,null,null,null," ",null,{"$f":"IFERROR(INDEX(CodSS[],MATCH($AC202,NomSS[],0),1),\" \")","v":" "},null,null,null," "]
[null,null,null,null,null,null,null,null,null,null,null,null,null,null,{"$f":"IFERROR(VLOOKUP($P203,TProcesos[#All],2,0),\" \")","v":" "},null,null,{"$f":"IFERROR(VLOOKUP($Q203,TDocRelacionados[#All],2,0),\" \")","v":" "},null,null,null,null,null,null,null,null,null," ",null,{"$f":"IFERROR(INDEX(CodSS[],MATCH($AC203,NomSS[],0),1),\" \")","v":" "},null,null,null," "]
[null,null,null,null,null,null,null,null,null,null,null,null,null,null,{"$f":"IFERROR(VLOOKUP($P204,TProcesos[#All],2,0),\" \")","v":" "},null,null,{"$f":"IFERROR(VLOOKUP($Q204,TDocRelacionados[#All],2,0),\" \")","v":" "},null,null,null,null,null,null,null,null,null," ",null,{"$f":"IFERROR(INDEX(CodSS[],MATCH($AC204,NomSS[],0),1),\" \")","v":" "},null,null,null," "]
[null,null,null,null,null,null,null,null,null,null,null,null,null,null,{"$f":"IFERROR(VLOOKUP($P205,TProcesos[#All],2,0),\" \")","v":" "},null,null,{"$f":"IFERROR(VLOOKUP($Q205,TDocRelacionados[#All],2,0),\" \")","v":" "},null,null,null,null,null,null,null,null,null," ",null,{"$f":"IFERROR(INDEX(CodSS[],MATCH($AC205,NomSS[],0),1),\" \")","v":" "},null,null,null," "]
[null,null,null,null,null,null,null,null,null,null,null,null,null,null,{"$f":"IFERROR(VLOOKUP($P206,TProcesos[#All],2,0),\" \")","v":" "},null,null,{"$f":"IFERROR(VLOOKUP($Q206,TDocRelacionados[#All],2,0),\" \")","v":" "},null,null,null,null,null,null,null,null,null," ",null,{"$f":"IFERROR(INDEX(CodSS[],MATCH($AC206,NomSS[],0),1),\" \")","v":" "},null,null,null," "]
[null,null,null,null,null,null,null,null,null,null,null,null,null,null,{"$f":"IFERROR(VLOOKUP($P207,TProcesos[#All],2,0),\" \")","v":" "},null,null,{"$f":"IFERROR(VLOOKUP($Q207,TDocRelacionados[#All],2,0),\" \")","v":" "},null,null,null,null,null,null,null,null,null," ",null,{"$f":"IFERROR(INDEX(CodSS[],MATCH($AC207,NomSS[],0),1),\" \")","v":" "},null,null,null," "]
[null,null,null,null,null,null,null,null,null,null,null,null,null,null,{"$f":"IFERROR(VLOOKUP($P208,TProcesos[#All],2,0),\" \")","v":" "},null,null,{"$f":"IFERROR(VLOOKUP($Q208,TDocRelacionados[#All],2,0),\" \")","v":" "},null,null,null,null,null,null,null,null,null," ",null,{"$f":"IFERROR(INDEX(CodSS[],MATCH($AC208,NomSS[],0),1),\" \")","v":" "},null,null,null," "]
[null,null,null,null,null,null,null,null,null,null,null,null,null,null,{"$f":"IFERROR(VLOOKUP($P209,TProcesos[#All],2,0),\" \")","v":" "},null,null,{"$f":"IFERROR(VLOOKUP($Q209,TDocRelacionados[#All],2,0),\" \")","v":" "},null,null,null,null,null,null,null,null,null," ",null,{"$f":"IFERROR(INDEX(CodSS[],MATCH($AC209,NomSS[],0),1),\" \")","v":" "},null,null,null," "]
[null,null,null,null,null,null,null,null,null,null,null,null,null,null,{"$f":"IFERROR(VLOOKUP($P210,TProcesos[#All],2,0),\" \")","v":" "},null,null,{"$f":"IFERROR(VLOOKUP($Q210,TDocRelacionados[#All],2,0),\" \")","v":" "},null,null,null,null,null,null,null,null,null," ",null,{"$f":"IFERROR(INDEX(CodSS[],MATCH($AC210,NomSS[],0),1),\" \")","v":" "},null,null,null," "]
[null,null,null,null,null,null,null,null,null,null,null,null,null,null,{"$f":"IFERROR(VLOOKUP($P211,TProcesos[#All],2,0),\" \")","v":" "},null,null,{"$f":"IFERROR(VLOOKUP($Q211,TDocRelacionados[#All],2,0),\" \")","v":" "},null,null,null,null,null,null,null,null,null," ",null,{"$f":"IFERROR(INDEX(CodSS[],MATCH($AC211,NomSS[],0),1),\" \")","v":" "},null,null,null," "]
[null,null,null,null,null,null,null,null,null,null,null,null,"NIVEL CENTRAL","APOYO",{"$f":"IFERROR(VLOOKUP($P212,TProcesos[#All],2,0),\" \")","v":"GJR-C"},"Gestión_Jurídica.","Procedimiento para la identificación, actualización, monitoreo y evaluación de requisitos legales.",{"$f":"IFERROR(VLOOKUP($Q212,TDocRelacionados[#All],2,0),\" \")","v":" "},null,null,"SEMIESTRUCTURADO","X","X","SI","La generación del documento es muy reciente",null,"ACTAS","10.","Actas de la Comisión Intersectorial de Gestión y Desarrollo Local del Distrito Capital",{"$f":"IFERROR(INDEX(CodSS[],MATCH($AC212,NomSS[],0),1),\" \")","v":"10.7."},"DISPONIBLE","2020-08-05",null,572,"ARCHIVO CENTRAL","X","X","X",null,null,null,"TOTAL","2020-03-06","0 a 5 años","SI","JURÍDICO O LEGAL","BOGOTÁ","SI",null,"NO","SI","NO","SI","NIVEL EDUCATIVO","TRIMESTRAL","2020-08-10",null,"SI"]
[4,4,4,4,4,4,4,4,4,4,4,4,4,4,4,4,4,4,4,4,4,4,4,4,4,4,4,4,4,4,4,4,4," ",4,4,4,4,4,4,4,4,4,4,4,4,4,4,4,4,4,4,4,4,4,4,4,4,4]

{"sheet":"Series y Subseries","index":4,"n_rows":179,"n_cols":4,"rows_kept":179,"cut":false,"hidden":false,"merged":[[170,0,172,0],[170,1,172,1],[156,0,157,0],[156,1,157,1],[159,0,162,0],[159,1,162,1],[163,0,166,0],[163,1,166,1],[120,0,122,0],[120,1,122,1],[127,0,128,0],[127,1,128,1],[129,0,155,0],[129,1,155,1],[108,0,113,0],[108,1,113,1],[114,0,116,0],[114,1,116,1],[117,0,118,0],[117,1,118,1],[61,0,62,0],[61,1,62,1],[76,0,99,0],[76,1,99,1],[100,0,107,0],[100,1,107,1],[51,0,53,0],[51,1,53,1],[54,0,57,0],[54,1,57,1],[58,0,60,0],[58,1,60,1],[1,0,3,0],[1,1,3,1],[4,0,37,0],[4,1,37,1],[45,0,47,0],[45,1,47,1],[38,1,42,1],[38,0,42,0]]}
["COD SERIE"," SERIE","COD SUBSERIE","SUBSERIE"]
[5,"ACCIONES CONSTITUCIONALES","5.1.","Acciones de Grupo"]
[null,null,"5.2.","Acciones de Tutela"]
[null,null,"5.3.","Acciones Populares"]
[10,"ACTAS ","10.1.","Actas del Comité Interno de Conciliación"]
[null,null,"10.2.","Actas de Disposición de Bienes Decomisados"]
[null,null,"10.3.","Actas de Eliminación Documental"]
[null,null,"10.4.","Actas de Juramento de Colombiano por Adopción"]
[null,null,"10.5.","Actas de la Comisión de Personal"]
[null,null,"10.6.","Actas de la Comisión Distrital para la Coordinación y Seguimiento de los Procesos Electorales"]
[null,null,"10.7.","Actas de la Comisión Intersectorial de Gestión y Desarrollo Local del Distrito Capital"]
[null,null,"10.8.","Actas de Posesión de Jueces"]
[null,null,"10.9.","Actas de Sala de Decisión "]
[null,null,"10.10.","Actas de Transferencias Primarias"]
[null,null,"10.11.","Actas de Transferencias Secundarias"]
[null,null,"10.12.","Actas del Comité Civil de Convivencia Distrital"]
[null,null,"10.13.","Actas del Comité Civil de Convivencia Local"]
[null,null,"10.14.","Actas del Comité de Contratación"]
[null,null,"10.15.","Actas del Comité de Convivencia Laboral"]
[null,null,"10.16.","Actas del Comité de Coordinación del Sistema de Control Interno"]
[null,null,"10.17.","Actas del Comité de Seguimiento a las Relaciones con el Concejo de Bogotá"]
[null,null,"10.18.","Actas del Comité de Seguimiento a las Relaciones con el Congreso de la República"]
[null,null,"10.19.","Actas del Comité Directivo"]
[null,null,"10.20.","Actas del Comité Distrital de Atención a las Víctimas de Graves Violaciones a los Derechos Humanos, Delitos de Lesa Humanidad y Crímenes de Guerra"]
[null,null,"10.21.","Actas del Comité Distrital de Libertad Religiosa"]
[null,null,"10.22.","Actas del Comité Distrital para la Lucha contra la Trata de Personas de Bogotá Distrito Capital"]
[null,null,"10.23.","Actas del Comité Institucional de Gestión y Desempeño "]
[null,null,"10.24.","Actas del Comité Interno de Conciliación "]
[null,null,"10.25.","Actas del Comité Interno de Reubicaciones"]
[null,null,"10.26.","Actas del Comité Paritario de Salud Ocupacional y Seguridad en el Trabajo "]
[null,null,"10.27.","Actas del Comité Sectorial de Gestión y Desempeño"]
[null,null,"10.28.","Actas del Comité Técnico de Sostenibilidad Contable"]
[null,null,"10.29.","Actas del Consejo Consultivo de Descentralización y Desconcentración"]
[null,null,"10.30.","Actas del Consejo Consultivo y de Concertación para los Pueblos Indígenas en Bogotá D.C."]
[null,null,"10.31.","Actas del Consejo de Alcaldes"]
[null,null,"10.32.","Actas del Consejo de Planeación Local"]
[null,null,"10.33.","Actas del Consejo Distrital de Comunidades Negras, Afrocolombianas, Raizales y Palenqueras"]
[null,null,"10.34.","Actas del Consejo Local de Gobierno "]
[15,"ACTUACIONES ADMINISTRATIVAS","15.1.","Actuaciones Administrativas de Control a Establecimientos de Comercio"]
[null,null,"15.2.","Actuaciones Administrativas de Control a Obras y Urbanismo"]
[null,null,"15.3.","Actuaciones Administrativas de Control de Tarifas en Estacionamientos Fuera de Vía"]
[null,null,"15.4.","Actuaciones Administrativas de Inspección, Vigilancia y Control en Metrología Legal"]
[null,null,"15.5.","Actuaciones Administrativas de Restitución del Espacio Público"]
[20,"ANTEPROYECTOS DE PRESUPUESTO"]
[25,"AUTOLIQUIDACIONES DE APORTES AL SISTEMA DE SEGURIDAD SOCIAL"]
[30,"CERTIFICACIONES","30.1.","Certificaciones de Sello Seguro"]
[null,null,"30.2.","Certificaciones de Propiedad Horizontal"]
[null,null,"30.3.","Certificaciones de Residencia"]
[35,"CIERRES PRESUPUESTALES"]
[40,"CIRCULARES"]
[45,"COBROS PERSUASIVOS"]
[50,"COMPROBANTES CONTABLES ","50.1.","Comprobantes de Ajuste"]
[null,null,"50.2.","Comprobantes de Egreso"]
[null,null,"50.3.","Comprobantes de Ingreso"]
[55,"COMPROBANTES DE ALMACÉN","55.1.","Comprobantes de Baja de Bienes"]
[null,null,"55.2.","Comprobantes de Ingreso de Bienes"]
[null,null,"55.3.","Comprobantes de Reintegro de Bienes"]
[null,null,"55.4.","Comprobantes de Salida de Bienes"]
[60,"CONCEPTOS","60.1.","Conceptos Jurídicos"]
[null,null,"60.2.","Conceptos Previos para Juegos Localizados de Suerte y Azar"]
[null,null,"60.3.","Conceptos Técnicos de Proyectos de Inversión"]
[65,"CONCILIACIONES","65.1.","Conciliaciones Contables"]
[null,null,"65.2.","Conciliaciones Prejudiciales"]
[70,"CONSECUTIVOS DE COMUNICACIONES OFICIALES"]
[75,"CONTRATOS"]
[80,"DECRETOS LOCALES"]
[85,"DERECHOS DE PETICIÓN"]
[90,"DESPACHOS COMISORIOS"]
[95,"HISTORIALES DE ACTIVIDADES DE AGLOMERACIÓN DE PÚBLICO"]
[100,"HISTORIALES DE AUTORIZACIÓN Y SEGUIMIENTO A CONCURSOS"]
[105,"HISTORIALES DE DELEGACIONES PARA SORTEOS, CONCURSOS Y ESPECTACULOS PÚBLICOS"]
[110,"HISTORIALES DE EQUIPO Y MAQUINARIA"]
[115,"HISTORIALES DE EQUIPOS DE CÓMPUTO"]
[120,"HISTORIALES DE INGRESO A CASAS DE REFUGIO"]
[125,"HISTORIALES DE VEHÍCULOS"]
[130,"HISTORIAS LABORALES"]
[135,"INFORMES","135.1.","Informes a Entidades de Control y Vigilancia"]
[null,null,"135.2.","Informes a Otras Entidades"]
[null,null,"135.3.","Informes Anuales de Evaluación del Sistema Distrital de Derechos Humanos"]
[null,null,"135.4.","Informes de Auditorías Internas"]
[null,null,"135.5.","Informes de Control Político del Concejo de Bogotá"]
[null,null,"135.6.","Informes de Control Político del Congreso de la República"]
[null,null,"135.7.","Informes de Control y Seguimiento a las PQRS"]
[null,null,"135.8.","Informes de Ejecución Presupuestal"]
[null,null,"135.9.","Informes de Estados Contables"]
[null,null,"135.10.","Informes de Fortalecimiento a los Pueblos Indígenas Asentados en el Distrito Capital"]
[null,null,"135.11.","Informes de Gestión"]
[null,null,"135.12.","Informes de Monitoreo de Medios"]
[null,null,"135.13.","Informes de Operativos a Espacio Público"]
[null,null,"135.14.","Informes de Operativos a Establecimientos de Comercio"]
[null,null,"135.15.","Informes de Operativos a Obras y Urbanismo"]
[null,null,"135.16.","Informes de Rendición de Cuentas"]
[null,null,"135.17.","Informes de Seguimiento a los Consejos Locales de Gobierno"]
[null,null,"135.18.","Informes de Seguimiento a Obligaciones por Pagar"]
[null,null,"135.19.","Informes de Seguimiento a Planes de Mejoramiento"]
[null,null,"135.20.","Informes de Seguimiento a Proyectos de Ley"]
[null,null,"135.21.","Informes de Seguimiento y Ejecución de la Política Pública"]
[null,null,"135.22.","Informes de Viabilidad Técnica y Jurídica a Proyectos de Acuerdo"]
[null,null,"135.23.","Informes del Banco de Documentos de Identidad Extraviados"]
[null,null,"135.24.","Informes Ejecutivos del Sistema de Control Interno"]
[140,"INSTRUMENTOS ARCHIVÍSTICOS","140.1.","Bancos Terminológicos"]
[null,null,"140.2.","Cuadros de Clasificación Documental"]
[null,null,"140.3.","Instrumentos de Descripción de Archivos"]
[null,null,"140.4.","Modelos de Requisitos"]
[null,null,"140.5.","Políticas de Gestión Documental"]
[null,null,"140.6.","Tablas de Control de Acceso"]
[null,null,"140.7.","Tablas de Retención Documental"]
[null,null,"140.8.","Tablas de Valoración Documental"]
[145,"INSTRUMENTOS DE REGISTRO Y CONTROL","145.1.","Instrumentos de Registro y Control de Aspectos Ambientales"]
[null,null,"145.2.","Instrumentos de Registro y Control de Identificación, Evaluación y Actualización de Aspectos e Impactos Ambientales"]
[null,null,"145.3.","Instrumentos de Registro y Control de los Requisitos Legales Ambientales"]
[null,null,"145.4.","Instrumentos de Registro y Control de los Requisitos Legales en Seguridad y Salud en el Trabajo"]
[null,null,"145.5.","Instrumentos de Registro y Control de Notificaciones"]
[null,null,"145.6.","Instrumentos de Registro y Control de Reparto de Expedientes"]
[150,"INSTRUMENTOS DEL SISTEMA DE GESTIÓN DE LA CALIDAD","150.1.","Cuadros de Caracterización Documental"]
[null,null,"150.2.","Listados Maestros de Documentos Internos y Externos"]
[null,null,"150.3.","Manuales de Procesos y Procedimientos"]
[155,"INVENTARIOS","155.1.","Inventarios de Bienes Inmuebles"]
[null,null,"155.2.","Inventarios de Bienes Muebles"]
[160,"LIBROS AUXILIARES DE CAJA MENOR"]
[165,"LIBROS CONTABLES ","165.1.","Libros Auxiliares"]
[null,null,"165.2.","Libros de Diario"]
[null,null,"165.3.","Libros Mayores"]
[170,"MANUALES","170.1.","Manuales de Aplicativos y Soluciones Informáticas"]
[175,"MODIFICACIONES PRESUPUESTALES"]
[180,"NÓMINA"]
[185,"ÓRDENES DE PAGOS"]
[190,"PIEZAS DE COMUNICACIÓN","190.1.","Piezas de Comunicación Externas"]
[null,null,"190.2.","Piezas de Comunicación Internas"]
[195,"PLANES","195.1.","Planes Anticorrupción y Atención al Ciudadano"]
[null,null,"195.2.","Planes de Gestión Integral de Residuos Peligrosos"]
[null,null,"195.3.","Planes Anuales de Adquisiciones"]
[null,null,"195.4.","Planes Anuales de Auditoría"]
[null,null,"195.5.","Planes de Acción de Formulación y Ejecución de la Política Pública sobre Libertad de Culto y Conciencia"]
[null,null,"195.6.","Planes de Bienestar Social"]
[null,null,"195.7.","Planes de Conservación Documental"]
[null,null,"195.8.","Planes de Contingencia de Tecnologías de la Información"]
[null,null,"195.9.","Planes de Desarrollo Local"]
[null,null,"195.10.","Planes de Emergencias Ambientales"]
[null,null,"195.11.","Planes de Evacuación y Emergencias"]
[null,null,"195.12.","Planes de Formación y Toma de Conciencia en Gestión Ambiental"]
[null,null,"195.13.","Planes de Incentivos y Estímulos"]
[null,null,"195.14.","Planes de Intervención de Seguridad y Salud en el Trabajo"]
[null,null,"195.15.","Planes de Intervención Territorial"]
[null,null,"195.16.","Planes de Manejo de Riesgos"]
[null,null,"195.17.","Planes de Mejoramiento"]
[null,null,"195.18.","Planes de Preservación Digital a Largo Plazo"]
[null,null,"195.19.","Planes de Salud Ocupacional"]
[null,null,"195.20.","Planes Estratégicos de Comunicaciones"]
[null,null,"195.21.","Planes Estratégicos de Tecnologías de Información"]
[null,null,"195.22.","Planes Estratégicos Institucionales"]
[null,null,"195.23.","Planes Estratégicos Sectoriales"]
[null,null,"195.24.","Planes Institucionales de Archivos"]
[null,null,"195.25.","Planes Institucionales de Capacitación"]
[null,null,"195.26.","Planes Institucionales de Gestión Ambiental"]
[null,null,"195.27.","Planes Integrales de Acciones Afirmativas para el Reconocimiento de la Diversidad Cultural y la Garantía de los Derechos de la Población Afrocolombiana, Negra y Palenquera"]
[200,"PROCESOS DISCIPLINARIOS","200.1.","Procesos Disciplinarios Ordinarios"]
[null,null,"200.2.","Procesos Disciplinarios Verbales"]
[205,"PROCESOS JUDICIALES "]
[210,"PROGRAMAS","210.1.","Programas Anuales Mensualizados de Caja"]
[null,null,"210.2.","Programas de Gestión Documental"]
[null,null,"210.3.","Programas Distritales de Educación en Derechos Humanos para la Paz y la Reconciliación"]
[null,null,"210.4.","Programas de Salud Ocupacional"]
[215,"PROYECTOS ","215.1.","Proyectos de Diseño, Desarrollo e Implementación de Soluciones Informáticas"]
[null,null,"215.2.","Proyectos de Iniciativas Ciudadanas para la Promoción de los Derechos Humanos"]
[null,null,"215.3.","Proyectos de Inversión"]
[null,null,"215.4.","Proyectos de Inversión Local"]
[220,"QUERELLAS "]
[225,"REGISTROS DE MEDIDAS  CORRECTIVAS"]
[230,"REGISTROS DE  REQUISITOS LEGALES"]
[235,"REGISTROS DE COMUNICACIONES OFICIALES ","235.1.","Registros de Comunicaciones Oficiales Enviadas"]
[null,null,"235.2.","Registros de Comunicaciones Oficiales Internas"]
[null,null,"235.3.","Registros de Comunicaciones Oficiales Recibidas"]
[240,"REGISTROS DE PARQUEO DE VEHÍCULOS OFICIALES"]
[245,"REGISTROS DE PERROS POTENCIALMENTE PELIGROSOS"]
[250,"REGISTROS DE SERVICIOS DE  TECNOLOGÍAS E INFORMACIÓN "]
[255,"REGISTROS DEL SERVICIO DE TRANSPORTE"]
[260,"REGISTROS PARA PARQUES DE DIVERSIONES, ATRACCIONES O DISPOSITIVOS DE ENTRETENIMIENTO Y JUEGOS LOCALIZADOS DE HABILIDAD Y DESTREZA"]
[265,"RESOLUCIONES"]

{"sheet":"SER_SUBSER","index":5,"n_rows":147,"n_cols":60,"rows_kept":147,"cut":false,"hidden":true,"merged":[]}
[null,"COD. SERIE"," SERIES",null,"COD. SUBSERIE","SUBSERIE",null,"ACCIONES_CONSTITUCIONALES","ACTAS","ACTUACIONES_ADMINISTRATIVAS","ANTEPROYECTOS_DE_PRESUPUESTO","AUTOLIQUIDACIONES_DE_APORTES_AL_ SISTEMA _DE _SEGURIDAD _SOCIAL","CERTIFICACIONES","CIERRES_PRESUPUESTALES","CIRCULARES","COBROS_PERSUASIVOS","COMPROBANTES_CONTABLES","COMPROBANTES_DE_ALMACÉN","CONCEPTOS","CONCILIACIONES","CONSECUTIVOS_DE_COMUNICACIONES_OFICIALES","CONTRATOS","DECRETOS_LOCALES","DERECHOS_DE_PETICIÓN","DESPACHOS_COMISORIOS","HISTORIALES_DE_ACTIVIDADES_DE_AGLOMERACIÓN_DE_PÚBLICO","HISTORIALES_DE_AUTORIZACIÓN_Y_SEGUIMIENTO_A_CONCURSOS","HISTORIALES_DE_DELEGACIONES_PARA_SORTEOS_CONCURSOS_Y_ESPECTACULOS_PÚBLICOS","HISTORIALES_DE_EQUIPO_Y_MAQUINARIA","HISTORIALES_DE_EQUIPOS_DE_CÓMPUTO","HISTORIALES_DE_INGRESO_A_CASAS_DE_REFUGIO","HISTORIALES_DE_VEHÍCULOS","HISTORIAS_LABORALES","INFORMES","INSTRUMENTOS_ARCHIVÍSTICOS","INSTRUMENTOS_DE_REGISTRO_Y_CONTROL","INSTRUMENTOS_DEL_SISTEMA_DE_GESTIÓN_DE_LA_CALIDAD","INVENTARIOS","LIBROS_AUXILIARES_DE_CAJA_MENOR","LIBROS_CONTABLES","MANUALES","MODIFICACIONES_PRESUPUESTALES","NÓMINA","ÓRDENES_DE_PAGOS","PIEZAS_DE_COMUNICACIÓN","PLANES","PROCESOS_DISCIPLINARIOS","PROCESOS_JUDICIALES","PROGRAMAS","PROYECTOS","QUERELLAS","REGISTROS_DE_MEDIDAS_CORRECTIVAS","REGISTROS_DE_REQUISITOS_LEGALES","REGISTROS_DE_COMUNICACIONES_OFICIALES","REGISTROS_DE_PARQUEO_DE_VEHÍCULOS_OFICIALES","REGISTROS_DE_PERROS_POTENCIALMENTE_PELIGROSOS","REGISTROS_DE_SERVICIOS_DE_TECNOLOGÍAS_E_INFORMACIÓN","REGISTROS_DEL_SERVICIO_DE_TRANSPORTE","REGISTROS_PARA_PARQUES_DE_DIVERSIONES,_ATRACCIONES_O_DISPOSITIVOS_DE_ENTRETENIMIENTO_Y_JUEGOS_LOCALIZADOS_DE_HABILIDAD_Y_DESTREZA","RESOLUCIONES"]
[null,"5.","ACCIONES_CONSTITUCIONALES",null,"5.1.","Acciones de Grupo",null,"Acciones de Grupo","Actas del Comité Interno de Conciliación","Actuaciones Administrativas de Control a Establecimientos de Comercio","-","-","Certificaciones de Sello Seguro","-","-","-","Comprobantes de Ajuste","Comprobantes de Baja de Bienes","Conceptos Jurídicos","Conciliaciones Contables","-","-","-","-","-","-","-","-","-","-","-","-","-","Informes a Entidades de Control y Vigilancia","Bancos Terminológicos","Instrumentos de Registro y Control de Aspectos Ambientales","Cuadros de Caracterización Documental","Inventarios de Bienes Inmuebles","-","Libros Auxiliares","Manuales de Aplicativos y Soluciones Informáticas","-","-","-","Piezas de Comunicación Externas","Planes Anticorrupción y Atención al Ciudadano","Procesos Disciplinarios Ordinarios","-","Programas Anuales Mensualizados de Caja","Proyectos de Diseño, Desarrollo e Implementación de Soluciones Informáticas","-","-","-","Registros de Comunicaciones Oficiales Enviadas","-","-","-","-","-","-"]
[null,"10.","ACTAS",null,"5.2.","Acciones de Tutela",null,"Acciones de Tutela","Actas de Disposición de Bienes Decomisados","Actuaciones Administrativas de Control a Obras y Urbanismo",null,null,"Certificaciones de Propiedad Horizontal",null,null,null,"Comprobantes de Egreso","Comprobantes de Ingreso de Bienes","Conceptos Previos para Juegos Localizados de Suerte y Azar","Conciliaciones Prejudiciales",null,null,null,null,null,null,null,null,null,null,null,null,null,"Informes a Otras Entidades","Cuadros de Clasificación Documental","Instrumentos de Registro y Control de Identificación, Evaluación y Actualización de Aspectos e Impactos Ambientales","Listados Maestros de Documentos Internos y Externos","Inventarios de Bienes Muebles",null,"Libros de Diario",null,null,null,null,"Piezas de Comunicación Internas","Planes de Gestión Integral de Residuos Peligrosos","Procesos Disciplinarios Verbales",null,"Programas de Gestión Documental","Proyectos de Iniciativas Ciudadanas para la Promoción de los Derechos Humanos",null,null,null,"Registros de Comunicaciones Oficiales Internas"]
[null,"15.","ACTUACIONES_ADMINISTRATIVAS",null,"5.3.","Acciones Populares",null,"Acciones Populares","Actas de Eliminación Documental","Actuaciones Administrativas de Control de Tarifas en Estacionamientos Fuera de Vía",null,null,"Certificaciones de Residencia",null,null,null,"Comprobantes de Ingreso","Comprobantes de Reintegro de Bienes","Conceptos Técnicos de Proyectos de Inversión",null,null,null,null,null,null,null,null,null,null,null,null,null,null,"Informes Anuales de Evaluación del Sistema Distrital de Derechos Humanos","Instrumentos de Descripción de Archivos","Instrumentos de Registro y Control de los Requisitos Legales Ambientales","Manuales de Procesos y Procedimientos",null,null,"Libros Mayores",null,null,null,null,null,"Planes Anuales de Adquisiciones",null,null,"Programas Distritales de Educación en Derechos Humanos para la Paz y la Reconciliación","Proyectos de Inversión",null,null,null,"Registros de Comunicaciones Oficiales Recibidas"]
[null,"20.","ANTEPROYECTOS_DE_PRESUPUESTO",null,"10.1.","Actas del Comité Interno de Conciliación",null,null,"Actas de Juramento de Colombiano por Adopción","Actuaciones Administrativas de Inspección, Vigilancia y Control en Metrología Legal",null,null,null,null,null,null,null,"Comprobantes de Salida de Bienes",null,null,null,null,null,null,null,null,null,null,null,null,null,null,null,"Informes de Auditorías Internas","Modelos de Requisitos","Instrumentos de Registro y Control de los Requisitos Legales en Seguridad y Salud en el Trabajo",null,null,null,null,null,null,null,null,null,"Planes Anuales de Auditoría",null,null,"Programas de Salud Ocupacional","Proyectos de Inversión Local"]
[null,"25.","AUTOLIQUIDACIONES_DE_APORTES_AL_SISTEMA_DE_SEGURIDAD_SOCIAL",null,"10.2.","Actas de Disposición de Bienes Decomisados",null,null,"Actas de la Comisión de Personal","Actuaciones Administrativas de Restitución del Espacio Público",null,null,null,null,null,null,null,null,null,null,null,null,null,null,null,null,null,null,null,null,null,null,null,"Informes de Control Político del Concejo de Bogotá","Políticas de Gestión Documental","Instrumentos de Registro y Control de Notificaciones",null,null,null,null,null,null,null,null,null,"Planes de Acción de Formulación y Ejecución de la Política Pública sobre Libertad de Culto y Conciencia"]
[null,"30.","CERTIFICACIONES",null,"10.3.","Actas de Eliminación Documental",null,null,"Actas de la Comisión Distrital para la Coordinación y Seguimiento de los Procesos Electorales",null,null,null,null,null,null,null,null,null,null,null,null,null,null,null,null,null,null,null,null,null,null,null,null,"Informes de Control Político del Congreso de la República","Tablas de Control de Acceso","Instrumentos de Registro y Control de Reparto de Expedientes",null,null,null,null,null,null,null,null,null,"Planes de Bienestar Social"]
[null,"35.","CIERRES_PRESUPUESTALES",null,"10.4.","Actas de Juramento de Colombiano por Adopción",null,null,"Actas de la Comisión Intersectorial de Gestión y Desarrollo Local del Distrito Capital",null,null,null,null,null,null,null,null,null,null,null,null,null,null,null,null,null,null,null,null,null,null,null,null,"Informes de Control y Seguimiento a las PQRS","Tablas de Retención Documental",null,null,null,null,null,null,null,null,null,null,"Planes de Conservación Documental"]
[null,"40.","CIRCULARES",null,"10.5.","Actas de la Comisión de Personal",null,null,"Actas de Posesión de Jueces",null,null,null,null,null,null,null,null,null,null,null,null,null,null,null,null,null,null,null,null,null,null,null,null,"Informes de Ejecución Presupuestal","Tablas de Valoración Documental",null,null,null,null,null,null,null,null,null,null,"Planes de Contingencia de Tecnologías de la Información"]
[null,"45.","COBROS_PERSUASIVOS",null,"10.6.","Actas de la Comisión Distrital para la Coordinación y Seguimiento de los Procesos Electorales",null,null,"Actas de Sala de Decisión ",null,null,null,null,null,null,null,null,null,null,null,null,null,null,null,null,null,null,null,null,null,null,null,null,"Informes de Estados Contables",null,null,null,null,null,null,null,null,null,null,null,"Planes de Desarrollo Local"]
[null,"50.","COMPROBANTES_CONTABLES",null,"10.7.","Actas de la Comisión Intersectorial de Gestión y Desarrollo Local del Distrito Capital",null,null,"Actas de Transferencias Primarias",null,null,null,null,null,null,null,null,null,null,null,null,null,null,null,null,null,null,null,null,null,null,null,null,"Informes de Fortalecimiento a los Pueblos Indígenas Asentados en el Distrito Capital",null,null,null,null,null,null,null,null,null,null,null,"Planes de Emergencias Ambientales"]
[null,"55.","COMPROBANTES_DE_ALMACÉN",null,"10.8.","Actas de Posesión de Jueces",null,null,"Actas de Transferencias Secundarias",null,null,null,null,null,null,null,null,null,null,null,null,null,null,null,null,null,null,null,null,null,null,null,null,"Informes de Gestión",null,null,null,null,null,null,null,null,null,null,null,"Planes de Evacuación y Emergencias"]
[null,"60.","CONCEPTOS",null,"10.9.","Actas de Sala de Decisión ",null,null,"Actas del Comité Civil de Convivencia Distrital",null,null,null,null,null,null,null,null,null,null,null,null,null,null,null,null,null,null,null,null,null,null,null,null,"Informes de Monitoreo de Medios",null,null,null,null,null,null,null,null,null,null,null,"Planes de Formación y Toma de Conciencia en Gestión Ambiental"]
[null,"65.","CONCILIACIONES",null,"10.10.","Actas de Transferencias Primarias",null,null,"Actas del Comité Civil de Convivencia Local",null,null,null,null,null,null,null,null,null,null,null,null,null,null,null,null,null,null,null,null,null,null,null,null,"Informes de Operativos a Espacio Público",null,null,null,null,null,null,null,null,null,null,null,"Planes de Incentivos y Estímulos"]
[null,"70.","CONSECUTIVOS_DE_COMUNICACIONES_OFICIALES",null,"10.11.","Actas de Transferencias Secundarias",null,null,"Actas del Comité de Contratación",null,null,null,null,null,null,null,null,null,null,null,null,null,null,null,null,null,null,null,null,null,null,null,null,"Informes de Operativos a Establecimientos de Comercio",null,null,null,null,null,null,null,null,null,null,null,"Planes de Intervención de Seguridad y Salud en el Trabajo"]
[null,"75.","CONTRATOS",null,"10.12.","Actas del Comité Civil de Convivencia Distrital",null,null,"Actas del Comité de Convivencia Laboral",null,null,null,null,null,null,null,null,null,null,null,null,null,null,null,null,null,null,null,null,null,null,null,null,"Informes de Operativos a Obras y Urbanismo",null,null,null,null,null,null,null,null,null,null,null,"Planes de Intervención Territorial"]
[null,"80.","DECRETOS_LOCALES",null,"10.13.","Actas del Comité Civil de Convivencia Local",null,null,"Actas del Comité de Coordinación del Sistema de Control Interno",null,null,null,null,null,null,null,null,null,null,null,null,null,null,null,null,null,null,null,null,null,null,null,null,"Informes de Rendición de Cuentas",null,null,null,null,null,null,null,null,null,null,null,"Planes de Manejo de Riesgos"]
[null,"85.","DERECHOS_DE_PETICIÓN",null,"10.14.","Actas del Comité de Contratación",null,null,"Actas del Comité de Seguimiento a las Relaciones con el Concejo de Bogotá",null,null,null,null,null,null,null,null,null,null,null,null,null,null,null,null,null,null,null,null,null,null,null,null,"Informes de Seguimiento a los Consejos Locales de Gobierno",null,null,null,null,null,null,null,null,null,null,null,"Planes de Mejoramiento"]
[null,"90.","DESPACHOS_COMISORIOS",null,"10.15.","Actas del Comité de Convivencia Laboral",null,null,"Actas del Comité de Seguimiento a las Relaciones con el Congreso de la República",null,null,null,null,null,null,null,null,null,null,null,null,null,null,null,null,null,null,null,null,null,null,null,null,"Informes de Seguimiento a Obligaciones por Pagar",null,null,null,null,null,null,null,null,null,null,null,"Planes de Preservación Digital a Largo Plazo"]
[null,"95.","HISTORIALES_DE_ACTIVIDADES_DE_AGLOMERACIÓN_DE_PÚBLICO",null,"10.16.","Actas_del_Comité_de_Coordinación_del_Sistema_de_Control_Interno",null,null,"Actas del Comité Directivo",null,null,null,null,null,null,null,null,null,null,null,null,null,null,null,null,null,null,null,null,null,null,null,null,"Informes de Seguimiento a Planes de Mejoramiento",null,null,null,null,null,null,null,null,null,null,null,"Planes de Salud Ocupacional"]
[null,"100.","HISTORIALES_DE_AUTORIZACIÓN_Y_SEGUIMIENTO_A_CONCURSOS",null,"10.17.","Actas del Comité de Seguimiento a las Relaciones con el Concejo de Bogotá",null,null,"Actas del Comité Distrital de Atención a las Víctimas de Graves Violaciones a los Derechos Humanos, Delitos de Lesa Humanidad y Crímenes de Guerra",null,null,null,null,null,null,null,null,null,null,null,null,null,null,null,null,null,null,null,null,null,null,null,null,"Informes de Seguimiento a Proyectos de Ley",null,null,null,null,null,null,null,null,null,null,null,"Planes Estratégicos de Comunicaciones"]
[null,"105.","HISTORIALES_DE_DELEGACIONES_PARA_SORTEOS_CONCURSOS_Y_ESPECTACULOS_PÚBLICOS",null,"10.18.","Actas del Comité de Seguimiento a las Relaciones con el Congreso de la República",null,null,"Actas del Comité Distrital de Libertad Religiosa",null,null,null,null,null,null,null,null,null,null,null,null,null,null,null,null,null,null,null,null,null,null,null,null,"Informes de Seguimiento y Ejecución de la Política Pública",null,null,null,null,null,null,null,null,null,null,null,"Planes Estratégicos de Tecnologías de Información"]
[null,"110.","HISTORIALES_DE_EQUIPO_Y_MAQUINARIA",null,"10.19.","Actas del Comité Directivo",null,null,"Actas del Comité Distrital para la Lucha contra la Trata de Personas de Bogotá Distrito Capital",null,null,null,null,null,null,null,null,null,null,null,null,null,null,null,null,null,null,null,null,null,null,null,null,"Informes de Viabilidad Técnica y Jurídica a Proyectos de Acuerdo",null,null,null,null,null,null,null,null,null,null,null,"Planes Estratégicos Institucionales"]
[null,"115.","HISTORIALES_DE_EQUIPOS_DE_CÓMPUTO",null,"10.20.","Actas del Comité Distrital de Atención a las Víctimas de Graves Violaciones a los Derechos Humanos, Delitos de Lesa Humanidad y Crímenes de Guerra",null,null,"Actas del Comité Institucional de Gestión y Desempeño ",null,null,null,null,null,null,null,null,null,null,null,null,null,null,null,null,null,null,null,null,null,null,null,null,"Informes del Banco de Documentos de Identidad Extraviados",null,null,null,null,null,null,null,null,null,null,null,"Planes Estratégicos Sectoriales"]
[null,"120.","HISTORIALES_DE_INGRESO_A_CASAS_DE_REFUGIO",null,"10.21.","Actas del Comité Distrital de Libertad Religiosa",null,null,"Actas del Comité Interno de Conciliación ",null,null,null,null,null,null,null,null,null,null,null,null,null,null,null,null,null,null,null,null,null,null,null,null,"Informes Ejecutivos del Sistema de Control Interno",null,null,null,null,null,null,null,null,null,null,null,"Planes Institucionales de Archivos"]
[null,"125.","HISTORIALES_DE_VEHÍCULOS",null,"10.22.","Actas del Comité Distrital para la Lucha contra la Trata de Personas de Bogotá Distrito Capital",null,null,"Actas del Comité Interno de Reubicaciones",null,null,null,null,null,null,null,null,null,null,null,null,null,null,null,null,null,null,null,null,null,null,null,null,null,null,null,null,null,null,null,null,null,null,null,null,"Planes Institucionales de Capacitación"]
[null,"130.","HISTORIAS_LABORALES",null,"10.23.","Actas del Comité Institucional de Gestión y Desempeño ",null,null,"Actas del Comité Paritario de Salud Ocupacional y Seguridad en el Trabajo ",null,null,null,null,null,null,null,null,null,null,null,null,null,null,null,null,null,null,null,null,null,null,null,null,null,null,null,null,null,null,null,null,null,null,null,null,"Planes Institucionales de Gestión Ambiental"]
[null,"135.","INFORMES",null,"10.24.","Actas del Comité Interno de Conciliación ",null,null,"Actas del Comité Sectorial de Gestión y Desempeño",null,null,null,null,null,null,null,null,null,null,null,null,null,null,null,null,null,null,null,null,null,null,null,null,null,null,null,null,null,null,null,null,null,null,null,null,"Planes Integrales de Acciones Afirmativas para el Reconocimiento de la Diversidad Cultural y la Garantía de los Derechos de la Población Afrocolombiana, Negra y Palenquera"]
[null,"140.","INSTRUMENTOS_ARCHIVÍSTICOS",null,"10.25.","Actas del Comité Interno de Reubicaciones",null,null,"Actas del Comité Técnico de Sostenibilidad Contable"]
[null,"145.","INSTRUMENTOS_DE_REGISTRO_Y_CONTROL",null,"10.26.","Actas del Comité Paritario de Salud Ocupacional y Seguridad en el Trabajo ",null,null,"Actas del Consejo Consultivo de Descentralización y Desconcentración"]
[null,"150.","INSTRUMENTOS_DEL_SISTEMA_DE_GESTIÓN_DE_LA_CALIDAD",null,"10.27.","Actas del Comité Sectorial de Gestión y Desempeño",null,null,"Actas del Consejo Consultivo y de Concertación para los Pueblos Indígenas en Bogotá D.C."]
[null,"155.","INVENTARIOS",null,"10.28.","Actas del Comité Técnico de Sostenibilidad Contable",null,null,"Actas del Consejo de Alcaldes"]
[null,"160.","LIBROS_AUXILIARES_DE_CAJA_MENOR",null,"10.29.","Actas del Consejo Consultivo de Descentralización y Desconcentración",null,null,"Actas del Consejo de Planeación Local"]
[null,"165.","LIBROS_CONTABLES",null,"10.30.","Actas del Consejo Consultivo y de Concertación para los Pueblos Indígenas en Bogotá D.C.",null,null,"Actas del Consejo Distrital de Comunidades Negras, Afrocolombianas, Raizales y Palenqueras"]
[null,"170.","MANUALES",null,"10.31.","Actas del Consejo de Alcaldes",null,null,"Actas del Consejo Local de Gobierno "]
[null,"175.","MODIFICACIONES_PRESUPUESTALES",null,"10.32.","Actas del Consejo de Planeación Local"]
[null,"180.","NÓMINA",null,"10.33.","Actas del Consejo Distrital de Comunidades Negras, Afrocolombianas, Raizales y Palenqueras"]
[null,"185.","ÓRDENES_DE_PAGOS",null,"10.34.","Actas del Consejo Local de Gobierno "]
[null,"190.","PIEZAS_DE_COMUNICACIÓN",null,"15.1.","Actuaciones Administrativas de Control a Establecimientos de Comercio"]
[null,"195.","PLANES",null,"15.2.","Actuaciones Administrativas de Control a Obras y Urbanismo"]
[null,"200.","PROCESOS_DISCIPLINARIOS",null,"15.3.","Actuaciones Administrativas de Control de Tarifas en Estacionamientos Fuera de Vía"]
[null,"205.","PROCESOS_JUDICIALES",null,"15.4.","Actuaciones Administrativas de Inspección, Vigilancia y Control en Metrología Legal"]
[null,"210.","PROGRAMAS",null,"15.5.","Actuaciones Administrativas de Restitución del Espacio Público"]
[null,"215.","PROYECTOS",null,"30.1.","Certificaciones de Sello Seguro"]
[null,"220.","QUERELLAS",null,"30.2.","Certificaciones de Propiedad Horizontal"]
[null,"225.","REGISTROS_DE_MEDIDAS_CORRECTIVAS",null,"30.3.","Certificaciones de Residencia"]
[null,"230.","REGISTROS_DE_REQUISITOS_LEGALES",null,"50.1.","Comprobantes de Ajuste"]
[null,"235.","REGISTROS_DE_COMUNICACIONES_OFICIALES",null,"50.2.","Comprobantes de Egreso"]
[null,"240.","REGISTROS_DE_PARQUEO_DE_VEHÍCULOS_OFICIALES",null,"50.3.","Comprobantes de Ingreso"]
[null,"245.","REGISTROS_DE_PERROS_POTENCIALMENTE_PELIGROSOS",null,"55.1.","Comprobantes de Baja de Bienes"]
[null,"250.","REGISTROS_DE_SERVICIOS_DE_TECNOLOGÍAS_E_INFORMACIÓN",null,"55.2.","Comprobantes de Ingreso de Bienes"]
[null,"255.","REGISTROS_DEL_SERVICIO_DE_TRANSPORTE",null,"55.3.","Comprobantes de Reintegro de Bienes"]
[null,"260.","REGISTROS_PARA_PARQUES_DE_DIVERSIONES,_ATRACCIONES_O_DISPOSITIVOS_DE_ENTRETENIMIENTO_Y_JUEGOS_LOCALIZADOS_DE_HABILIDAD_Y_DESTREZA",null,"55.4.","Comprobantes de Salida de Bienes"]
[null,"265.","RESOLUCIONES",null,"60.1.","Conceptos Jurídicos"]
[null,null,null,null,"60.2.","Conceptos Previos para Juegos Localizados de Suerte y Azar"]
[null,null,null,null,"60.3.","Conceptos Técnicos de Proyectos de Inversión"]
[null,null,null,null,"65.1.","Conciliaciones Contables"]
[null,null,null,null,"65.2.","Conciliaciones Prejudiciales"]
[null,null,null,null,"135.1.","Informes a Entidades de Control y Vigilancia"]
[null,null,null,null,"135.2.","Informes a Otras Entidades"]
[null,null,null,null,"135.3.","Informes Anuales de Evaluación del Sistema Distrital de Derechos Humanos"]
[null,null,null,null,"135.4.","Informes de Auditorías Internas"]
[null,null,null,null,"135.5.","Informes de Control Político del Concejo de Bogotá"]
[null,null,null,null,"135.6.","Informes de Control Político del Congreso de la República"]
[null,null,null,null,"135.7.","Informes de Control y Seguimiento a las PQRS"]
[null,null,null,null,"135.8.","Informes de Ejecución Presupuestal"]
[null,null,null,null,"135.9.","Informes de Estados Contables"]
[null,null,null,null,"135.10.","Informes de Fortalecimiento a los Pueblos Indígenas Asentados en el Distrito Capital"]
[null,null,null,null,"135.11.","Informes de Gestión"]
[null,null,null,null,"135.12.","Informes de Monitoreo de Medios"]
[null,null,null,null,"135.13.","Informes de Operativos a Espacio Público"]
[null,null,null,null,"135.14.","Informes de Operativos a Establecimientos de Comercio"]
[null,null,null,null,"135.15.","Informes de Operativos a Obras y Urbanismo"]
[null,null,null,null,"135.16.","Informes de Rendición de Cuentas"]
[null,null,null,null,"135.17.","Informes de Seguimiento a los Consejos Locales de Gobierno"]
[null,null,null,null,"135.18.","Informes de Seguimiento a Obligaciones por Pagar"]
[null,null,null,null,"135.19.","Informes de Seguimiento a Planes de Mejoramiento"]
[null,null,null,null,"135.20.","Informes de Seguimiento a Proyectos de Ley"]
[null,null,null,null,"135.21.","Informes de Seguimiento y Ejecución de la Política Pública"]
[null,null,null,null,"135.22.","Informes de Viabilidad Técnica y Jurídica a Proyectos de Acuerdo"]
[null,null,null,null,"135.23.","Informes del Banco de Documentos de Identidad Extraviados"]
[null,null,null,null,"135.24.","Informes Ejecutivos del Sistema de Control Interno"]
[null,null,null,null,"140.1.","Bancos Terminológicos"]
[null,null,null,null,"140.2.","Cuadros de Clasificación Documental"]
[null,null,null,null,"140.3.","Instrumentos de Descripción de Archivos"]
[null,null,null,null,"140.4.","Modelos de Requisitos"]
[null,null,null,null,"140.5.","Políticas de Gestión Documental"]
[null,null,null,null,"140.6.","Tablas de Control de Acceso"]
[null,null,null,null,"140.7.","Tablas de Retención Documental"]
[null,null,null,null,"140.8.","Tablas de Valoración Documental"]
[null,null,null,null,"145.1.","Instrumentos de Registro y Control de Aspectos Ambientales"]
[null,null,null,null,"145.2.","Instrumentos de Registro y Control de Identificación, Evaluación y Actualización de Aspectos e Impactos Ambientales"]
[null,null,null,null,"145.3.","Instrumentos de Registro y Control de los Requisitos Legales Ambientales"]
[null,null,null,null,"145.4.","Instrumentos de Registro y Control de los Requisitos Legales en Seguridad y Salud en el Trabajo"]
[null,null,null,null,"145.5.","Instrumentos de Registro y Control de Notificaciones"]
[null,null,null,null,"145.6.","Instrumentos de Registro y Control de Reparto de Expedientes"]
[null,null,null,null,"150.1.","Cuadros de Caracterización Documental"]
[null,null,null,null,"150.2.","Listados Maestros de Documentos Internos y Externos"]
[null,null,null,null,"150.3.","Manuales de Procesos y Procedimientos"]
[null,null,null,null,"155.1.","Inventarios de Bienes Inmuebles"]
[null,null,null,null,"155.2.","Inventarios de Bienes Muebles"]
[null,null,null,null,"165.1.","Libros Auxiliares"]
[null,null,null,null,"165.2.","Libros de Diario"]
[null,null,null,null,"165.3.","Libros Mayores"]
[null,null,null,null,"170.1.","Manuales de Aplicativos y Soluciones Informáticas"]
[null,null,null,null,"190.1.","Piezas de Comunicación Externas"]
[null,null,null,null,"190.2.","Piezas de Comunicación Internas"]
[null,null,null,null,"195.1.","Planes Anticorrupción y Atención al Ciudadano"]
[null,null,null,null,"195.2.","Planes de Gestión Integral de Residuos Peligrosos"]
[null,null,null,null,"195.3.","Planes Anuales de Adquisiciones"]
[null,null,null,null,"195.4.","Planes Anuales de Auditoría"]
[null,null,null,null,"195.5.","Planes de Acción de Formulación y Ejecución de la Política Pública sobre Libertad de Culto y Conciencia"]
[null,null,null,null,"195.6.","Planes de Bienestar Social"]
[null,null,null,null,"195.7.","Planes de Conservación Documental"]
[null,null,null,null,"195.8.","Planes de Contingencia de Tecnologías de la Información"]
[null,null,null,null,"195.9.","Planes de Desarrollo Local"]
[null,null,null,null,"195.10.","Planes de Emergencias Ambientales"]
[null,null,null,null,"195.11.","Planes de Evacuación y Emergencias"]
[null,null,null,null,"195.12.","Planes de Formación y Toma de Conciencia en Gestión Ambiental"]
[null,null,null,null,"195.13.","Planes de Incentivos y Estímulos"]
[null,null,null,null,"195.14.","Planes de Intervención de Seguridad y Salud en el Trabajo"]
[null,null,null,null,"195.15.","Planes de Intervención Territorial"]
[null,null,null,null,"195.16.","Planes de Manejo de Riesgos"]
[null,null,null,null,"195.17.","Planes de Mejoramiento"]
[null,null,null,null,"195.18.","Planes de Preservación Digital a Largo Plazo"]
[null,null,null,null,"195.19.","Planes de Salud Ocupacional"]
[null,null,null,null,"195.20.","Planes Estratégicos de Comunicaciones"]
[null,null,null,null,"195.21.","Planes Estratégicos de Tecnologías de Información"]
[null,null,null,null,"195.22.","Planes Estratégicos Institucionales"]
[null,null,null,null,"195.23.","Planes Estratégicos Sectoriales"]
[null,null,null,null,"195.24.","Planes Institucionales de Archivos"]
[null,null,null,null,"195.25.","Planes Institucionales de Capacitación"]
[null,null,null,null,"195.26.","Planes Institucionales de Gestión Ambiental"]
[null,null,null,null,"195.27.","Planes Integrales de Acciones Afirmativas para el Reconocimiento de la Diversidad Cultural y la Garantía de los Derechos de la Población Afrocolombiana, Negra y Palenquera"]
[null,null,null,null,"200.1.","Procesos Disciplinarios Ordinarios"]
[null,null,null,null,"200.2.","Procesos Disciplinarios Verbales"]
[null,null,null,null,"210.1.","Programas Anuales Mensualizados de Caja"]
[null,null,null,null,"210.2.","Programas de Gestión Documental"]
[null,null,null,null,"210.3.","Programas Distritales de Educación en Derechos Humanos para la Paz y la Reconciliación"]
[null,null,null,null,"210.4.","Programas de Salud Ocupacional"]
[null,null,null,null,"215.1.","Proyectos de Diseño, Desarrollo e Implementación de Soluciones Informáticas"]
[null,null,null,null,"215.2.","Proyectos de Iniciativas Ciudadanas para la Promoción de los Derechos Humanos"]
[null,null,null,null,"215.3.","Proyectos de Inversión"]
[null,null,null,null,"215.4.","Proyectos de Inversión Local"]
[null,null,null,null,"235.1.","Registros de Comunicaciones Oficiales Enviadas"]
[null,null,null,null,"235.2.","Registros de Comunicaciones Oficiales Internas"]
[null,null,null,null,"235.3.","Registros de Comunicaciones Oficiales Recibidas"]

{"sheet":"DEPENDENCIAS","index":6,"n_rows":189,"n_cols":6,"rows_kept":189,"cut":false,"hidden":true,"merged":[]}
["CodDep","Dependencia",null,null,"CodDep","Dependencia"]
[181,"AGLOMERACIONES - DIRECCIÓN JURÍDICA",null,null,100,"DESPACHO DEL SECRETARIO DE GOBIERNO"]
[996,"ANULACIONES",null,null,110,"CONSEJO DE JUSTICIA"]
[423,"ARCHIVO CENTRAL",null,null,130,"OFICINA ASESORA DE PLANEACIÓN"]
[999,"ARCHIVO DE DOCUMENTOS",null,null,140,"OFICINA ASESORA DE COMUNICACIONES"]
[652,"ÁREA DE GESTIÓN DE DESARROLLO LOCAL ANTONIO NARIÑO",null,null,150,"OFICINA DE CONTROL INTERNO"]
[622,"ÁREA DE GESTIÓN DE DESARROLLO LOCAL BARRIOS UNIDOS",null,null,160,"OFICINA DE ASUNTOS DISCIPLINARIOS"]
[572,"ÁREA DE GESTIÓN DE DESARROLLO LOCAL BOSA",null,null,161,"ASUNTOS DISCIPLINARIOS - Comisionado 1"]
[672,"ÁREA DE GESTIÓN DE DESARROLLO LOCAL CANDELARIA",null,null,162,"ASUNTOS DISCIPLINARIOS - Comisionado 2"]
[522,"ÁREA DE GESTIÓN DE DESARROLLO LOCAL CHAPINERO",null,null,163,"ASUNTOS DISCIPLINARIOS - Comisionado 3"]
[692,"ÁREA DE GESTIÓN DE DESARROLLO LOCAL CIUDAD BOLIVAR",null,null,164,"ASUNTOS DISCIPLINARIOS - Comisionado 4"]
[602,"ÁREA DE GESTIÓN DE DESARROLLO LOCAL ENGATIVÁ",null,null,165,"ASUNTOS DISCIPLINARIOS - Comisionado 5"]
[592,"ÁREA DE GESTIÓN DE DESARROLLO LOCAL FONTIBÓN",null,null,166,"ASUNTOS DISCIPLINARIOS - Comisionado 6"]
[582,"ÁREA DE GESTIÓN DE DESARROLLO LOCAL KENNEDY",null,null,167,"ASUNTOS DISCIPLINARIOS - Comisionado 7"]
[642,"ÁREA DE GESTIÓN DE DESARROLLO LOCAL MÁRTIRES",null,null,168,"ASUNTOS DISCIPLINARIOS - Comisionado 8"]
[662,"ÁREA DE GESTIÓN DE DESARROLLO LOCAL PUENTE ARANDA",null,null,169,"ASUNTOS DISCIPLINARIOS - Comisionado 9"]
[682,"ÁREA DE GESTIÓN DE DESARROLLO LOCAL RAFAEL URIBE URIBE",null,null,170,"DIRECCIÓN DE RELACIONES POLÍTICAS"]
[542,"ÁREA DE GESTIÓN DE DESARROLLO LOCAL SAN CRISTÓBAL",null,null,180,"DIRECCIÓN JURÍDICA"]
[532,"ÁREA DE GESTIÓN DE DESARROLLO LOCAL SANTAFÉ",null,null,181,"AGLOMERACIONES - DIRECCIÓN JURÍDICA"]
[612,"ÁREA DE GESTIÓN DE DESARROLLO LOCAL SUBA",null,null,190,"ASUNTOS DISCIPLINARIOS - Comisionado 10"]
[702,"ÁREA DE GESTIÓN DE DESARROLLO LOCAL SUMAPAZ",null,null,191,"ASUNTOS DISCIPLINARIOS - Comisionado 11"]
[632,"ÁREA DE GESTIÓN DE DESARROLLO LOCAL TEUSAQUILLO",null,null,192,"ASUNTOS DISCIPLINARIOS - Comisionado 12"]
[562,"ÁREA DE GESTIÓN DE DESARROLLO LOCAL TUNJUELITO",null,null,193,"ASUNTOS DISCIPLINARIOS - Comisionado 13"]
[512,"ÁREA DE GESTIÓN DE DESARROLLO LOCAL USAQUÉN",null,null,194,"ASUNTOS DISCIPLINARIOS - Comisionado 14"]
[552,"ÁREA DE GESTIÓN DE DESARROLLO LOCAL USME",null,null,195,"ASUNTOS DISCIPLINARIOS - Comisionado 15"]
[654,"ÁREA DE GESTIÓN POLICIVA INSPECCIONES ANTONIO NARIÑO",null,null,196,"ASUNTOS DISCIPLINARIOS - Comisionado 16"]
[624,"ÁREA DE GESTIÓN POLICIVA INSPECCIONES BARRIOS UNIDOS",null,null,197,"ASUNTOS DISCIPLINARIOS - Comisionado 17"]
[574,"ÁREA DE GESTIÓN POLICIVA INSPECCIONES BOSA",null,null,200,"SUBSECRETARIA DE GESTIÓN LOCAL"]
[674,"ÁREA DE GESTIÓN POLICIVA INSPECCIONES CANDELARIA",null,null,210,"DIRECCIÓN PARA LA GESTIÓN DEL DESARROLLO LOCAL"]
[524,"ÁREA DE GESTIÓN POLICIVA INSPECCIONES CHAPINERO",null,null,220,"DIRECCIÓN PARA LA GESTIÓN POLICIVA"]
[694,"ÁREA DE GESTIÓN POLICIVA INSPECCIONES CIUDAD BOLIVAR",null,null,221,"DIRECCIÓN PARA LA GESTIÓN POLICIVA  - JACD"]
[604,"ÁREA DE GESTIÓN POLICIVA INSPECCIONES ENGATIVÁ",null,null,222,"GRUPO COMPARENDO AMBIENTAL - DIRECCIÓN PARA LA GESTIÓN POLICIVA"]
[594,"ÁREA DE GESTIÓN POLICIVA INSPECCIONES FONTIBÓN",null,null,223,"INSPECCIONES ANTENCIÓN PRIORITARIA"]
[584,"ÁREA DE GESTIÓN POLICIVA INSPECCIONES KENNEDY",null,null,231,"INSPECCIONES CTP - RADICACIÓN"]
[644,"ÁREA DE GESTIÓN POLICIVA INSPECCIONES MÁRTIRES",null,null,232,"INSPECTORES CTP TURNO 1"]
[664,"ÁREA DE GESTIÓN POLICIVA INSPECCIONES PUENTE ARANDA",null,null,233,"INSPECTORES CTP TURNO 2"]
[684,"ÁREA DE GESTIÓN POLICIVA INSPECCIONES RAFAEL URIBE URIBE",null,null,234,"INSPECTORES CTP TURNO 3"]
[544,"ÁREA DE GESTIÓN POLICIVA INSPECCIONES SAN CRISTÓBAL",null,null,235,"INSPECTORES CTP TURNO 4"]
[534,"ÁREA DE GESTIÓN POLICIVA INSPECCIONES SANTAFÉ",null,null,300,"SUBSECRETARIA PARA LA GOBERNABILIDAD Y LA GARANTÍA DE DERECHOS"]
[614,"ÁREA DE GESTIÓN POLICIVA INSPECCIONES SUBA",null,null,310,"DIRECCIÓN DE DERECHOS HUMANOS"]
[704,"ÁREA DE GESTIÓN POLICIVA INSPECCIONES SUMAPAZ",null,null,320,"DIRECCIÓN DE CONVIVENCIA Y DIALOGO SOCIAL"]
[634,"ÁREA DE GESTIÓN POLICIVA INSPECCIONES TEUSAQUILLO",null,null,330,"SUBDIRECCIÓN DE ASUNTOS DE LIBERTAD RELIGIOSA Y DE CONCIENCIA"]
[564,"ÁREA DE GESTIÓN POLICIVA INSPECCIONES TUNJUELITO",null,null,340,"SUBDIRECCIÓN DE ASUNTOS ETNICOS"]
[514,"ÁREA DE GESTIÓN POLICIVA INSPECCIONES USAQUÉN",null,null,400,"SUBSECRETARIA DE GESTIÓN  INSTITUCIONAL"]
[554,"ÁREA DE GESTIÓN POLICIVA INSPECCIONES USME",null,null,410,"DIRECCIÓN DE GESTIÓN DEL TALENTO HUMANO"]
[653,"ÁREA DE GESTIÓN POLICIVA JURÍDICA ANTONIO NARIÑO",null,null,411,"COMITÉ DE CONVIVENCIA LABORAL"]
[623,"ÁREA DE GESTIÓN POLICIVA JURÍDICA BARRIOS UNIDOS",null,null,412,"COMISIÓN DE PERSONAL"]
[573,"ÁREA DE GESTIÓN POLICIVA JURÍDICA BOSA",null,null,420,"DIRECCIÓN ADMINISTRATIVA"]
[673,"ÁREA DE GESTIÓN POLICIVA JURÍDICA CANDELARIA",null,null,421,"CDI NIVEL CENTRAL"]
[523,"ÁREA DE GESTIÓN POLICIVA JURÍDICA CHAPINERO",null,null,422,"PROYECTO GESTIÓN DOCUMENTAL"]
[693,"ÁREA DE GESTIÓN POLICIVA JURÍDICA CIUDAD BOLIVAR",null,null,423,"ARCHIVO CENTRAL"]
[603,"ÁREA DE GESTIÓN POLICIVA JURÍDICA ENGATIVÁ",null,null,430,"DIRECCIÓN FINANCIERA"]
[593,"ÁREA DE GESTIÓN POLICIVA JURÍDICA FONTIBÓN",null,null,440,"DIRECCIÓN DE TECNOLOGÍAS E INFORMACIÓN"]
[583,"ÁREA DE GESTIÓN POLICIVA JURÍDICA KENNEDY",null,null,450,"DIRECCIÓN DE CONTRATACIÓN"]
[643,"ÁREA DE GESTIÓN POLICIVA JURÍDICA MÁRTIRES",null,null,460,"OFICINA DE ATENCIÓN A LA CIUDADANÍA"]
[663,"ÁREA DE GESTIÓN POLICIVA JURÍDICA PUENTE ARANDA",null,null,461,"SUPERCADE AMÉRICAS"]
[683,"ÁREA DE GESTIÓN POLICIVA JURÍDICA RAFAEL URIBE URIBE",null,null,462,"SUPERCADE FONTIBÓN"]
[543,"ÁREA DE GESTIÓN POLICIVA JURÍDICA SAN CRISTÓBAL",null,null,463,"SUPERCADE SUBA"]
[533,"ÁREA DE GESTIÓN POLICIVA JURÍDICA SANTAFÉ",null,null,464,"SUPERCADE CAD"]
[613,"ÁREA DE GESTIÓN POLICIVA JURÍDICA SUBA",null,null,465,"SUPERCADE ENGATIVÁ"]
[703,"ÁREA DE GESTIÓN POLICIVA JURÍDICA SUMAPAZ",null,null,466,"SUPERCADE BOSA"]
[633,"ÁREA DE GESTIÓN POLICIVA JURÍDICA TEUSAQUILLO",null,null,510,"DESPACHO - ALCALDÍA LOCAL DE USAQUÉN"]
[563,"ÁREA DE GESTIÓN POLICIVA JURÍDICA TUNJUELITO",null,null,511,"CDI USAQUÉN"]
[513,"ÁREA DE GESTIÓN POLICIVA JURÍDICA USAQUÉN",null,null,512,"ÁREA DE GESTIÓN DE DESARROLLO LOCAL USAQUÉN"]
[553,"ÁREA DE GESTIÓN POLICIVA JURÍDICA USME",null,null,513,"ÁREA DE GESTIÓN POLICIVA JURÍDICA USAQUÉN"]
[161,"ASUNTOS DISCIPLINARIOS - Comisionado 1",null,null,514,"ÁREA DE GESTIÓN POLICIVA INSPECCIONES USAQUÉN"]
[190,"ASUNTOS DISCIPLINARIOS - Comisionado 10",null,null,515,"OFICINA DE ATENCIÓN A LA CIUDADANÍA USAQUÉN"]
[191,"ASUNTOS DISCIPLINARIOS - Comisionado 11",null,null,520,"DESPACHO - ALCALDÍA LOCAL DE CHAPINERO"]
[192,"ASUNTOS DISCIPLINARIOS - Comisionado 12",null,null,521,"CDI CHAPINERO"]
[193,"ASUNTOS DISCIPLINARIOS - Comisionado 13",null,null,522,"ÁREA DE GESTIÓN DE DESARROLLO LOCAL CHAPINERO"]
[194,"ASUNTOS DISCIPLINARIOS - Comisionado 14",null,null,523,"ÁREA DE GESTIÓN POLICIVA JURÍDICA CHAPINERO"]
[195,"ASUNTOS DISCIPLINARIOS - Comisionado 15",null,null,524,"ÁREA DE GESTIÓN POLICIVA INSPECCIONES CHAPINERO"]
[196,"ASUNTOS DISCIPLINARIOS - Comisionado 16",null,null,525,"OFICINA DE ATENCIÓN A LA CIUDADANÍA CHAPINERO"]
[197,"ASUNTOS DISCIPLINARIOS - Comisionado 17",null,null,530,"DESPACHO - ALCALDÍA LOCAL DE SANTAFÉ"]
[162,"ASUNTOS DISCIPLINARIOS - Comisionado 2",null,null,531,"CDI SANTAFÉ"]
[163,"ASUNTOS DISCIPLINARIOS - Comisionado 3",null,null,532,"ÁREA DE GESTIÓN DE DESARROLLO LOCAL SANTAFÉ"]
[164,"ASUNTOS DISCIPLINARIOS - Comisionado 4",null,null,533,"ÁREA DE GESTIÓN POLICIVA JURÍDICA SANTAFÉ"]
[165,"ASUNTOS DISCIPLINARIOS - Comisionado 5",null,null,534,"ÁREA DE GESTIÓN POLICIVA INSPECCIONES SANTAFÉ"]
[166,"ASUNTOS DISCIPLINARIOS - Comisionado 6",null,null,535,"OFICINA DE ATENCIÓN A LA CIUDADANÍA SANTAFÉ"]
[167,"ASUNTOS DISCIPLINARIOS - Comisionado 7",null,null,540,"DESPACHO - ALCALDÍA LOCAL DE SAN CRISTÓBAL"]
[168,"ASUNTOS DISCIPLINARIOS - Comisionado 8",null,null,541,"CDI SAN CRISTÓBAL"]
[169,"ASUNTOS DISCIPLINARIOS - Comisionado 9",null,null,542,"ÁREA DE GESTIÓN DE DESARROLLO LOCAL SAN CRISTÓBAL"]
[651,"CDI ANTONIO NARIÑO",null,null,543,"ÁREA DE GESTIÓN POLICIVA JURÍDICA SAN CRISTÓBAL"]
[621,"CDI BARRIOS UNIDOS",null,null,544,"ÁREA DE GESTIÓN POLICIVA INSPECCIONES SAN CRISTÓBAL"]
[571,"CDI BOSA",null,null,545,"OFICINA DE ATENCIÓN A LA CIUDADANÍA SAN CRISTÓBAL"]
[671,"CDI CANDELARIA",null,null,550,"DESPACHO - ALCALDÍA LOCAL DE USME"]
[521,"CDI CHAPINERO",null,null,551,"CDI USME"]
[691,"CDI CIUDAD BOLIVAR",null,null,552,"ÁREA DE GESTIÓN DE DESARROLLO LOCAL USME"]
[601,"CDI ENGATIVÁ",null,null,553,"ÁREA DE GESTIÓN POLICIVA JURÍDICA USME"]
[591,"CDI FONTIBÓN",null,null,554,"ÁREA DE GESTIÓN POLICIVA INSPECCIONES USME"]
[581,"CDI KENNEDY",null,null,555,"OFICINA DE ATENCIÓN A LA CIUDADANÍA USME"]
[641,"CDI MÁRTIRES",null,null,560,"DESPACHO - ALCALDÍA LOCAL DE TUNJUELITO"]
[421,"CDI NIVEL CENTRAL",null,null,651,"CDI TUNJUELITO"]
[661,"CDI PUENTE ARANDA",null,null,562,"ÁREA DE GESTIÓN DE DESARROLLO LOCAL TUNJUELITO"]
[681,"CDI RAFAEL URIBE URIBE",null,null,563,"ÁREA DE GESTIÓN POLICIVA JURÍDICA TUNJUELITO"]
[541,"CDI SAN CRISTÓBAL",null,null,564,"ÁREA DE GESTIÓN POLICIVA INSPECCIONES TUNJUELITO"]
[531,"CDI SANTAFÉ",null,null,565,"OFICINA DE ATENCIÓN A LA JURÍDICA TUNJUELITO"]
[611,"CDI SUBA",null,null,570,"DESPACHO - ALCALDÍA LOCAL DE BOSA"]
[701,"CDI SUMAPAZ",null,null,571,"CDI BOSA"]
[631,"CDI TEUSAQUILLO",null,null,572,"ÁREA DE GESTIÓN DE DESARROLLO LOCAL BOSA"]
[651,"CDI TUNJUELITO",null,null,573,"ÁREA DE GESTIÓN POLICIVA JURÍDICA BOSA"]
[511,"CDI USAQUÉN",null,null,574,"ÁREA DE GESTIÓN POLICIVA INSPECCIONES BOSA"]
[551,"CDI USME",null,null,575,"OFICINA DE ATENCIÓN A LA CIUDADANÍA BOSA"]
[412,"COMISIÓN DE PERSONAL",null,null,580,"DESPACHO - ALCALDÍA LOCAL DE KENNEDY"]
[411,"COMITÉ DE CONVIVENCIA LABORAL",null,null,581,"CDI KENNEDY"]
[110,"CONSEJO DE JUSTICIA",null,null,582,"ÁREA DE GESTIÓN DE DESARROLLO LOCAL KENNEDY"]
[706,"CORREGIDURIA BETANIA",null,null,583,"ÁREA DE GESTIÓN POLICIVA JURÍDICA KENNEDY"]
[697,"CORREGIDURIA EL MOCHUELO",null,null,584,"ÁREA DE GESTIÓN POLICIVA INSPECCIONES KENNEDY"]
[707,"CORREGIDURIA NAZARET",null,null,585,"OFICINA DE ATENCIÓN A LA JURÍDICA KENNEDY"]
[696,"CORREGIDURIA PASQUILLA",null,null,590,"DESPACHO - ALCALDÍA LOCAL DE FONTIBÓN"]
[708,"CORREGIDURIA SAN JUAN",null,null,591,"CDI FONTIBÓN"]
[998,"DEPENDENCIA ADMINISTRACIÓN",null,null,592,"ÁREA DE GESTIÓN DE DESARROLLO LOCAL FONTIBÓN"]
[650,"DESPACHO - ALCALDÍA LOCAL DE ANTONIO NARIÑO",null,null,593,"ÁREA DE GESTIÓN POLICIVA JURÍDICA FONTIBÓN"]
[620,"DESPACHO - ALCALDÍA LOCAL DE BARRIOS UNIDOS",null,null,594,"ÁREA DE GESTIÓN POLICIVA INSPECCIONES FONTIBÓN"]
[570,"DESPACHO - ALCALDÍA LOCAL DE BOSA",null,null,595,"OFICINA DE ATENCIÓN A LA CIUDADANÍA FONTIBÓN"]
[670,"DESPACHO - ALCALDÍA LOCAL DE CANDELARIA",null,null,600,"DESPACHO - ALCALDÍA LOCAL DE ENGATIVÁ"]
[520,"DESPACHO - ALCALDÍA LOCAL DE CHAPINERO",null,null,601,"CDI ENGATIVÁ"]
[690,"DESPACHO - ALCALDÍA LOCAL DE CIUDAD BOLIVAR",null,null,602,"ÁREA DE GESTIÓN DE DESARROLLO LOCAL ENGATIVÁ"]
[600,"DESPACHO - ALCALDÍA LOCAL DE ENGATIVÁ",null,null,603,"ÁREA DE GESTIÓN POLICIVA JURÍDICA ENGATIVÁ"]
[590,"DESPACHO - ALCALDÍA LOCAL DE FONTIBÓN",null,null,604,"ÁREA DE GESTIÓN POLICIVA INSPECCIONES ENGATIVÁ"]
[580,"DESPACHO - ALCALDÍA LOCAL DE KENNEDY",null,null,605,"OFICINA DE ATENCIÓN A LA JURÍDICA ENGATIVÁ"]
[640,"DESPACHO - ALCALDÍA LOCAL DE MÁRTIRES",null,null,610,"DESPACHO - ALCALDÍA LOCAL DE SUBA"]
[660,"DESPACHO - ALCALDÍA LOCAL DE PUENTE ARANDA",null,null,611,"CDI SUBA"]
[680,"DESPACHO - ALCALDÍA LOCAL DE RAFAEL URIBE URIBE",null,null,612,"ÁREA DE GESTIÓN DE DESARROLLO LOCAL SUBA"]
[540,"DESPACHO - ALCALDÍA LOCAL DE SAN CRISTÓBAL",null,null,613,"ÁREA DE GESTIÓN POLICIVA JURÍDICA SUBA"]
[530,"DESPACHO - ALCALDÍA LOCAL DE SANTAFÉ",null,null,614,"ÁREA DE GESTIÓN POLICIVA INSPECCIONES SUBA"]
[610,"DESPACHO - ALCALDÍA LOCAL DE SUBA",null,null,615,"OFICINA DE ATENCIÓN A LA CIUDADANÍA SUBA"]
[700,"DESPACHO - ALCALDÍA LOCAL DE SUMAPAZ",null,null,620,"DESPACHO - ALCALDÍA LOCAL DE BARRIOS UNIDOS"]
[630,"DESPACHO - ALCALDÍA LOCAL DE TEUSAQUILLO",null,null,621,"CDI BARRIOS UNIDOS"]
[560,"DESPACHO - ALCALDÍA LOCAL DE TUNJUELITO",null,null,622,"ÁREA DE GESTIÓN DE DESARROLLO LOCAL BARRIOS UNIDOS"]
[510,"DESPACHO - ALCALDÍA LOCAL DE USAQUÉN",null,null,623,"ÁREA DE GESTIÓN POLICIVA JURÍDICA BARRIOS UNIDOS"]
[550,"DESPACHO - ALCALDÍA LOCAL DE USME",null,null,624,"ÁREA DE GESTIÓN POLICIVA INSPECCIONES BARRIOS UNIDOS"]
[100,"DESPACHO DEL SECRETARIO DE GOBIERNO",null,null,625,"OFICINA DE ATENCIÓN A LA CIUDADANÍA BARRIOS UNIDOS"]
[420,"DIRECCIÓN ADMINISTRATIVA",null,null,630,"DESPACHO - ALCALDÍA LOCAL DE TEUSAQUILLO"]
[450,"DIRECCIÓN DE CONTRATACIÓN",null,null,631,"CDI TEUSAQUILLO"]
[320,"DIRECCIÓN DE CONVIVENCIA Y DIALOGO SOCIAL",null,null,632,"ÁREA DE GESTIÓN DE DESARROLLO LOCAL TEUSAQUILLO"]
[310,"DIRECCIÓN DE DERECHOS HUMANOS",null,null,633,"ÁREA DE GESTIÓN POLICIVA JURÍDICA TEUSAQUILLO"]
[410,"DIRECCIÓN DE GESTIÓN DEL TALENTO HUMANO",null,null,634,"ÁREA DE GESTIÓN POLICIVA INSPECCIONES TEUSAQUILLO"]
[170,"DIRECCIÓN DE RELACIONES POLÍTICAS",null,null,635,"OFICINA DE ATENCIÓN A LA JURÍDICA TEUSAQUILLO"]
[440,"DIRECCIÓN DE TECNOLOGÍAS E INFORMACIÓN",null,null,640,"DESPACHO - ALCALDÍA LOCAL DE MÁRTIRES"]
[430,"DIRECCIÓN FINANCIERA",null,null,641,"CDI MÁRTIRES"]
[180,"DIRECCIÓN JURÍDICA",null,null,642,"ÁREA DE GESTIÓN DE DESARROLLO LOCAL MÁRTIRES"]
[210,"DIRECCIÓN PARA LA GESTIÓN DEL DESARROLLO LOCAL",null,null,643,"ÁREA DE GESTIÓN POLICIVA JURÍDICA MÁRTIRES"]
[220,"DIRECCIÓN PARA LA GESTIÓN POLICIVA",null,null,644,"ÁREA DE GESTIÓN POLICIVA INSPECCIONES MÁRTIRES"]
[221,"DIRECCIÓN PARA LA GESTIÓN POLICIVA  - JACD",null,null,645,"OFICINA DE ATENCIÓN A LA CIUDADANÍA DE MÁRTIRES"]
[222,"GRUPO COMPARENDO AMBIENTAL - DIRECCIÓN PARA LA GESTIÓN POLICIVA",null,null,650,"DESPACHO - ALCALDÍA LOCAL DE ANTONIO NARIÑO"]
[223,"INSPECCIONES ANTENCIÓN PRIORITARIA",null,null,651,"CDI ANTONIO NARIÑO"]
[231,"INSPECCIONES CTP - RADICACIÓN",null,null,652,"ÁREA DE GESTIÓN DE DESARROLLO LOCAL ANTONIO NARIÑO"]
[232,"INSPECTORES CTP TURNO 1",null,null,653,"ÁREA DE GESTIÓN POLICIVA JURÍDICA ANTONIO NARIÑO"]
[233,"INSPECTORES CTP TURNO 2",null,null,654,"ÁREA DE GESTIÓN POLICIVA INSPECCIONES ANTONIO NARIÑO"]
[234,"INSPECTORES CTP TURNO 3",null,null,655,"OFICINA DE ATENCIÓN A LA JURÍDICA ANTONIO NARIÑO"]
[235,"INSPECTORES CTP TURNO 4",null,null,660,"DESPACHO - ALCALDÍA LOCAL DE PUENTE ARANDA"]
[140,"OFICINA ASESORA DE COMUNICACIONES",null,null,661,"CDI PUENTE ARANDA"]
[130,"OFICINA ASESORA DE PLANEACIÓN",null,null,662,"ÁREA DE GESTIÓN DE DESARROLLO LOCAL PUENTE ARANDA"]
[160,"OFICINA DE ASUNTOS DISCIPLINARIOS",null,null,663,"ÁREA DE GESTIÓN POLICIVA JURÍDICA PUENTE ARANDA"]
[460,"OFICINA DE ATENCIÓN A LA CIUDADANÍA",null,null,664,"ÁREA DE GESTIÓN POLICIVA INSPECCIONES PUENTE ARANDA"]
[625,"OFICINA DE ATENCIÓN A LA CIUDADANÍA BARRIOS UNIDOS",null,null,665,"OFICINA DE ATENCIÓN A LA CIUDADANÍA PUENTE ARANDA"]
[575,"OFICINA DE ATENCIÓN A LA CIUDADANÍA BOSA",null,null,670,"DESPACHO - ALCALDÍA LOCAL DE CANDELARIA"]
[675,"OFICINA DE ATENCIÓN A LA CIUDADANÍA CANDELARIA",null,null,671,"CDI CANDELARIA"]
[525,"OFICINA DE ATENCIÓN A LA CIUDADANÍA CHAPINERO",null,null,672,"ÁREA DE GESTIÓN DE DESARROLLO LOCAL CANDELARIA"]
[695,"OFICINA DE ATENCIÓN A LA CIUDADANÍA CIUDAD BOLIVAR",null,null,673,"ÁREA DE GESTIÓN POLICIVA JURÍDICA CANDELARIA"]
[645,"OFICINA DE ATENCIÓN A LA CIUDADANÍA DE MÁRTIRES",null,null,674,"ÁREA DE GESTIÓN POLICIVA INSPECCIONES CANDELARIA"]
[595,"OFICINA DE ATENCIÓN A LA CIUDADANÍA FONTIBÓN",null,null,675,"OFICINA DE ATENCIÓN A LA CIUDADANÍA CANDELARIA"]
[665,"OFICINA DE ATENCIÓN A LA CIUDADANÍA PUENTE ARANDA",null,null,680,"DESPACHO - ALCALDÍA LOCAL DE RAFAEL URIBE URIBE"]
[685,"OFICINA DE ATENCIÓN A LA CIUDADANÍA RAFAEL URIBE URIBE",null,null,681,"CDI RAFAEL URIBE URIBE"]
[545,"OFICINA DE ATENCIÓN A LA CIUDADANÍA SAN CRISTÓBAL",null,null,682,"ÁREA DE GESTIÓN DE DESARROLLO LOCAL RAFAEL URIBE URIBE"]
[535,"OFICINA DE ATENCIÓN A LA CIUDADANÍA SANTAFÉ",null,null,683,"ÁREA DE GESTIÓN POLICIVA JURÍDICA RAFAEL URIBE URIBE"]
[615,"OFICINA DE ATENCIÓN A LA CIUDADANÍA SUBA",null,null,684,"ÁREA DE GESTIÓN POLICIVA INSPECCIONES RAFAEL URIBE URIBE"]
[705,"OFICINA DE ATENCIÓN A LA CIUDADANÍA SUMAPAZ",null,null,685,"OFICINA DE ATENCIÓN A LA CIUDADANÍA RAFAEL URIBE URIBE"]
[515,"OFICINA DE ATENCIÓN A LA CIUDADANÍA USAQUÉN",null,null,690,"DESPACHO - ALCALDÍA LOCAL DE CIUDAD BOLIVAR"]
[555,"OFICINA DE ATENCIÓN A LA CIUDADANÍA USME",null,null,691,"CDI CIUDAD BOLIVAR"]
[655,"OFICINA DE ATENCIÓN A LA JURÍDICA ANTONIO NARIÑO",null,null,692,"ÁREA DE GESTIÓN DE DESARROLLO LOCAL CIUDAD BOLIVAR"]
[605,"OFICINA DE ATENCIÓN A LA JURÍDICA ENGATIVÁ",null,null,693,"ÁREA DE GESTIÓN POLICIVA JURÍDICA CIUDAD BOLIVAR"]
[585,"OFICINA DE ATENCIÓN A LA JURÍDICA KENNEDY",null,null,694,"ÁREA DE GESTIÓN POLICIVA INSPECCIONES CIUDAD BOLIVAR"]
[635,"OFICINA DE ATENCIÓN A LA JURÍDICA TEUSAQUILLO",null,null,695,"OFICINA DE ATENCIÓN A LA CIUDADANÍA CIUDAD BOLIVAR"]
[565,"OFICINA DE ATENCIÓN A LA JURÍDICA TUNJUELITO",null,null,696,"CORREGIDURIA PASQUILLA"]
[150,"OFICINA DE CONTROL INTERNO",null,null,697,"CORREGIDURIA EL MOCHUELO"]
[422,"PROYECTO GESTIÓN DOCUMENTAL",null,null,700,"DESPACHO - ALCALDÍA LOCAL DE SUMAPAZ"]
[330,"SUBDIRECCIÓN DE ASUNTOS DE LIBERTAD RELIGIOSA Y DE CONCIENCIA",null,null,701,"CDI SUMAPAZ"]
[340,"SUBDIRECCIÓN DE ASUNTOS ETNICOS",null,null,702,"ÁREA DE GESTIÓN DE DESARROLLO LOCAL SUMAPAZ"]
[400,"SUBSECRETARIA DE GESTIÓN  INSTITUCIONAL",null,null,703,"ÁREA DE GESTIÓN POLICIVA JURÍDICA SUMAPAZ"]
[200,"SUBSECRETARIA DE GESTIÓN LOCAL",null,null,704,"ÁREA DE GESTIÓN POLICIVA INSPECCIONES SUMAPAZ"]
[300,"SUBSECRETARIA PARA LA GOBERNABILIDAD Y LA GARANTÍA DE DERECHOS",null,null,705,"OFICINA DE ATENCIÓN A LA CIUDADANÍA SUMAPAZ"]
[461,"SUPERCADE AMÉRICAS",null,null,706,"CORREGIDURIA BETANIA"]
[466,"SUPERCADE BOSA",null,null,707,"CORREGIDURIA NAZARET"]
[464,"SUPERCADE CAD",null,null,708,"CORREGIDURIA SAN JUAN"]
[465,"SUPERCADE ENGATIVÁ",null,null,996,"ANULACIONES"]
[462,"SUPERCADE FONTIBÓN",null,null,998,"DEPENDENCIA ADMINISTRACIÓN"]
[463,"SUPERCADE SUBA",null,null,999,"ARCHIVO DE DOCUMENTOS"]

{"sheet":"PROCESOS","index":7,"n_rows":113,"n_cols":6,"rows_kept":113,"cut":false,"hidden":true,"merged":[]}
[null,"Nombre Proceso","Código Proceso","Nombre Procedimiento","Código  Procedimiento","Versión del Procedimiento"]
[null,"1- PROCESOS MISIONALES"]
[1,"Gestión Pública Territorial Local.","2L-GDL-C","Funcionamiento Consejo Local de Gobierno.","GET-GPL-P001",2]
[null,null,null,"Elaboración, Aprobación y Seguimiento del Plan de Desarrollo Local.","GET-GPL-P002",2]
[null,null,null,"Procedimiento para la Formulación y Seguimiento a los Proyectos de Inversión Local.","GET-GPL-P004",2]
[null,null,null,null,""]
[2,"Inspección Vigilancia y Control.","GET-IVC-C","Procedimiento radicación y reparto en el Consejo de Justicia.","GET-IVC-P001",1]
[null,null,null,"Procedimiento trámite, estudio, sustanciación e impulso.","GET-IVC-P002",1]
[null,null,null,"Procedimiento toma de decisión de asuntos de competencia del consejo de justicia.","GET-IVC-P003",1]
[null,null,null,"Procedimiento para las notificaciones el consejo de justicia.","GET-IVC-P004",1]
[null,null,null,"Procedimiento Verbal Abreviado Ley 1801 de 2016 para temáticas prioritarias.","GET-IVC-P005",2]
[null,null,null,"Procedimiento Verbal Inmediato Ley 1801 de 2016 - Segunda Instancia - Para Temáticas Prioritarias.","GET-IVC-P006",2]
[null,null,null,"Procedimiento Gestión de Multas y Cobro Persuasivo.","GET-IVC-P007",1]
[null,null,null,"Sanción a las Violaciones de las Reglas de Convivencia - Procedimiento Ordinario.","GET-IVC-P010",2]
[null,null,null,"Sanción a las Violaciones de las Reglas de Convivencia - Procedimiento Sumario.","GET-IVC-P013",2]
[null,null,null,"Perturbación a la Posesión, por despojo, a la Mera Tenencia y al Ejercicio de Servidumbre.","GET-IVC-P015",2]
[null,null,null,"Amparo al Domicilio.","GET-IVC-P016",2]
[null,null,null,"Procedimiento verbal abreviado en caso de comportamientos contrarios a la convivencia. Ley 1801 de 2016.","GET-IVC-P025",3]
[null,null,null,"procedimiento verbal abreviado para la protección de bienes inmuebles. ley 1801 de 2016.","GET-IVC-P026",2]
[null,null,null,"Procedimiento para resolver en segunda instancia.","GET-IVC-P027",2]
[null,null,null,"Procedimiento Sancionatorio para Establecimiento de Comercio – Ley 232 de 1995.","GET-IVC-P031",2]
[null,null,null,"Procedimiento Infracciones al Régimen de Obras y Urbanismo Decreto 01 de 1984.","GET-IVC-P032",2]
[null,null,null,"Procedimiento restitución del espacio público - Decreto 01 de 1984.","GET-IVC-P033",2]
[null,null,null,"Procedimiento administrativo sancionatorio - Ley 1437 de 2011 control de espacio público.","GET-IVC-P034",2]
[null,null,null,"Procedimiento Administrativo Sancionatorio - Ley 1437 de 2011 Control de Obras y Urbanismo.","GET-IVC-P035",2]
[null,null,null,"Procedimiento administrativo sancionatorio - Ley 1437 de 2011 control de establecimientos comerciales.","GET-IVC-P036",2]
[null,null,null,"Procedimiento asignación y pago de delegados para sorteos, concursos y espectáculos públicos.","GET-IVC-P037",2]
[null,null,null,"Procedimiento autorización de actividades de aglomeración de público y habilitación de escenarios de las A. E.","GET-IVC-P038",2]
[null,null,null,"Procedimiento Autorización y seguimiento a concursos.","GET-IVC-P039",2]
[null,null,null,"Procedimiento Registro previo de Parques de Diversiones y Atracciones o Dispositivos de Entretenimiento.","GET-IVC-P040",2]
[null,null,null,"Procedimiento de Concepto Previo para los Juegos Localizados de Suerte y Azar.","GET-IVC-P041",2]
[null,null,null,"Procedimiento inspección vigilancia y control para establecimientos de comercio.","GET-IVC-P042",2]
[null,null,null,"Procedimiento inspección vigilancia y control para obras y urbanismo.","GET-IVC-P043",2]
[null,null,null,"Procedimiento para la inspección vigilancia y control en el espacio público.","GET-IVC-P044",2]
[null,null,null,"Procedimiento de control de tarifas en estacionamiento fuera de vía cuando se inicia de oficio.","GET-IVC-P046",2]
[null,null,null,"Procedimiento para la Inspección, Vigilancia y Control en Metrología Legal.","GET-IVC-P047",1]
[null,null,null,"Procedimiento para la expedición y/o suspensión del reconocimiento denominado \"sello seguro\".","GET-IVC-P048",1]
[null,null,null,"Procedimiento Verbal Abreviado por Imposición de Comparendo con Multa General Señalada.","GET-IVC-P049",1]
[null,null,null,"Procedimiento para la entrega de inmuebles expropiados.","GET-IVC-P050",1]
[null,null,null,"Procedimiento Segunda Instancia Autoridad Administrativa Especial de Policía.","GET-IVC-P051",1]
[null,null,null,null,""]
[3,"Acompañamiento a la Gestión Local.","GET-AGL-C","Seguimiento a las Obligaciones por Pagar de los FDL.","GET-AGL-P002",3]
[null,null,null,"Acompañamiento al proceso de Depuración e Impulso de Actuaciones Administrativas en las Alcaldías Locales.","GET-AGL-P003",1]
[null,null,null,null,""]
[4,"Relaciones Estratégicas.","RES-C","Procedimiento Gestión de Asuntos Electorales.","RES-P001",1]
[null,null,null,"Procedimiento Estudio del Proyecto de Ley y/o Acto Legislativo del Congreso de la República.","RES-P002",1]
[null,null,null,"Procedimiento para el Trámite de los Proyectos de Acuerdo.","RES-P003",1]
[null,null,null,"Procedimiento de gestión de iniciativas de control político - Concejo de Bogotá D.C.","RES-P004",1]
[null,null,null,"Procedimiento Gestión de Iniciativas de Control Político del Congreso de la República.","RES-P005",1]
[null,null,null,null,""]
[5,"Convivencia y Dialogo Social.","DHS-CDS-C","Procedimiento Convivencia y Diálogo Social.","DHH-CDS-P001",1]
[null,null,null,null,""]
[6,"Fomento y Protección de los Derechos Humanos.","DHH-FPD-C","Procedimiento para el diseño, implementación, evaluación, mejora y sostenibilidad del Sistema Distrital de Derechos.","DHH-FPD-P001",1]
[null,null,null,null,""]
[null,"2- PROCESOS DE APOYO",null,null,""]
[1,"Gestión Jurídica.","GJR-C","Procedimiento para la asesoría jurídica y representación administrativa, judicial y extrajudicial.","GJR-P001",1]
[null,null,null,"Procedimiento para la identificación, actualización, monitoreo y evaluación de requisitos legales.","GJR-P002",1]
[null,null,null,null,""]
[2,"Gestión Corporativa Local.","GCO-GCL-C","NO TIENE PROCEDIMIENTO",""]
[null,null,null,null,""]
[3,"Gestión Corporativa Institucional.","GCO-GCI-C","Procedimiento para la adquisición y administración de bienes y servicios.","GCO-GCI-P001",4]
[null,null,null,"Procedimiento de ingresos y egresos de bienes muebles.","GCO-GCI-P002",6]
[null,null,null,null,""]
[4,"Gerencia del Talento Humano.","GCO-GTH-C","Procedimiento vinculación a la planta de personal","GCO-GTH-P001 ",3]
[null,null,null,"Incapacidades y/o licencias médicas","GCO-GTH-P002 ",2]
[null,null,null,"Procedimiento identificación de peligros, evaluación y valoración de los riesgos en el SGSST","GCO-GTH-P003 ",2]
[null,null,null,"Procedimiento de prevención, preparación y respuesta ante emergencias que se presentan en la SDG","GCO-GTH-P004 ",2]
[null,null,null,"Procedimiento para reporte e investigación de incidentes y accidentes de trabajo","GCO-GTH-P005 ",2]
[null,null,null,"Procedimiento para la reubicación de servidores públicos.","GCO-GTH-P006 ",2]
[null,null,null,"Procedimiento de evaluación del desempeño laboral de servidores de carrera administrativa","GCO-GTH-P007 ",2]
[null,null,null,"Procedimiento para la identificación y verificación al cumplimiento de requisitos legales en SST","GCO-GTH-P008 ",2]
[null,null,null,"Procedimiento para el desarrollo de exámenes médicos ocupacionales","GCO-GTH-P009 ",2]
[null,null,null,null,""]
[5,"Control Disciplinario.","CDS-C","Control Disciplinario Ordinario.","SIN CODIGO","SECRETARIA GENERAL"]
[null,null,null,"Control Disciplinario Verbal.","SIN CODIGO","SECRETARIA GENERAL"]
[null,null,null,"Segunda Instancia Proceso Disciplinario.","SIN CODIGO","SECRETARIA GENERAL"]
[null,null,null,null,""]
[null,"3- PROCESOS ESTRATEGICOS",null,null,""]
[1,"Comunicación Estratégica.","CES-C","Procedimiento para Comunicaciones Estratégicas Internas.","CES-P001",2]
[null,null,null,"Procedimiento para Comunicaciones Estratégicas Externas.","CES-P002",2]
[null,null,null,null,""]
[2,"Planeación Institucional.","PLE-PIN-C","Procedimiento para la identificación, evaluación y actualización de aspectos e impactos ambientales.","PLE-PIN-P001",3]
[null,null,null,"Procedimiento de identificación, evaluación y actualización de los requisitos legales ambientales y otros requisito.","PLE-PIN-P002",2]
[null,null,null,"Procedimiento de control operacional.","PLE-PIN-P003",1]
[null,null,null,"Procedimiento planeación de la gestión institucional.","PLE-PIN-P005",3]
[null,null,null,"Procedimiento de formación y toma de conciencia.","PLE-PIN-P006",1]
[null,null,null,"Procedimiento para la preparación, respuesta, reporte y desarrollo de investigaciones de emergencias ambientales.","PLE-PIN-P007",1]
[null,null,null,"Procedimiento formulación, programación y seguimiento a los proyectos de inversión.","PLE-PIN-P008",2]
[null,null,null,null,""]
[3,"Planeación y Gestión Sectorial.","PLE-PGS-C","Procedimiento para la formulación, implementación y seguimiento de política pública.","PLE-PGS-P001",1]
[null,null,null,null,""]
[4,"Gerencia de TIC.","GDI-TIC-C","Procedimiento para la gestión de servicios de tecnologías de la información y las comunicaciones.","GDI-TIC-P001",3]
[null,null,null,"Procedimiento para la gestión de sistemas de información.","GDI-TIC-P002",3]
[null,null,null,null,""]
[5,"Gestión del Patrimonio Documental.","GDI-GPD-C","Procedimiento de Planeación Documental.","GDI-GPD-P002",1]
[null,null,null,"Procedimiento de Producción Documental.","GDI-GPD-P003",1]
[null,null,null,"Procedimiento de Gestión y Trámite de documentos.","GDI-GPD-P004",2]
[null,null,null,"Procedimiento de Organización Documental.","GDI-GPD-P005",1]
[null,null,null,"Procedimiento de Transferencias Documentales.","GDI-GPD-P006",1]
[null,null,null,"Procedimiento Disposición de Documentos.","GDI-GPD-P007",1]
[null,null,null,"Procedimiento de Conservación Documental.","GDI-GPD-P008",1]
[null,null,null,"Procedimiento de Valoración de Documentos.","GDI-GPD-P009",1]
[null,null,null,"Procedimiento para Consulta, Préstamo y Devolución de Documentos y/o Expedientes en los Archivos de Gestión y Central.","GDI-GPD-P010",1]
[null,null,null,null,""]
[null,"4- PROCESOS DE EVALUACION Y MEJORA",null,null,""]
[1,"Gestión del Conocimiento.","GCN-C","Procedimiento para la Generación del Conocimiento.","GCN-P003",1]
[null,null,null,"Procedimiento Generación y producción del conocimiento de la entidad.","GCN-P004",1]
[null,null,null,null,""]
[2,"Evaluación Independiente.","EIN-C","Procedimiento Auditoría Interna de Gestión.","EIN-P001",2]
[null,null,null,null,""]
[null,"5- PROCESOS TRANSVERSALES",null,null,""]
[1,"Servicios a la ciudadanía.","SAC-C","Procedimiento Trámite a los Requerimientos presentados por la Ciudadanía.","SAC-P001",3]
[null,null,null,"Procedimiento recepción de documentos de identificación extraviados.","SAC-P002",2]

{"sheet":"PROC","index":8,"n_rows":391,"n_cols":42,"rows_kept":391,"cut":false,"hidden":true,"merged":[]}
[null,"Nombre Proceso","Código Proceso",null,"Nombre Procedimiento","Código  Procedimiento","Versión del Procedimiento",null,null,null,"TIPO_PROCESO",null,"MISIONALES","Gestión_Pública_Territorial_Local.","Inspección_Vigilancia_y_Control.","Acompañamiento_a_la_Gestión_Local.","Relaciones_Estratégicas.","Convivencia_y_Dialogo_Social.","Fomento_y_Protección_de_los_Derechos_Humanos.",null,"APOYO","Gestión_Jurídica.","Gestión_Corporativa_Institucional.","Gerencia_del_Talento_Humano.","Control_Disciplinario.",null,"ESTRATEGICOS","Comunicación_Estratégica.","Planeación_Institucional.","Planeación_y_Gestión_Sectorial.","Gerencia_de_TIC.","Gestión_del_Patrimonio_Documental.",null,"EVALUACION_Y_MEJORA","Gestión_del_Conocimiento.","Evaluación_Independiente.",null,"TRANSVERSALES","Servicios_a_la_ciudadanía.",null,null,"FrecActualiza"]
[null,"1-_PROCESOS_MISIONALES",null,null,"Gestión Pública Territorial Local",null,null,null,null,null,"MISIONALES",null,"Gestión_Pública_Territorial_Local.","GET-GPL-P001 Funcionamiento Consejo Local de Gobierno","GET-IVC-P001 Procedimiento radicación y reparto en el consejo de justicia","GET-AGL-P002 Seguimiento a las obligaciones por pagar de los FDL","RES-P001 Procedimiento Gestión de Asuntos Electorales","DHH-CDS-M001 Manual Abordaje territorial","DHH-FPD-M001 Manual del Sistema Distrital de Derechos Humanos",null,"Gestión_Jurídica.","JR-P001 Procedimiento para la asesoría jurídica y representación administrativa, judicial y extrajudicial","GCO-GCI-M001 Manual de cajas menores","GCO-GTH-P001 Procedimiento vinculación a la planta de personal","Control Disciplinario Ordinario.",null,"Comunicación_Estratégica.","CES-M001 Manual de direccionamiento estratégico para las comunicaciones","PLE-PIN-M001 Manual de gestión del riesgo","PLE-PGS-P001 Procedimiento para la formulación, implementación y seguimiento de política pública.","GDI-TIC-M002 Plan de contingencia informático","GDI-GPD-P002 Procedimiento de Planeación Documental",null,"Gestión_del_Conocimiento.","GCN-M002 Manual para la gestión de planes de mejoramiento","EIN-P001 Procedimiento Auditoría Interna de Gestión",null,"Servicios_a_la_ciudadanía.","SAC-M001 Manual de Atención a la Ciudadanía",null,null,"ANUAL"]
[null,"Gestión_Pública_Territorial_Local.","2L-GDL-C",null,"GET-GPL-P001 Funcionamiento Consejo Local de Gobierno","GET-GPL-P001 ",null,null,null,null,"APOYO",null,"Inspección_Vigilancia_y_Control.","GET-GPL-P002 Elaboración, Aprobación y Seguimiento del Plan de Desarrollo Local","GET-IVC-P002 Procedimiento trámite, estudio, sustanciación e impulso","GET-AGL-P003 Acompañamiento al proceso de depuración e impulso de actuaciones administrativas en las alcaldías locales.","RES-P002 Procedimiento Estudio del Proyecto de Ley y/o Acto Legislativo del Congreso de la República.","DHH-CDS-P001 Procedimiento Convivencia y Diálogo Social","DHH-FPD-P001 Procedimiento para el diseño, implementación, evaluación, mejora y sostenibilidad del Sistema Distrital de Derechos",null,"Gestión_Corporativa_Institucional.","GJR-P002 Procedimiento para la identificación, actualización, monitoreo y evaluación de requisitos legales","GCO-GCI-M002 Manual De Políticas de Operación Contable de la Secretaría Distrital de Gobierno y Fondos de Desarrollo Local","GCO-GTH-P002 Incapacidades y/o licencias médicas","Control Disciplinario Verbal.",null,"Planeación_Institucional.","CES-P001 Procedimiento para Comunicaciones Estratégicas Internas","PLE-PIN-M002 Manual de planeación y medición institucional","PLE-PGS-IN001 Instrucciones Metodológicas para la Formulación del Plan Estratégico Sectorial","GDI-TIC-M004 Manual de Gestión de Seguridad","GDI-GPD-P003 Procedimiento de Producción Documental",null,"Evaluación_Independiente.","GCN-M003 Manual y/o Documento Técnico de Soporte del Observatorio de Asuntos Políticos","EIN-IN001 Estatuto de Auditoría Interna",null,null,"SAC-M002 Manual de Atención Incluyente",null,null,"BIMESTRAL"]
[null,"Inspección_Vigilancia_y_Control.","GET-IVC-C",null,"GET-GPL-P002 Elaboración, Aprobación y Seguimiento del Plan de Desarrollo Local","GET-GPL-P002 ",null,null,null,null,"ESTRATEGICOS",null,"Acompañamiento_a_la_Gestión_Local.","GET-GPL-P004 Procedimiento para la Formulación y Seguimiento a los Proyectos de Inversión Local.","GET-IVC-P003 Procedimiento toma de decisión de asuntos de competencia del consejo de justicia","GET-AGL-P004 Asistencia técnica a la inversión de los fondos de desarrollo local","RES-P003 Procedimiento para el Trámite de los Proyectos de Acuerdo","DHH-CDS-IN001 Instrucciones para sensibilización y formación en prevención de conflictos y fortalecimiento de la convivencia","DHH-FPD-IN001Instrucciones para el centro de documentación en Derechos Humanos",null,"Gerencia_del_Talento_Humano.","NO TIENE PROCEDIMIENTO","GCO-GCI-M003 Manual de contratación","GCO-GTH-P003 Procedimiento identificación de peligros, evaluación y valoración de los riesgos en el SGSST","Segunda Instancia Proceso Disciplinario.",null,"Planeación_y_Gestión_Sectorial.","CES-P002 Procedimiento para Comunicaciones Estratégicas Externas","PLE-PIN-M003 Manual de Elaboración y control de los documentos del sistema de gestión","NO TIENE PROCEDIMIENTO","GDI-TIC-M005 Manual de soporte físico y lógico de la infraestructura tecnológica de la secretaría distrital de gobierno","GDI-GPD-P004 Procedimiento de Gestión y Trámite de documentos",null,null,"GCN-M004 Manual y/o Documento Técnico de Soporte del Observatorio Gestión Pública Local y Participación","EIN-IN002 Código de Ética de Auditores Internos",null,null,"SAC-P001 Procedimiento Trámite a los Requerimientos presentados por la Ciudadanía",null,null,"CUATRIMESTRAL"]
[null,"Acompañamiento_a_la_Gestión_Local.","GET-AGL-C",null,"GET-GPL-P004 Procedimiento para la Formulación y Seguimiento a los Proyectos de Inversión Local.","GET-GPL-P004 ",null,null,null,null,"EVALUACION_Y_MEJORA",null,"Relaciones_Estratégicas.","NO TIENE PROCEDIMIENTO","GET-IVC-P004 Procedimiento para las notificaciones el consejo de justicia","ET-AGL-IN003 Instrucciones para el funcionamiento del consejo de alcaldes locales","RES-P004 Procedimiento de gestión de iniciativas de control político - Concejo de Bogotá D.C.","DHH-CDS-IN002 Instrucciones iniciativas ciudadanas","DHH-FPD-IN002 Protocolo para formación en Derechos Humanos",null,"Control_Disciplinario.",null,"GCO-GCI-M004 Manual de Supervisión e interventoría","GCO-GTH-P004 Procedimiento de prevención, preparación y respuesta ante emergencias que se presentan en la SDG","NO TIENE PROCEDIMIENTO",null,"Gerencia_de_TIC.","CES-IN001 Instrucciones para la publicación y administración de contenidos en canales internos.","PLE-PIN-M005 Plan Integral de Movilidad Sostenible - PIMS",null,"GDI-TIC-M006 Manual De Política De Tecnología E Información (TI)","GDI-GPD-P005 Procedimiento de Organización Documental",null,null,"GCN-P005 Generación, producción y cultura de compartir y difundir el conocimiento dentro de la entidad","EIN-IN003 Instrucciones para la evaluación de la gestión por áreas o dependencias",null,null,"SAC-P002 Procedimiento recepción de documentos de identificación extraviados",null,null,"DIARIO"]
[null,"Relaciones_Estratégicas.","RES-C",null,"Inspeccion Vigilancía y Control",null,null,null,null,null,"TRANSVERSALES",null,"Convivencia_y_Dialogo_Social.",null,"GET-IVC-P005 Procedimiento Verbal Abreviado Ley 1801 de 2016 para temáticas prioritarias.","NO TIENE PROCEDIMIENTO","RES-P005 Procedimiento Gestión de Iniciativas de Control Político del Congreso de la República.","DHH-CDS-IN003 Instrucciones para pactos","DHH-FPD-IN008 Instrucciones para espacio de atención diferenciada - CONFIA- Centro de Orientación y Fortalecimiento Integral Afr",null,null,null,"GCO-GCI-M005 Manual de Buenas Prácticas en la Actividad Contractual","GCO-GTH-P005 Procedimiento para reporte e investigación de incidentes y accidentes de trabajo",null,null,"Gestión_del_Patrimonio_Documental.","CES-IN002 Instrucciones comunicaciones estratégicas externas","PLE-PIN-M006 Metodología de seguimiento a proyectos de inversión",null,"GDI-TIC-P001 Procedimiento para la gestión de servicios de tecnologías de la información y las comunicaciones.","GDI-GPD-P006 Procedimiento de Transferencias Documentales",null,null,"GCN-P006 Herramientas para uso y apropiación y analítica institucional","NO TIENE PROCEDIMIENTO",null,null,"SAC-IN002 Instrucciones para la Expedición Certificado de Residencia",null,null,"FRECUENTE"]
[null,"Convivencia_y_Dialogo_Social.","DHS-CDS-C",null,"GET-IVC-P001 Procedimiento radicación y reparto en el consejo de justicia","GET-IVC-P001 ",null,null,null,null,null,null,"Fomento_y_Protección_de_los_Derechos_Humanos.",null,"GET-IVC-P006 Procedimiento Verbal Inmediato Ley 1801 De 2016- Segunda Instancia - Para Temáticas Prioritarias.",null,"RES-IN001 Instrucciones para la preparación de debates de control político – Concejo de Bogotá D.C.","NO TIENE PROCEDIMIENTO","DHH-FPD-IN009 Instrucciones para espacio de atención diferenciada - Cada del pensamiento indígena",null,null,null,"GCO-GCI-P001 Procedimiento para la adquisición y administración de bienes y servicios","GCO-GTH-P006 Procedimiento para la reubicación de servidores públicos.",null,null,null,"CES-IN003 Instrucciones para la Participación Ciudadana por Medios Electrónicos","PLE-PIN-P001 Procedimiento para la identificación, evaluación y actualización de aspectos e impactos ambientales",null,"GDI-TIC-P002 Procedimiento para la gestión de sistemas de información","GDI-GPD-P007 Procedimiento Disposición de Documentos",null,null,"GCN-IN002 Instrucciones para la producción y difusión del conocimiento",null,null,null,"SAC-IN005 Instrucciones para la expedición certificado de propiedad horizontal, extinción de la propiedad",null,null,"MENSUAL"]
[null,"Fomento_y_Protección_de_los_Derechos_Humanos.","DHH-FPD-C",null,"GET-IVC-P002 Procedimiento trámite, estudio, sustanciación e impulso","GET-IVC-P002 ",null,null,null,null,null,null,null,null,"GET-IVC-P007 Procedimiento Gestión de Multas y Cobro Persuasivo",null,"RES-IN002 Instrucciones para Generar Acciones de Fortalecimiento de las Relaciones Políticas con las Juntas Administradoras Loc.",null,"DHH-FPD-IN011 Protocolo para la atención Víctimas de Violencia(s) en Razón a su Orientación Sexual e Identidad de Género Casa Re",null,null,null,"GCO-GCI-P002 Procedimiento de ingresos y egresos de bienes muebles","GCO-GTH-P007 Procedimiento de Evaluación del Desempeño Laboral de Servidores de Carrera Administrativa y en Periodo de Prueba",null,null,null,"NO TIENE PROCEDIMIENTO","PLE-PIN-P002 Procedimiento de identificación, evaluación y actualización de los requisitos legales ambientales y otros requisito",null,"DGI-TIC-P003 Procedimiento de gestión de niveles de servicios","GDI-GPD-P008 Procedimiento de Conservación Documental",null,null,"GCN-IN003 Instrucciones para la identificación y captura de buenas prácticas",null,null,null,"NO TIENE PROCEDIMIENTO",null,null,"N/A"]
[null,"2-_PROCESOS_DE_APOYO",null,null,"GET-IVC-P003 Procedimiento toma de decisión de asuntos de competencia del consejo de justicia","GET-IVC-P003 ",null,null,null,null,null,null,null,null,"GET-IVC-P010 Sanción a las Violaciones de las Reglas de Convivencia- Procedimiento Ordinario",null,"NO TIENE PROCEDIMIENTO",null,"DHH-FPD-IN012 Protocolo para la atención y protección de defensoras y defensores",null,null,null,"GCO-GCI-IN001 guía de contratación sostenible","GCO-GTH-P008 Procedimiento para la identificación y verificación al cumplimiento de requisitos legales en SST",null,null,null,null,"PLE-PIN-P003 Procedimiento de Control Operacional",null,"GDI-TIC-IN001 Instrucciones para digitalización de firma mecánica","GDI-GPD-P009 Procedimiento de Valoración de Documentos",null,null,"GCN-IN004 Instrucciones para el trámite interno en la presentación de información a la Contraloría de Bogotá, D.C.",null,null,null,null,null,null,"POR DEMANDA"]
[null,"Gestión_Jurídica.","GJR-C",null,"GET-IVC-P004 Procedimiento para las notificaciones el consejo de justicia","GET-IVC-P004 ",null,null,null,null,null,null,null,null,"GET-IVC-P013 Sanción a las Violaciones de las Reglas de Convivencia - Procedimiento Sumario",null,null,null,"DHH-FPD-IN013 Protocolo para la Atención Interna de las Víctimas de Trata de Personas.",null,null,null,"GCO-GCI-IN002 Instrucciones para la toma y/o verificación física y actualización de registros de los bienes de la Secretaría Dis","GCO-GTH-P009 Procedimiento para el desarrollo de exámenes médicos ocupacionales",null,null,null,null,"PLE-PIN-P005 Procedimiento planeación de la gestión institucional",null,"GDI-TIC-IN005 Instrucciones control de versiones y despliegue de sistemas de información","GDI-GPD-P010 Procedimiento para Consulta, Préstamo y Devolución de Documentos y/o Expedientes en los Archivos de Gestión y Centr",null,null,"NO TIENE PROCEDIMIENTO",null,null,null,null,null,null,"POR MEJORA DE CONTROLES"]
[null,"Gestión_Corporativa_Institucional.","GCO-GCI-C",null,"GET-IVC-P005 Procedimiento Verbal Abreviado Ley 1801 de 2016 para temáticas prioritarias.","GET-IVC-P005 ",null,null,null,null,null,null,null,null,"GET-IVC-P015 Perturbación a la Posesión, por despojo, a la Mera Tenencia y al Ejercicio de Servidumbre",null,null,null,"DHH-FPD-IN014 Instrucciones para Territorialización del Sistema Distrital de Derechos Humanos.",null,null,null,"GCO-GCI-IN003 instrucciones contables","GCO-GTH-P010 Procedimiento Transitorio de Vinculación Virtual a la Planta de Personal",null,null,null,null,"PLE-PIN-P006 Procedimiento de formación y toma de conciencia",null,"GDI-TIC-IN006 Instructivo monitoreo de infraestructura de red de datos.","GDI-GPD-IN002 Instrucciones para el trámite de radicación, digitalización y reparto de comunicaciones en el CDI",null,null,null,null,null,null,null,null,null,"QUINCENAL"]
[null,"Gerencia_del_Talento_Humano.","GCO-GTH-C",null,"GET-IVC-P006 Procedimiento Verbal Inmediato Ley 1801 De 2016- Segunda Instancia - Para Temáticas Prioritarias.","GET-IVC-P006 ",null,null,"Posibles variables poblacionales",null,null,null,null,null,"GET-IVC-P016 Amparo al Domicilio",null,null,null,"DHH-FPD-IN015 Instrucciones para la orientación a personas que no hacen parte de los grupos poblacionales atendidos en el marco",null,null,null,"GCO-GCI-IN004 Instrucciones para la elaboración, programación, aprobación, ejecución, modificación y cierre presupuestal","CO-GTH-IN001 Instrucciones para la provisión transitoria de empleos mediante el derecho preferencial a encargo.",null,null,null,null,"PLE-PIN-P007 Procedimiento para la preparación, respuesta, reporte y desarrollo de investigaciones de emergencias ambientales",null,"GDI-TIC-IN014 Instructivo para Administrador de la base de datos DBMS y la encriptación de claves","GDI-GPD-IN007 Instructivo para la Conformación, Manejo y Archivo del Expediente Único del Contrato",null,null,null,null,null,null,null,null,null,"SEMANAL"]
[null,"Control_Disciplinario.","CDS-C",null,"GET-IVC-P007 Procedimiento Gestión de Multas y Cobro Persuasivo","GET-IVC-P007 ",null,null,"GÉNERO",null,null,null,null,null,"GET-IVC-P025 Procedimiento verbal abreviado en caso de comportamientos contrarios a la convivencia. Ley 1801 de 2016",null,null,null,"NO TIENE PROCEDIMIENTO",null,null,null," GCO-GCI-IN005 Instrucciones para la programación, reprogramación y liberación del PAC","GCO-GTH-IN002 Instrucciones para la inducción y reinducción",null,null,null,null,"PLE-PIN-P008 Procedimiento formulación, programación y seguimiento a los proyectos de inversión",null,"GDI-TIC-IN015 Instrucciones para la realización de copias de seguridad, pruebas de restauración y restauración de información cr","GDI-GPD-IN012 Instructivo para la pérdida y reconstrucción de documentos",null,null,null,null,null,null,null,null,null,"SEMESTRAL"]
[null,"3-_PROCESOS_ESTRATEGICOS",null,null,"GET-IVC-P010 Sanción a las Violaciones de las Reglas de Convivencia- Procedimiento Ordinario","GET-IVC-P010 ",null,null,"ORIENTACIÓN SEXUAL",null,null,null,null,null,"GET-IVC-P026 Procedimiento Verbal abreviado para la protección de bienes inmuebles. Ley 1801 de 2016",null,null,null,null,null,null,null,"GCO-GCI-IN007 Instrucciones para la modalidad contratación directa","GCO-GTH-IN003 Instrucciones para Liquidación Nómina, Prestaciones Sociales y Aportes de Nómina",null,null,null,null,"PLE-PIN-P009 Procedimiento para la adopción de la plataforma estratégica y el plan estratégico institucional",null,"GDI-TIC-IN016 Instrucciones plan de pruebas","GDI-GPD-IN014 Instrucciones para la elaboración e implementación de fichas de valoración documental y disposición final",null,null,null,null,null,null,null,null,null,"TRIMESTRAL"]
[null,"Comunicación_Estratégica.","CES-C",null,"GET-IVC-P013 Sanción a las Violaciones de las Reglas de Convivencia - Procedimiento Sumario","GET-IVC-P013 ",null,null,"GRUPO ÉTARIO",null,null,null,null,null,"GET-IVC-P027 Procedimiento para resolver en segunda instancia",null,null,null,null,null,null,null,"GCO-GCI-IN008 Instrucciones para el arrendamiento de inmuebles para sedes de la SDG","GCO-GTH-IN004 Instrucciones para el entrenamiento en puesto de trabajo",null,null,null,null,"PLE-PIN-IN001 Instrucciones para la gestión integral de residuos aprovechables y no aprovechables",null,"GDI-TIC-IN018 Instrucciones para protección de datos personales/propiedad del usuario","GDI-GPD-IN016 Instrucciones para la elaboración de documentos organizacionales"]
[null,"Planeación_Institucional.","PLE-PIN-C",null,"GET-IVC-P015 Perturbación a la Posesión, por despojo, a la Mera Tenencia y al Ejercicio de Servidumbre","GET-IVC-P015 ",null,null,"GRUPO ÉTNICO",null,null,null,null,null,"GET-IVC-P031 Procedimiento Sancionatorio para Establecimiento de Comercio – Ley 232 de 1995",null,null,null,null,null,null,null,"GCO-GCI-IN009 Instrucciones para la modalidad de selección licitación pública","GCO-GTH-IN005 Instrucciones para la solicitud de permiso de estudio",null,null,null,null,"PLE-PIN-IN002 Instrucciones para la gestión integral de residuos peligrosos y manejo de sustancias peligrosas",null,"GDI-TIC-PL001 Plan Estratégico de las Tecnologías de Información (PETI)","GDI-GPD-IN017 Instrucciones de Foliación"]
[null,"Planeación_y_Gestión_Sectorial.","PLE-PGS-C",null,"GET-IVC-P016 Amparo al Domicilio","GET-IVC-P016 ",null,null,"NIVEL EDUCATIVO",null,null,null,null,null,"GET-IVC-P032 Procedimiento Infracciones al Régimen de Obras y Urbanismo Decreto 01 de 1984",null,null,null,null,null,null,null,"GCO-GCI-IN010 Instrucciones para la modalidad de selección abreviada - subasta inversa","GCO-GTH-IN006 Instrucciones para el descuento en nómina de días no laborados sin justa causa.",null,null,null,null,"PLE-PIN-IN003 Instrucciones para la gestión de residuos de manejo especial y diferencial",null,"GDI-TIC-PL002 Plan de Seguridad y Privacidad de la Información","GCO-GPD-PL001 Plan Institucional de Archivos - PINAR"]
[null,"Gerencia_de_TIC.","GDI-TIC-C",null,"GET-IVC-P025 Procedimiento verbal abreviado en caso de comportamientos contrarios a la convivencia. Ley 1801 de 2016","GET-IVC-P025 ",null,null,"POBLACIÓN EN CONDICIÓN DE DISCAPACIDAD",null,null,null,null,null,"GET-IVC-P033 Procedimiento restitución del espacio público -decreto 01 de 1984",null,null,null,null,null,null,null,"GCO-GCI-IN011 Instrucciones para la modalidad de selección concurso de méritos.","GCO-GTH-IN007 Instrucciones para la Expedición de las Certificaciones Laborales",null,null,null,null,"PLE-PIN-IN004 Instrucciones para para la evaluación, control y seguimiento de las condiciones de la calidad del aire y publicida",null,"GDI-TIC-PL003 Plan de Tratamiento de Riesgos de Seguridad y Privacidad de la Información","NO TIENE PROCEDIMIENTO"]
[null,"Gestión_del_Patrimonio_Documental.","GDI-GPD-C",null,"GET-IVC-P026 Procedimiento Verbal abreviado para la protección de bienes inmuebles. Ley 1801 de 2016","GET-IVC-P026 ",null,null,"POBLACIÓN VICTIMA DEL CONFLICTO ARMADO",null,null,null,null,null,"GET-IVC-P034 Procedimiento administrativo sancionatorio - ley 1437 de 2011 control de espacio público",null,null,null,null,null,null,null,"GCO-GCI-IN012 Instrucciones para la modalidad de selección abreviada - menor cuantía.","GCO-GTH-IN010 Instrucciones novedades ante entidades de seguridad social",null,null,null,null,"PLE-PIN-IN005 Instrucciones para el control del consumo de agua, energía, papel y combustible",null,"NO TIENE PROCEDIMIENTO"]
[null,"4-_PROCESOS_DE_EVALUACION_Y_MEJORA",null,null,"GET-IVC-P027 Procedimiento para resolver en segunda instancia","GET-IVC-P027 ",null,null,null,null,null,null,null,null,"GET-IVC-P035 Procedimiento Administrativo Sancionatorio - Ley 1437 de 2011 Control de Obras y Urbanismo",null,null,null,null,null,null,null,"GCO-GCI-IN013 Instrucciones para la modalidad de selección modalidad Mínima Cuantía","GCO-GTH-IN011 Instrucciones Para la Entrega de Puesto de Trabajo Servidor de Planta",null,null,null,null,"PLE-PIN-IN006 Instrucciones para el desarrollo de inspecciones ambientales"]
[null,"Gestión_del_Conocimiento.","GCN-C",null,"GET-IVC-P031 Procedimiento Sancionatorio para Establecimiento de Comercio – Ley 232 de 1995","GET-IVC-P031 ",null,null,null,null,null,null,null,null,"GET-IVC-P036 Procedimiento administrativo sancionatorio - ley 1437 de 2011 control de establecimientos comerciales",null,null,null,null,null,null,null,"GCO-GCI-IN014 Instrucciones para liquidación del contrato","GCO-GTH-IN014 Instrucciones para la Posesión de Jueces",null,null,null,null,"PLE-PIN-IN007 Instrucciones para la expedición de viabilidad técnica"]
[null,"Evaluación_Independiente.","EIN-C",null,"GET-IVC-P032 Procedimiento Infracciones al Régimen de Obras y Urbanismo Decreto 01 de 1984","GET-IVC-P032 ",null,null,null,null,null,null,null,null,"GET-IVC-P037 Procedimiento asignación y pago de delegados para sorteos, concursos y espectáculos públicos",null,null,null,null,null,null,null,"GCO-GCI-IN015 Instrucciones para modificaciones contractuales.","GCO-GTHPL001 Plan Estratégico del Talento Humano -PETH",null,null,null,null,"PLE-PIN-IN008 Instrucciones para la etapa de preinversión de los proyectos de inversión."]
[null,"5-_PROCESOS_TRANSVERSALES",null,null,"GET-IVC-P033 Procedimiento restitución del espacio público -decreto 01 de 1984","GET-IVC-P033 ",null,null,null,null,null,null,null,null,"GET-IVC-P038 Procedimiento autorización de actividades de aglomeración de público y habilitación de escenarios de las A. E.",null,null,null,null,null,null,null,"GCO-GCI-IN018 instrucciones para el mantenimiento de la infraestructura física de la SDG.","GCO-GTHPL002 Plan Anual de Vacantes",null,null,null,null,"PLE-PIN-IN009 Instrucciones para la expedición del concepto de viabilidad"]
[null,"Servicios_a_la_ciudadanía.","SAC-C",null,"GET-IVC-P034 Procedimiento administrativo sancionatorio - ley 1437 de 2011 control de espacio público","GET-IVC-P034 ",null,null,null,null,null,null,null,null,"GET-IVC-P039 Procedimiento Autorización y seguimiento a concursos",null,null,null,null,null,null,null,"GCO-GCI-IN019 Instrucciones de Pagos","GCO-GTHPL003 Plan de Previsión de Recursos Humanos",null,null,null,null,"PLE-PIN-IN010 Instrucciones para la etapa de inversión, operación y seguimiento"]
[null,null,null,null,"GET-IVC-P035 Procedimiento Administrativo Sancionatorio - Ley 1437 de 2011 Control de Obras y Urbanismo","GET-IVC-P035 ",null,null,null,null,null,null,null,null,"GET-IVC-P040 Procedimiento Registro previo de Parques de Diversiones y Atracciones o Dispositivos de Entretenimiento",null,null,null,null,null,null,null,"GCO-GCI-IN020 Instrucciones para el pago de nómina y aportes patronales","GCO-GTHPL004 Plan Institucional de Capacitación",null,null,null,null,"PLE-PIN-IN011 Instrucciones para la formulación, programación y actualización del producto meta resultado - PMR"]
[null,null,null,null,"GET-IVC-P036 Procedimiento administrativo sancionatorio - ley 1437 de 2011 control de establecimientos comerciales","GET-IVC-P036 ",null,null,null,null,null,null,null,null,"GET-IVC-P041 Procedimiento de Concepto Previo para los Juegos Localizados de Suerte y Azar",null,null,null,null,null,null,null,"GCO-GCI-IN021 Instrucciones Control Administrativo Edificio Liévano - Bicentenario","GCO-GTHPL005 Plan de Bienestar e Incentivos",null,null,null,null,"PLE-PIN-IN012 Instrucciones para estructurar y evaluar el plan anticorrupción y de atención al ciudadano"]
[null,null,null,null,"GET-IVC-P037 Procedimiento asignación y pago de delegados para sorteos, concursos y espectáculos públicos","GET-IVC-P037 ",null,null,null,null,null,null,null,null,"GET-IVC-P042 Procedimiento inspección vigilancia y control para establecimientos de comercio",null,null,null,null,null,null,null,"GCO-GCI-IN022 Instrucciones para traslado de elementos","GCO-GTHPL006 Plan del Sistema de Gestión de Seguridad y Salud en el Trabajo-SGSST",null,null,null,null,"PLE-PIN-PL001 Plan Institucional de Gestión Ambiental"]
[null,null,null,null,"GET-IVC-P038 Procedimiento autorización de actividades de aglomeración de público y habilitación de escenarios de las A. E.","GET-IVC-P038 ",null,null,null,null,null,null,null,null,"GET-IVC-P043 Procedimiento inspección vigilancia y control para obras y urbanismo",null,null,null,null,null,null,null,"GCO-GCI-IN023 Instrucciones para determinar, verificar y evaluar los componentes financieros y la capacidad organizacional","NO TIENE PROCEDIMIENTO",null,null,null,null,"PLE-PIN-PL002 Plan de Emergencias Ambientales"]
[null,null,null,null,"GET-IVC-P039 Procedimiento Autorización y seguimiento a concursos","GET-IVC-P039 ",null,null,null,null,null,null,null,null,"GET-IVC-P044 Procedimiento para la inspección vigilancia y control en el espacio público",null,null,null,null,null,null,null,"GCO-GCI-IN025 instrucciones para la depuración de pasivos exigibles",null,null,null,null,null,"PLE-PIN-PL004 Plan de Gestión Integral de Residuos Peligrosos"]
[null,null,null,null,"GET-IVC-P040 Procedimiento Registro previo de Parques de Diversiones y Atracciones o Dispositivos de Entretenimiento","GET-IVC-P040 ",null,null,null,null,null,null,null,null,"GET-IVC-P046 Procedimiento de control de tarifas en estacionamiento fuera de vía cuando se inicia de oficio",null,null,null,null,null,null,null,"GCO-GCI-IN029 Instrucciones para el control del consumo de combustible de vehículos en el área rural y urbana, y el mantenimient",null,null,null,null,null,"NO TIENE PROCEDIMIENTO"]
[null,null,null,null,"GET-IVC-P041 Procedimiento de Concepto Previo para los Juegos Localizados de Suerte y Azar","GET-IVC-P041 ",null,null,null,null,null,null,null,null,"GET-IVC-P047 Procedimiento para la Inspección, Vigilancia y Control en Metrología Legal",null,null,null,null,null,null,null,"GCO-GCI-IN031 Instrucciones para la entrega de Bienes Muebles e inmuebles en Comodato"]
[null,null,null,null,"GET-IVC-P042 Procedimiento inspección vigilancia y control para establecimientos de comercio","GET-IVC-P042 ",null,null,null,null,null,null,null,null,"GET-IVC-P048 Procedimiento para la expedición y/o suspensión del reconocimiento denominado \"sello seguro\"",null,null,null,null,null,null,null,"GCO-GCI-IN032 instrucciones para el procedimiento administrativo sancionatorio en materia contractual"]
[null,null,null,null,"GET-IVC-P043 Procedimiento inspección vigilancia y control para obras y urbanismo","GET-IVC-P043 ",null,null,null,null,null,null,null,null,"GET-IVC-P049 Procedimiento Verbal Abreviado por Imposición de Comparendo con Multa General Señalada",null,null,null,null,null,null,null,"GCO-GCI-IN033 Instrucciones para la solicitud del incentivo del uso de la bicicleta"]
[null,null,null,null,"GET-IVC-P044 Procedimiento para la inspección vigilancia y control en el espacio público","GET-IVC-P044 ",null,null,null,null,null,null,null,null,"GET-IVC-P050 Procedimiento para la entrega de inmuebles expropiados",null,null,null,null,null,null,null,"GCO-GCI-IN034 Instrucciones para la solicitud de Acreditación de No Existencia o Insuficiencia de Personal"]
[null,null,null,null,"GET-IVC-P046 Procedimiento de control de tarifas en estacionamiento fuera de vía cuando se inicia de oficio","GET-IVC-P046 ",null,null,null,null,null,null,null,null,"GET-IVC-P051 Procedimiento Segunda Instancia Autoridad Administrativa Especial de Policía",null,null,null,null,null,null,null,"Ficha 1. Realización de exámenes periódicos ocupacionales para los funcionarios de la Secretaría"]
[null,null,null,null,"GET-IVC-P047 Procedimiento para la Inspección, Vigilancia y Control en Metrología Legal","GET-IVC-P047 ",null,null,null,null,null,null,null,null,"GET-IVC-P052 Procedimiento para la Autorización de Permiso de Ocupación",null,null,null,null,null,null,null,"Ficha 2. Servicio de fotocopiado y/o mantenimiento de fotocopias"]
[null,null,null,null,"GET-IVC-P048 Procedimiento para la expedición y/o suspensión del reconocimiento denominado \"sello seguro\"","GET-IVC-P048 ",null,null,null,null,null,null,null,null,"GET-IVC-P053 Procedimiento para la protección, promoción y garantía de los derechos de los consumidores",null,null,null,null,null,null,null,"Ficha 3. Mantenimiento de vehículos"]
[null,null,null,null,"GET-IVC-P049 Procedimiento Verbal Abreviado por Imposición de Comparendo con Multa General Señalada","GET-IVC-P049 ",null,null,null,null,null,null,null,null,"GET-IVC-P054 Procedimiento Verbal Abreviado – Priorización de comparendos objetados",null,null,null,null,null,null,null,"Ficha 4. Mantenimiento de aire acondicionado"]
[null,null,null,null,"GET-IVC-P050 Procedimiento para la entrega de inmuebles expropiados","GET-IVC-P050 ",null,null,null,null,null,null,null,null,"GET-IVC-P055 Procedimiento verbal abreviado por multa conmutada, pronto pago y pago total",null,null,null,null,null,null,null,"Ficha 5. Actividades de fumigación"]
[null,null,null,null,"GET-IVC-P051 Procedimiento Segunda Instancia Autoridad Administrativa Especial de Policía","GET-IVC-P051 ",null,null,null,null,null,null,null,null,"NO TIENE PROCEDIMIENTO",null,null,null,null,null,null,null,"Ficha 6. Servicio integral de aseo y cafetería"]
[null,null,null,null,"GET-IVC-P052 Procedimiento para la Autorización de Permiso de Ocupación","GET-IVC-P052 ",null,null,null,null,null,null,null,null,null,null,null,null,null,null,null,null,"Ficha 7. Mantenimiento preventivo y correctivo de equipos de cómputo y Sistema de alimentación"]
[null,null,null,null,"GET-IVC-P053 Procedimiento para la protección, promoción y garantía de los derechos de los consumidores","GET-IVC-P053 ",null,null,null,null,null,null,null,null,null,null,null,null,null,null,null,null,"Ficha 8. Mantenimiento preventivo y correctivo de extintores"]
[null,null,null,null,"GET-IVC-P054 Procedimiento Verbal Abreviado – Priorización de comparendos objetados","GET-IVC-P054 ",null,null,null,null,null,null,null,null,null,null,null,null,null,null,null,null,"Ficha 9. Impresión de folletos y publicaciones."]
[null,null,null,null,"GET-IVC-P055 Procedimiento verbal abreviado por multa conmutada, pronto pago y pago total","GET-IVC-P055 ",null,null,null,null,null,null,null,null,null,null,null,null,null,null,null,null,"Ficha 10. Servicio de transporte"]
[null,null,null,null,"Acompañamiento a la gestión local",null,null,null,null,null,null,null,null,null,null,null,null,null,null,null,null,null,"Ficha 11. Arrendamiento de inmuebles"]
[null,null,null,null,"GET-AGL-P002 Seguimiento a las obligaciones por pagar de los FDL","GET-AGL-P002 ",null,null,null,null,null,null,null,null,null,null,null,null,null,null,null,null,"Ficha 12. Diseño, construcción, remodelación, demolición, mantenimiento preventivo, correctivo y"]
[null,null,null,null,"GET-AGL-P003 Acompañamiento al proceso de depuración e impulso de actuaciones administrativas en las alcaldías locales.","GET-AGL-P003 ",null,null,null,null,null,null,null,null,null,null,null,null,null,null,null,null,"Ficha 13. Contenedores para separación de residuos"]
[null,null,null,null,"GET-AGL-P004 Asistencia técnica a la inversión de los fondos de desarrollo local","GET-AGL-P004 ",null,null,null,null,null,null,null,null,null,null,null,null,null,null,null,null,"Ficha 14. Adquisición de llantas para vehículos automotores"]
[null,null,null,null,"ET-AGL-IN003 Instrucciones para el funcionamiento del consejo de alcaldes locales","ET-AGL-IN003 ",null,null,null,null,null,null,null,null,null,null,null,null,null,null,null,null,"Ficha 15. Compra de vehículos automotores"]
[null,null,null,null,"Relaciones Estratégicas",null,null,null,null,null,null,null,null,null,null,null,null,null,null,null,null,null,"Ficha 16. Compra de combustible"]
[null,null,null,null,"RES-P001 Procedimiento Gestión de Asuntos Electorales","RES-P001",null,null,null,null,null,null,null,null,null,null,null,null,null,null,null,null,"Ficha 17. Servicios integrales técnicos, operativos y logísticos para la realización de las acti"]
[null,null,null,null,"RES-P002 Procedimiento Estudio del Proyecto de Ley y/o Acto Legislativo del Congreso de la República.","RES-P002",null,null,null,null,null,null,null,null,null,null,null,null,null,null,null,null,"Ficha 18. Suministro de materiales de Oficina"]
[null,null,null,null,"RES-P003 Procedimiento para el Trámite de los Proyectos de Acuerdo","RES-P003",null,null,null,null,null,null,null,null,null,null,null,null,null,null,null,null,"Ficha 19. Compra de computadores, equipos de comunicación y periféricos"]
[null,null,null,null,"RES-P004 Procedimiento de gestión de iniciativas de control político - Concejo de Bogotá D.C.","RES-P004",null,null,null,null,null,null,null,null,null,null,null,null,null,null,null,null,"Ficha 20. Mantenimiento plantas eléctricas"]
[null,null,null,null,"RES-P005 Procedimiento Gestión de Iniciativas de Control Político del Congreso de la República.","RES-P005",null,null,null,null,null,null,null,null,null,null,null,null,null,null,null,null,"Ficha 21. Mantenimiento de ascensores"]
[null,null,null,null,"RES-IN001 Instrucciones para la preparación de debates de control político – Concejo de Bogotá D.C.","RES-IN001",null,null,null,null,null,null,null,null,null,null,null,null,null,null,null,null,"Ficha 22. Estudios técnicos ambientales"]
[null,null,null,null,"RES-IN002 Instrucciones para Generar Acciones de Fortalecimiento de las Relaciones Políticas con las Juntas Administradoras Loc.","RES-IN002",null,null,null,null,null,null,null,null,null,null,null,null,null,null,null,null,"Ficha 23. Servicio de catering"]
[null,null,null,null,"Convivencia y Dialogo Social",null,null,null,null,null,null,null,null,null,null,null,null,null,null,null,null,null,"Ficha 24. Servicio de vigilancia"]
[null,null,null,null,"DHH-CDS-M001 Manual Abordaje territorial","DHH-CDS-M001 ",null,null,null,null,null,null,null,null,null,null,null,null,null,null,null,null,"NO TIENE PROCEDIMIENTO"]
[null,null,null,null,"DHH-CDS-P001 Procedimiento Convivencia y Diálogo Social","DHH-CDS-P001 "]
[null,null,null,null,"DHH-CDS-IN001 Instrucciones para sensibilización y formación en prevención de conflictos y fortalecimiento de la convivencia","DHH-CDS-IN001"]
[null,null,null,null,"DHH-CDS-IN002 Instrucciones iniciativas ciudadanas","DHH-CDS-IN002"]
[null,null,null,null,"DHH-CDS-IN003 Instrucciones para pactos","DHH-CDS-IN003"]
[null,null,null,null,"Fomento y Protección de derechos humanos"]
[null,null,null,null,"DHH-FPD-M001 Manual del Sistema Distrital de Derechos Humanos","DHH-FPD-M001 "]
[null,null,null,null,"DHH-FPD-P001 Procedimiento para el diseño, implementación, evaluación, mejora y sostenibilidad del Sistema Distrital de Derechos","DHH-FPD-P001 "]
[null,null,null,null,"DHH-FPD-IN001Instrucciones para el centro de documentación en Derechos Humanos","DHH-FPD-IN001"]
[null,null,null,null,"DHH-FPD-IN002 Protocolo para formación en Derechos Humanos","DHH-FPD-IN002"]
[null,null,null,null,"DHH-FPD-IN008 Instrucciones para espacio de atención diferenciada - CONFIA- Centro de Orientación y Fortalecimiento Integral Afr","DHH-FPD-IN008"]
[null,null,null,null,"DHH-FPD-IN009 Instrucciones para espacio de atención diferenciada - Cada del pensamiento indígena","DHH-FPD-IN009"]
[null,null,null,null,"DHH-FPD-IN011 Protocolo para la atención Víctimas de Violencia(s) en Razón a su Orientación Sexual e Identidad de Género Casa Re","DHH-FPD-IN011"]
[null,null,null,null,"DHH-FPD-IN012 Protocolo para la atención y protección de defensoras y defensores","DHH-FPD-IN012"]
[null,null,null,null,"DHH-FPD-IN013 Protocolo para la Atención Interna de las Víctimas de Trata de Personas.","DHH-FPD-IN013"]
[null,null,null,null,"DHH-FPD-IN014 Instrucciones para Territorialización del Sistema Distrital de Derechos Humanos.","DHH-FPD-IN014"]
[null,null,null,null,"DHH-FPD-IN015 Instrucciones para la orientación a personas que no hacen parte de los grupos poblacionales atendidos en el marco","DHH-FPD-IN015"]
[null,null,null,null,"Gestión Jurídica"]
[null,null,null,null,"JR-P001 Procedimiento para la asesoría jurídica y representación administrativa, judicial y extrajudicial","JR-P001"]
[null,null,null,null,"GJR-P002 Procedimiento para la identificación, actualización, monitoreo y evaluación de requisitos legales","GJR-P002"]
[null,null,null,null,"Gestión Corporativa Institucional"]
[null,null,null,null,"GCO-GCI-M001 Manual de cajas menores","GCO-GCI-M001 "]
[null,null,null,null,"GCO-GCI-M002 Manual De Políticas de Operación Contable de la Secretaría Distrital de Gobierno y Fondos de Desarrollo Local","GCO-GCI-M002 "]
[null,null,null,null,"GCO-GCI-M003 Manual de contratación","GCO-GCI-M003 "]
[null,null,null,null,"GCO-GCI-M004 Manual de Supervisión e interventoría","GCO-GCI-M004 "]
[null,null,null,null,"GCO-GCI-M005 Manual de Buenas Prácticas en la Actividad Contractual","GCO-GCI-M005 "]
[null,null,null,null,"GCO-GCI-P001 Procedimiento para la adquisición y administración de bienes y servicios","GCO-GCI-P001 "]
[null,null,null,null,"GCO-GCI-P002 Procedimiento de ingresos y egresos de bienes muebles","GCO-GCI-P002 "]
[null,null,null,null,"GCO-GCI-IN001 guía de contratación sostenible","GCO-GCI-IN001"]
[null,null,null,null,"GCO-GCI-IN002 Instrucciones para la toma y/o verificación física y actualización de registros de los bienes de la Secretaría Dis","GCO-GCI-IN002"]
[null,null,null,null,"GCO-GCI-IN003 instrucciones contables","GCO-GCI-IN003"]
[null,null,null,null,"GCO-GCI-IN004 Instrucciones para la elaboración, programación, aprobación, ejecución, modificación y cierre presupuestal","GCO-GCI-IN004"]
[null,null,null,null," GCO-GCI-IN005 Instrucciones para la programación, reprogramación y liberación del PAC"," GCO-GCI-IN00"]
[null,null,null,null,"GCO-GCI-IN007 Instrucciones para la modalidad contratación directa","GCO-GCI-IN007"]
[null,null,null,null,"GCO-GCI-IN008 Instrucciones para el arrendamiento de inmuebles para sedes de la SDG","GCO-GCI-IN008"]
[null,null,null,null,"GCO-GCI-IN009 Instrucciones para la modalidad de selección licitación pública","GCO-GCI-IN009"]
[null,null,null,null,"GCO-GCI-IN010 Instrucciones para la modalidad de selección abreviada - subasta inversa","GCO-GCI-IN010"]
[null,null,null,null,"GCO-GCI-IN011 Instrucciones para la modalidad de selección concurso de méritos.","GCO-GCI-IN011"]
[null,null,null,null,"GCO-GCI-IN012 Instrucciones para la modalidad de selección abreviada - menor cuantía.","GCO-GCI-IN012"]
[null,null,null,null,"GCO-GCI-IN013 Instrucciones para la modalidad de selección modalidad Mínima Cuantía","GCO-GCI-IN013"]
[null,null,null,null,"GCO-GCI-IN014 Instrucciones para liquidación del contrato","GCO-GCI-IN014"]
[null,null,null,null,"GCO-GCI-IN015 Instrucciones para modificaciones contractuales.","GCO-GCI-IN015"]
[null,null,null,null,"GCO-GCI-IN018 instrucciones para el mantenimiento de la infraestructura física de la SDG.","GCO-GCI-IN018"]
[null,null,null,null,"GCO-GCI-IN019 Instrucciones de Pagos","GCO-GCI-IN019"]
[null,null,null,null,"GCO-GCI-IN020 Instrucciones para el pago de nómina y aportes patronales","GCO-GCI-IN020"]
[null,null,null,null,"GCO-GCI-IN021 Instrucciones Control Administrativo Edificio Liévano - Bicentenario","GCO-GCI-IN021"]
[null,null,null,null,"GCO-GCI-IN022 Instrucciones para traslado de elementos","GCO-GCI-IN022"]
[null,null,null,null,"GCO-GCI-IN023 Instrucciones para determinar, verificar y evaluar los componentes financieros y la capacidad organizacional","GCO-GCI-IN023"]
[null,null,null,null,"GCO-GCI-IN025 instrucciones para la depuración de pasivos exigibles","GCO-GCI-IN025"]
[null,null,null,null,"GCO-GCI-IN029 Instrucciones para el control del consumo de combustible de vehículos en el área rural y urbana, y el mantenimient","GCO-GCI-IN029"]
[null,null,null,null,"GCO-GCI-IN031 Instrucciones para la entrega de Bienes Muebles e inmuebles en Comodato","GCO-GCI-IN031"]
[null,null,null,null,"GCO-GCI-IN032 instrucciones para el procedimiento administrativo sancionatorio en materia contractual","GCO-GCI-IN032"]
[null,null,null,null,"GCO-GCI-IN033 Instrucciones para la solicitud del incentivo del uso de la bicicleta","GCO-GCI-IN033"]
[null,null,null,null,"GCO-GCI-IN034 Instrucciones para la solicitud de Acreditación de No Existencia o Insuficiencia de Personal","GCO-GCI-IN034"]
[null,null,null,null,"Ficha 1. Realización de exámenes periódicos ocupacionales para los funcionarios de la Secretaría"]
[null,null,null,null,"Ficha 2. Servicio de fotocopiado y/o mantenimiento de fotocopias"]
[null,null,null,null,"Ficha 3. Mantenimiento de vehículos"]
[null,null,null,null,"Ficha 4. Mantenimiento de aire acondicionado"]
[null,null,null,null,"Ficha 5. Actividades de fumigación"]
[null,null,null,null,"Ficha 6. Servicio integral de aseo y cafetería"]
[null,null,null,null,"Ficha 7. Mantenimiento preventivo y correctivo de equipos de cómputo y Sistema de alimentación"]
[null,null,null,null,"Ficha 8. Mantenimiento preventivo y correctivo de extintores"]
[null,null,null,null,"Ficha 9. Impresión de folletos y publicaciones."]
[null,null,null,null,"Ficha 10. Servicio de transporte"]
[null,null,null,null,"Ficha 11. Arrendamiento de inmuebles"]
[null,null,null,null,"Ficha 12. Diseño, construcción, remodelación, demolición, mantenimiento preventivo, correctivo y"]
[null,null,null,null,"Ficha 13. Contenedores para separación de residuos"]
[null,null,null,null,"Ficha 14. Adquisición de llantas para vehículos automotores"]
[null,null,null,null,"Ficha 15. Compra de vehículos automotores"]
[null,null,null,null,"Ficha 16. Compra de combustible"]
[null,null,null,null,"Ficha 17. Servicios integrales técnicos, operativos y logísticos para la realización de las acti"]
[null,null,null,null,"Ficha 18. Suministro de materiales de Oficina"]
[null,null,null,null,"Ficha 19. Compra de computadores, equipos de comunicación y periféricos"]
[null,null,null,null,"Ficha 20. Mantenimiento plantas eléctricas"]
[null,null,null,null,"Ficha 21. Mantenimiento de ascensores"]
[null,null,null,null,"Ficha 22. Estudios técnicos ambientales"]
[null,null,null,null,"Ficha 23. Servicio de catering"]
[null,null,null,null,"Ficha 24. Servicio de vigilancia"]
[null,null,null,null,"Gerencia del Talento Humano"]
[null,null,null,null,"GCO-GTH-P001 Procedimiento vinculación a la planta de personal","GCO-GTH-P001 "]
[null,null,null,null,"GCO-GTH-P002 Incapacidades y/o licencias médicas","GCO-GTH-P002 "]
[null,null,null,null,"GCO-GTH-P003 Procedimiento identificación de peligros, evaluación y valoración de los riesgos en el SGSST","GCO-GTH-P003 "]
[null,null,null,null,"GCO-GTH-P004 Procedimiento de prevención, preparación y respuesta ante emergencias que se presentan en la SDG","GCO-GTH-P004 "]
[null,null,null,null,"GCO-GTH-P005 Procedimiento para reporte e investigación de incidentes y accidentes de trabajo","GCO-GTH-P005 "]
[null,null,null,null,"GCO-GTH-P006 Procedimiento para la reubicación de servidores públicos.","GCO-GTH-P006 "]
[null,null,null,null,"GCO-GTH-P007 Procedimiento de Evaluación del Desempeño Laboral de Servidores de Carrera Administrativa y en Periodo de Prueba","GCO-GTH-P007 "]
[null,null,null,null,"GCO-GTH-P008 Procedimiento para la identificación y verificación al cumplimiento de requisitos legales en SST","GCO-GTH-P008 "]
[null,null,null,null,"GCO-GTH-P009 Procedimiento para el desarrollo de exámenes médicos ocupacionales","GCO-GTH-P009 "]
[null,null,null,null,"GCO-GTH-P010 Procedimiento Transitorio de Vinculación Virtual a la Planta de Personal","GCO-GTH-P010 "]
[null,null,null,null,"CO-GTH-IN001 Instrucciones para la provisión transitoria de empleos mediante el derecho preferencial a encargo.","CO-GTH-IN001 "]
[null,null,null,null,"GCO-GTH-IN002 Instrucciones para la inducción y reinducción","GCO-GTH-IN002"]
[null,null,null,null,"GCO-GTH-IN003 Instrucciones para Liquidación Nómina, Prestaciones Sociales y Aportes de Nómina","GCO-GTH-IN003"]
[null,null,null,null,"GCO-GTH-IN004 Instrucciones para el entrenamiento en puesto de trabajo","GCO-GTH-IN004"]
[null,null,null,null,"GCO-GTH-IN005 Instrucciones para la solicitud de permiso de estudio","GCO-GTH-IN005"]
[null,null,null,null,"GCO-GTH-IN006 Instrucciones para el descuento en nómina de días no laborados sin justa causa.","GCO-GTH-IN006"]
[null,null,null,null,"GCO-GTH-IN007 Instrucciones para la Expedición de las Certificaciones Laborales","GCO-GTH-IN007"]
[null,null,null,null,"GCO-GTH-IN010 Instrucciones novedades ante entidades de seguridad social","GCO-GTH-IN010"]
[null,null,null,null,"GCO-GTH-IN011 Instrucciones Para la Entrega de Puesto de Trabajo Servidor de Planta","GCO-GTH-IN011"]
[null,null,null,null,"GCO-GTH-IN014 Instrucciones para la Posesión de Jueces","GCO-GTH-IN014"]
[null,null,null,null,"GCO-GTHPL001 Plan Estratégico del Talento Humano -PETH","GCO-GTHPL001 "]
[null,null,null,null,"GCO-GTHPL002 Plan Anual de Vacantes","GCO-GTHPL002 "]
[null,null,null,null,"GCO-GTHPL003 Plan de Previsión de Recursos Humanos","GCO-GTHPL003 "]
[null,null,null,null,"GCO-GTHPL004 Plan Institucional de Capacitación","GCO-GTHPL004 "]
[null,null,null,null,"GCO-GTHPL005 Plan de Bienestar e Incentivos","GCO-GTHPL005 "]
[null,null,null,null,"GCO-GTHPL006 Plan del Sistema de Gestión de Seguridad y Salud en el Trabajo-SGSST","GCO-GTHPL006 "]
[null,null,null,null,"Control Disciplinario"]
[null,null,null,null,"Control Disciplinario Ordinario"]
[null,null,null,null,"Control Disciplinario Verbal"]
[null,null,null,null,"Segunda Instancia Proceso Disciplinario"]
[null,null,null,null,"Comunicación Estratégica"]
[null,null,null,null,"CES-M001 Manual de direccionamiento estratégico para las comunicaciones","CES-M001"]
[null,null,null,null,"CES-P001 Procedimiento para Comunicaciones Estratégicas Internas","CES-P001"]
[null,null,null,null,"CES-P002 Procedimiento para Comunicaciones Estratégicas Externas","CES-P002"]
[null,null,null,null,"CES-IN001 Instrucciones para la publicación y administración de contenidos en canales internos.","CES-IN001"]
[null,null,null,null,"CES-IN002 Instrucciones comunicaciones estratégicas externas","CES-IN002"]
[null,null,null,null,"CES-IN003 Instrucciones para la Participación Ciudadana por Medios Electrónicos","CES-IN003"]
[null,null,null,null,"Planeación Institucional"]
[null,null,null,null,"PLE-PIN-M001 Manual de gestión del riesgo","PLE-PIN-M001 "]
[null,null,null,null,"PLE-PIN-M002 Manual de planeación y medición institucional","PLE-PIN-M002 "]
[null,null,null,null,"PLE-PIN-M003 Manual de Elaboración y control de los documentos del sistema de gestión","PLE-PIN-M003 "]
[null,null,null,null,"PLE-PIN-M005 Plan Integral de Movilidad Sostenible - PIMS","PLE-PIN-M005 "]
[null,null,null,null,"PLE-PIN-M006 Metodología de seguimiento a proyectos de inversión","PLE-PIN-M006 "]
[null,null,null,null,"PLE-PIN-P001 Procedimiento para la identificación, evaluación y actualización de aspectos e impactos ambientales","PLE-PIN-P001 "]
[null,null,null,null,"PLE-PIN-P002 Procedimiento de identificación, evaluación y actualización de los requisitos legales ambientales y otros requisito","PLE-PIN-P002 "]
[null,null,null,null,"PLE-PIN-P003 Procedimiento de Control Operacional","PLE-PIN-P003 "]
[null,null,null,null,"PLE-PIN-P005 Procedimiento planeación de la gestión institucional","PLE-PIN-P005 "]
[null,null,null,null,"PLE-PIN-P006 Procedimiento de formación y toma de conciencia","PLE-PIN-P006 "]
[null,null,null,null,"PLE-PIN-P007 Procedimiento para la preparación, respuesta, reporte y desarrollo de investigaciones de emergencias ambientales","PLE-PIN-P007 "]
[null,null,null,null,"PLE-PIN-P008 Procedimiento formulación, programación y seguimiento a los proyectos de inversión","PLE-PIN-P008 "]
[null,null,null,null,"PLE-PIN-P009 Procedimiento para la adopción de la plataforma estratégica y el plan estratégico institucional","PLE-PIN-P009 "]
[null,null,null,null,"PLE-PIN-IN001 Instrucciones para la gestión integral de residuos aprovechables y no aprovechables","PLE-PIN-IN001"]
[null,null,null,null,"PLE-PIN-IN002 Instrucciones para la gestión integral de residuos peligrosos y manejo de sustancias peligrosas","PLE-PIN-IN002"]
[null,null,null,null,"PLE-PIN-IN003 Instrucciones para la gestión de residuos de manejo especial y diferencial","PLE-PIN-IN003"]
[null,null,null,null,"PLE-PIN-IN004 Instrucciones para para la evaluación, control y seguimiento de las condiciones de la calidad del aire y publicida","PLE-PIN-IN004"]
[null,null,null,null,"PLE-PIN-IN005 Instrucciones para el control del consumo de agua, energía, papel y combustible","PLE-PIN-IN005"]
[null,null,null,null,"PLE-PIN-IN006 Instrucciones para el desarrollo de inspecciones ambientales","PLE-PIN-IN006"]
[null,null,null,null,"PLE-PIN-IN007 Instrucciones para la expedición de viabilidad técnica","PLE-PIN-IN007"]
[null,null,null,null,"PLE-PIN-IN008 Instrucciones para la etapa de preinversión de los proyectos de inversión.","PLE-PIN-IN008"]
[null,null,null,null,"PLE-PIN-IN009 Instrucciones para la expedición del concepto de viabilidad","PLE-PIN-IN009"]
[null,null,null,null,"PLE-PIN-IN010 Instrucciones para la etapa de inversión, operación y seguimiento","PLE-PIN-IN010"]
[null,null,null,null,"PLE-PIN-IN011 Instrucciones para la formulación, programación y actualización del producto meta resultado - PMR","PLE-PIN-IN011"]
[null,null,null,null,"PLE-PIN-IN012 Instrucciones para estructurar y evaluar el plan anticorrupción y de atención al ciudadano","PLE-PIN-IN012"]
[null,null,null,null,"PLE-PIN-PL001 Plan Institucional de Gestión Ambiental","PLE-PIN-PL001"]
[null,null,null,null,"PLE-PIN-PL002 Plan de Emergencias Ambientales","PLE-PIN-PL002"]
[null,null,null,null,"PLE-PIN-PL004 Plan de Gestión Integral de Residuos Peligrosos","PLE-PIN-PL004"]
[null,null,null,null,"Planeación y Gestión Sectorial"]
[null,null,null,null,"PLE-PGS-P001 Procedimiento para la formulación, implementación y seguimiento de política pública.","PLE-PGS-P001 "]
[null,null,null,null,"PLE-PGS-IN001 Instrucciones Metodológicas para la Formulación del Plan Estratégico Sectorial","PLE-PGS-IN001"]
[null,null,null,null,"Gerencia de TIC"]
[null,null,null,null,"GDI-TIC-M002 Plan de contingencia informático","GDI-TIC-M002 "]
[null,null,null,null,"GDI-TIC-M004 Manual de Gestión de Seguridad","GDI-TIC-M004 "]
[null,null,null,null,"GDI-TIC-M005 Manual de soporte físico y lógico de la infraestructura tecnológica de la secretaría distrital de gobierno","GDI-TIC-M005 "]
[null,null,null,null,"GDI-TIC-M006 Manual De Política De Tecnología E Información (TI)","GDI-TIC-M006 "]
[null,null,null,null,"GDI-TIC-P001 Procedimiento para la gestión de servicios de tecnologías de la información y las comunicaciones.","GDI-TIC-P001 "]
[null,null,null,null,"GDI-TIC-P002 Procedimiento para la gestión de sistemas de información","GDI-TIC-P002 "]
[null,null,null,null,"DGI-TIC-P003 Procedimiento de gestión de niveles de servicios","DGI-TIC-P003 "]
[null,null,null,null,"GDI-TIC-IN001 Instrucciones para digitalización de firma mecánica","GDI-TIC-IN001"]
[null,null,null,null,"GDI-TIC-IN005 Instrucciones control de versiones y despliegue de sistemas de información","GDI-TIC-IN005"]
[null,null,null,null,"GDI-TIC-IN006 Instructivo Monitoreo de infraestructura de red de datos.","GDI-TIC-IN006"]
[null,null,null,null,"GDI-TIC-IN014 Instructivo para Administrador de la base de datos DBMS y la encriptación de claves","GDI-TIC-IN014"]
[null,null,null,null,"GDI-TIC-IN015 Instrucciones para la realización de copias de seguridad, pruebas de restauración y restauración de información cr","GDI-TIC-IN015"]
[null,null,null,null,"GDI-TIC-IN016 Instrucciones plan de pruebas","GDI-TIC-IN016"]
[null,null,null,null,"GDI-TIC-IN018 Instrucciones para protección de datos personales/propiedad del usuario","GDI-TIC-IN018"]
[null,null,null,null,"GDI-TIC-PL001 Plan Estratégico de las Tecnologías de Información (PETI)","GDI-TIC-PL001"]
[null,null,null,null,"GDI-TIC-PL002 Plan de Seguridad y Privacidad de la Información","GDI-TIC-PL002"]
[null,null,null,null,"GDI-TIC-PL003 Plan de Tratamiento de Riesgos de Seguridad y Privacidad de la Información","GDI-TIC-PL003"]
[null,null,null,null,"Gestión Patrimonio Documental"]
[null,null,null,null,"GDI-GPD-P002 Procedimiento de Planeación Documental","GDI-GPD-P002 "]
[null,null,null,null,"GDI-GPD-P003 Procedimiento de Producción Documental","GDI-GPD-P003 "]
[null,null,null,null,"GDI-GPD-P004 Procedimiento de Gestión y Trámite de documentos","GDI-GPD-P004 "]
[null,null,null,null,"GDI-GPD-P005 Procedimiento de Organización Documental","GDI-GPD-P005 "]
[null,null,null,null,"GDI-GPD-P006 Procedimiento de Transferencias Documentales","GDI-GPD-P006 "]
[null,null,null,null,"GDI-GPD-P007 Procedimiento Disposición de Documentos","GDI-GPD-P007 "]
[null,null,null,null,"GDI-GPD-P008 Procedimiento de Conservación Documental","GDI-GPD-P008 "]
[null,null,null,null,"GDI-GPD-P009 Procedimiento de Valoración de Documentos","GDI-GPD-P009 "]
[null,null,null,null,"GDI-GPD-P010 Procedimiento para Consulta, Préstamo y Devolución de Documentos y/o Expedientes en los Archivos de Gestión y Centr","GDI-GPD-P010 "]
[null,null,null,null,"GDI-GPD-IN002 Instrucciones para el trámite de radicación, digitalización y reparto de comunicaciones en el CDI","GDI-GPD-IN002"]
[null,null,null,null,"GDI-GPD-IN007 Instructivo para la Conformación, Manejo y Archivo del Expediente Único del Contrato","GDI-GPD-IN007"]
[null,null,null,null,"GDI-GPD-IN012 Instructivo para la pérdida y reconstrucción de documentos","GDI-GPD-IN012"]
[null,null,null,null,"GDI-GPD-IN014 Instrucciones para la elaboración e implementación de fichas de valoración documental y disposición final","GDI-GPD-IN014"]
[null,null,null,null,"GDI-GPD-IN016 Instrucciones para la elaboración de documentos organizacionales","GDI-GPD-IN016"]
[null,null,null,null,"GDI-GPD-IN017 Instrucciones de Foliación","GDI-GPD-IN017"]
[null,null,null,null,"GCO-GPD-PL001 Plan Institucional de Archivos - PINAR","GCO-GPD-PL001"]
[null,null,null,null,"Gestión del Conocimiento"]
[null,null,null,null,"GCN-M002 Manual para la gestión de planes de mejoramiento","GCN-M002"]
[null,null,null,null,"GCN-M003 Manual y/o Documento Técnico de Soporte del Observatorio de Asuntos Políticos","GCN-M003"]
[null,null,null,null,"GCN-M004 Manual y/o Documento Técnico de Soporte del Observatorio Gestión Pública Local y Participación","GCN-M004"]
[null,null,null,null,"GCN-P005 Generación, producción y cultura de compartir y difundir el conocimiento dentro de la entidad","GCN-P005"]
[null,null,null,null,"GCN-P006 Herramientas para uso y apropiación y analítica institucional","GCN-P006"]
[null,null,null,null,"GCN-IN002 Instrucciones para la producción y difusión del conocimiento","GCN-IN002"]
[null,null,null,null,"GCN-IN003 Instrucciones para la identificación y captura de buenas prácticas","GCN-IN003"]
[null,null,null,null,"GCN-IN004 Instrucciones para el trámite interno en la presentación de información a la Contraloría de Bogotá, D.C.","GCN-IN004"]
[null,null,null,null,"Evaluación Independiente"]
[null,null,null,null,"EIN-P001 Procedimiento Auditoría Interna de Gestión","EIN-P001"]
[null,null,null,null,"EIN-IN001 Estatuto de Auditoría Interna","EIN-IN001"]
[null,null,null,null,"EIN-IN002 Código de Ética de Auditores Internos","EIN-IN002"]
[null,null,null,null,"EIN-IN003 Instrucciones para la evaluación de la gestión por áreas o dependencias","EIN-IN003"]
[null,null,null,null,"Servicio a la Ciudadanía"]
[null,null,null,null,"SAC-M001 Manual de Atención a la Ciudadanía","SAC-M001"]
[null,null,null,null,"SAC-M002 Manual de Atención Incluyente","SAC-M002"]
[null,null,null,null,"SAC-P001 Procedimiento Trámite a los Requerimientos presentados por la Ciudadanía","SAC-P001"]
[null,null,null,null,"SAC-P002 Procedimiento recepción de documentos de identificación extraviados","SAC-P002"]
[null,null,null,null,"SAC-IN002 Instrucciones para la Expedición Certificado de Residencia","SAC-IN002"]
[null,null,null,null,"SAC-IN005 Instrucciones para la expedición certificado de propiedad horizontal, extinción de la propiedad","SAC-IN005"]
[null,null,null,null,null,{"$f":"MID(TDocRelacionados[[#This Row],[Nombre Procedimiento]],1,13)","v":""}]
[null,null,null,null,null,{"$f":"MID(TDocRelacionados[[#This Row],[Nombre Procedimiento]],1,13)","v":""}]
[null,null,null,null,null,{"$f":"MID(TDocRelacionados[[#This Row],[Nombre Procedimiento]],1,13)","v":""}]
[null,null,null,null,null,{"$f":"MID(TDocRelacionados[[#This Row],[Nombre Procedimiento]],1,13)","v":""}]
[null,null,null,null,null,{"$f":"MID(TDocRelacionados[[#This Row],[Nombre Procedimiento]],1,13)","v":""}]
[null,null,null,null,null,{"$f":"MID(TDocRelacionados[[#This Row],[Nombre Procedimiento]],1,13)","v":""}]
[null,null,null,null,null,{"$f":"MID(TDocRelacionados[[#This Row],[Nombre Procedimiento]],1,13)","v":""}]
[null,null,null,null,null,{"$f":"MID(TDocRelacionados[[#This Row],[Nombre Procedimiento]],1,13)","v":""}]
[null,null,null,null,null,{"$f":"MID(TDocRelacionados[[#This Row],[Nombre Procedimiento]],1,13)","v":""}]
[null,null,null,null,null,{"$f":"MID(TDocRelacionados[[#This Row],[Nombre Procedimiento]],1,13)","v":""}]
[null,null,null,null,null,{"$f":"MID(TDocRelacionados[[#This Row],[Nombre Procedimiento]],1,13)","v":""}]
[null,null,null,null,null,{"$f":"MID(TDocRelacionados[[#This Row],[Nombre Procedimiento]],1,13)","v":""}]
[null,null,null,null,null,{"$f":"MID(TDocRelacionados[[#This Row],[Nombre Procedimiento]],1,13)","v":""}]
[null,null,null,null,null,{"$f":"MID(TDocRelacionados[[#This Row],[Nombre Procedimiento]],1,13)","v":""}]
[null,null,null,null,null,{"$f":"MID(TDocRelacionados[[#This Row],[Nombre Procedimiento]],1,13)","v":""}]
[null,null,null,null,null,{"$f":"MID(TDocRelacionados[[#This Row],[Nombre Procedimiento]],1,13)","v":""}]
[null,null,null,null,null,{"$f":"MID(TDocRelacionados[[#This Row],[Nombre Procedimiento]],1,13)","v":""}]
[null,null,null,null,null,{"$f":"MID(TDocRelacionados[[#This Row],[Nombre Procedimiento]],1,13)","v":""}]
[null,null,null,null,null,{"$f":"MID(TDocRelacionados[[#This Row],[Nombre Procedimiento]],1,13)","v":""}]
[null,null,null,null,null,{"$f":"MID(TDocRelacionados[[#This Row],[Nombre Procedimiento]],1,13)","v":""}]
[null,null,null,null,null,{"$f":"MID(TDocRelacionados[[#This Row],[Nombre Procedimiento]],1,13)","v":""}]
[null,null,null,null,null,{"$f":"MID(TDocRelacionados[[#This Row],[Nombre Procedimiento]],1,13)","v":""}]
[null,null,null,null,null,{"$f":"MID(TDocRelacionados[[#This Row],[Nombre Procedimiento]],1,13)","v":""}]
[null,null,null,null,null,{"$f":"MID(TDocRelacionados[[#This Row],[Nombre Procedimiento]],1,13)","v":""}]
[null,null,null,null,null,{"$f":"MID(TDocRelacionados[[#This Row],[Nombre Procedimiento]],1,13)","v":""}]
[null,null,null,null,null,{"$f":"MID(TDocRelacionados[[#This Row],[Nombre Procedimiento]],1,13)","v":""}]
[null,null,null,null,null,{"$f":"MID(TDocRelacionados[[#This Row],[Nombre Procedimiento]],1,13)","v":""}]
[null,null,null,null,null,{"$f":"MID(TDocRelacionados[[#This Row],[Nombre Procedimiento]],1,13)","v":""}]
[null,null,null,null,null,{"$f":"MID(TDocRelacionados[[#This Row],[Nombre Procedimiento]],1,13)","v":""}]
[null,null,null,null,null,{"$f":"MID(TDocRelacionados[[#This Row],[Nombre Procedimiento]],1,13)","v":""}]
[null,null,null,null,null,{"$f":"MID(TDocRelacionados[[#This Row],[Nombre Procedimiento]],1,13)","v":""}]
[null,null,null,null,null,{"$f":"MID(TDocRelacionados[[#This Row],[Nombre Procedimiento]],1,13)","v":""}]
[null,null,null,null,null,{"$f":"MID(TDocRelacionados[[#This Row],[Nombre Procedimiento]],1,13)","v":""}]
[null,null,null,null,null,{"$f":"MID(TDocRelacionados[[#This Row],[Nombre Procedimiento]],1,13)","v":""}]
[null,null,null,null,null,{"$f":"MID(TDocRelacionados[[#This Row],[Nombre Procedimiento]],1,13)","v":""}]
[null,null,null,null,null,{"$f":"MID(TDocRelacionados[[#This Row],[Nombre Procedimiento]],1,13)","v":""}]
[null,null,null,null,null,{"$f":"MID(TDocRelacionados[[#This Row],[Nombre Procedimiento]],1,13)","v":""}]
[null,null,null,null,null,{"$f":"MID(TDocRelacionados[[#This Row],[Nombre Procedimiento]],1,13)","v":""}]
[null,null,null,null,null,{"$f":"MID(TDocRelacionados[[#This Row],[Nombre Procedimiento]],1,13)","v":""}]
[null,null,null,null,null,{"$f":"MID(TDocRelacionados[[#This Row],[Nombre Procedimiento]],1,13)","v":""}]
[null,null,null,null,null,{"$f":"MID(TDocRelacionados[[#This Row],[Nombre Procedimiento]],1,13)","v":""}]
[null,null,null,null,null,{"$f":"MID(TDocRelacionados[[#This Row],[Nombre Procedimiento]],1,13)","v":""}]
[null,null,null,null,null,{"$f":"MID(TDocRelacionados[[#This Row],[Nombre Procedimiento]],1,13)","v":""}]
[null,null,null,null,null,{"$f":"MID(TDocRelacionados[[#This Row],[Nombre Procedimiento]],1,13)","v":""}]
[null,null,null,null,null,{"$f":"MID(TDocRelacionados[[#This Row],[Nombre Procedimiento]],1,13)","v":""}]
[null,null,null,null,null,{"$f":"MID(TDocRelacionados[[#This Row],[Nombre Procedimiento]],1,13)","v":""}]
[null,null,null,null,null,{"$f":"MID(TDocRelacionados[[#This Row],[Nombre Procedimiento]],1,13)","v":""}]
[null,null,null,null,null,{"$f":"MID(TDocRelacionados[[#This Row],[Nombre Procedimiento]],1,13)","v":""}]
[null,null,null,null,null,{"$f":"MID(TDocRelacionados[[#This Row],[Nombre Procedimiento]],1,13)","v":""}]
[null,null,null,null,null,{"$f":"MID(TDocRelacionados[[#This Row],[Nombre Procedimiento]],1,13)","v":""}]
[null,null,null,null,null,{"$f":"MID(TDocRelacionados[[#This Row],[Nombre Procedimiento]],1,13)","v":""}]
[null,null,null,null,null,{"$f":"MID(TDocRelacionados[[#This Row],[Nombre Procedimiento]],1,13)","v":""}]
[null,null,null,null,null,{"$f":"MID(TDocRelacionados[[#This Row],[Nombre Procedimiento]],1,13)","v":""}]
[null,null,null,null,null,{"$f":"MID(TDocRelacionados[[#This Row],[Nombre Procedimiento]],1,13)","v":""}]
[null,null,null,null,null,{"$f":"MID(TDocRelacionados[[#This Row],[Nombre Procedimiento]],1,13)","v":""}]
[null,null,null,null,null,{"$f":"MID(TDocRelacionados[[#This Row],[Nombre Procedimiento]],1,13)","v":""}]
[null,null,null,null,null,{"$f":"MID(TDocRelacionados[[#This Row],[Nombre Procedimiento]],1,13)","v":""}]
[null,null,null,null,null,{"$f":"MID(TDocRelacionados[[#This Row],[Nombre Procedimiento]],1,13)","v":""}]
[null,null,null,null,null,{"$f":"MID(TDocRelacionados[[#This Row],[Nombre Procedimiento]],1,13)","v":""}]
[null,null,null,null,null,{"$f":"MID(TDocRelacionados[[#This Row],[Nombre Procedimiento]],1,13)","v":""}]
[null,null,null,null,null,{"$f":"MID(TDocRelacionados[[#This Row],[Nombre Procedimiento]],1,13)","v":""}]
[null,null,null,null,null,{"$f":"MID(TDocRelacionados[[#This Row],[Nombre Procedimiento]],1,13)","v":""}]
[null,null,null,null,null,{"$f":"MID(TDocRelacionados[[#This Row],[Nombre Procedimiento]],1,13)","v":""}]
[null,null,null,null,null,{"$f":"MID(TDocRelacionados[[#This Row],[Nombre Procedimiento]],1,13)","v":""}]
[null,null,null,null,null,{"$f":"MID(TDocRelacionados[[#This Row],[Nombre Procedimiento]],1,13)","v":""}]
[null,null,null,null,null,{"$f":"MID(TDocRelacionados[[#This Row],[Nombre Procedimiento]],1,13)","v":""}]
[null,null,null,null,null,{"$f":"MID(TDocRelacionados[[#This Row],[Nombre Procedimiento]],1,13)","v":""}]
[null,null,null,null,null,{"$f":"MID(TDocRelacionados[[#This Row],[Nombre Procedimiento]],1,13)","v":""}]
[null,null,null,null,null,{"$f":"MID(TDocRelacionados[[#This Row],[Nombre Procedimiento]],1,13)","v":""}]
[null,null,null,null,null,{"$f":"MID(TDocRelacionados[[#This Row],[Nombre Procedimiento]],1,13)","v":""}]
[null,null,null,null,null,{"$f":"MID(TDocRelacionados[[#This Row],[Nombre Procedimiento]],1,13)","v":""}]
[null,null,null,null,null,{"$f":"MID(TDocRelacionados[[#This Row],[Nombre Procedimiento]],1,13)","v":""}]
[null,null,null,null,null,{"$f":"MID(TDocRelacionados[[#This Row],[Nombre Procedimiento]],1,13)","v":""}]
[null,null,null,null,null,{"$f":"MID(TDocRelacionados[[#This Row],[Nombre Procedimiento]],1,13)","v":""}]
[null,null,null,null,null,{"$f":"MID(TDocRelacionados[[#This Row],[Nombre Procedimiento]],1,13)","v":""}]
[null,null,null,null,null,{"$f":"MID(TDocRelacionados[[#This Row],[Nombre Procedimiento]],1,13)","v":""}]
[null,null,null,null,null,{"$f":"MID(TDocRelacionados[[#This Row],[Nombre Procedimiento]],1,13)","v":""}]
[null,null,null,null,null,{"$f":"MID(TDocRelacionados[[#This Row],[Nombre Procedimiento]],1,13)","v":""}]
[null,null,null,null,null,{"$f":"MID(TDocRelacionados[[#This Row],[Nombre Procedimiento]],1,13)","v":""}]
[null,null,null,null,null,{"$f":"MID(TDocRelacionados[[#This Row],[Nombre Procedimiento]],1,13)","v":""}]
[null,null,null,null,null,{"$f":"MID(TDocRelacionados[[#This Row],[Nombre Procedimiento]],1,13)","v":""}]
[null,null,null,null,null,{"$f":"MID(TDocRelacionados[[#This Row],[Nombre Procedimiento]],1,13)","v":""}]
[null,null,null,null,null,{"$f":"MID(TDocRelacionados[[#This Row],[Nombre Procedimiento]],1,13)","v":""}]
[null,null,null,null,null,{"$f":"MID(TDocRelacionados[[#This Row],[Nombre Procedimiento]],1,13)","v":""}]
[null,null,null,null,null,{"$f":"MID(TDocRelacionados[[#This Row],[Nombre Procedimiento]],1,13)","v":""}]
[null,null,null,null,null,{"$f":"MID(TDocRelacionados[[#This Row],[Nombre Procedimiento]],1,13)","v":""}]
[null,null,null,null,null,{"$f":"MID(TDocRelacionados[[#This Row],[Nombre Procedimiento]],1,13)","v":""}]
[null,null,null,null,null,{"$f":"MID(TDocRelacionados[[#This Row],[Nombre Procedimiento]],1,13)","v":""}]
[null,null,null,null,null,{"$f":"MID(TDocRelacionados[[#This Row],[Nombre Procedimiento]],1,13)","v":""}]
[null,null,null,null,null,{"$f":"MID(TDocRelacionados[[#This Row],[Nombre Procedimiento]],1,13)","v":""}]
[null,null,null,null,null,{"$f":"MID(TDocRelacionados[[#This Row],[Nombre Procedimiento]],1,13)","v":""}]
[null,null,null,null,null,{"$f":"MID(TDocRelacionados[[#This Row],[Nombre Procedimiento]],1,13)","v":""}]
[null,null,null,null,null,{"$f":"MID(TDocRelacionados[[#This Row],[Nombre Procedimiento]],1,13)","v":""}]
[null,null,null,null,null,{"$f":"MID(TDocRelacionados[[#This Row],[Nombre Procedimiento]],1,13)","v":""}]
[null,null,null,null,null,{"$f":"MID(TDocRelacionados[[#This Row],[Nombre Procedimiento]],1,13)","v":""}]
[null,null,null,null,null,{"$f":"MID(TDocRelacionados[[#This Row],[Nombre Procedimiento]],1,13)","v":""}]
[null,null,null,null,null,{"$f":"MID(TDocRelacionados[[#This Row],[Nombre Procedimiento]],1,13)","v":""}]
[null,null,null,null,null,{"$f":"MID(TDocRelacionados[[#This Row],[Nombre Procedimiento]],1,13)","v":""}]
[null,null,null,null,null,{"$f":"MID(TDocRelacionados[[#This Row],[Nombre Procedimiento]],1,13)","v":""}]
[]
[]
[]
[]
[]
[]
[]
[]
[]
[]
[]
[]
[]
[]
[]
[]
[]
[]
[null,"FORMATOS",null,null,"VALORES DE LOS DATOS"]
[null,"Texto"]
[null,"Hojas de cálculo",null,null,"PRIMARIOS"]
[null,"Presentaciones",null,null,"Administrativo"]
[null,"Documentos gráficos",null,null,"Fiscal"]
[null,"Bases de datos",null,null,"Jurídico o Legal"]
[null,"Audio",null,null,"Contable"]
[null,"Video"]
[null,"Animación",null,null,"SECUNDARIOS"]
[null,"Compresión",null,null,"Histórico"]
[null,null,null,null,"Cultural"]
[null,null,null,null,"Científico"]

{"sheet":"Doc Relacionada","index":9,"n_rows":262,"n_cols":2,"rows_kept":262,"cut":false,"hidden":false,"merged":[]}
[null,"DOCUMENTACION RELACIONADA"]
[null,"Gestión Pública Territorial Local"]
[1,"GET-GPL-P001 Funcionamiento Consejo Local de Gobierno"]
[2," GET-GPL-P002 Elaboración, Aprobación y Seguimiento del Plan de Desarrollo Local"]
[3," GET-GPL-P004 Procedimiento para la Formulación y Seguimiento a los Proyectos de Inversión Local."]
[null,"Inspeccion Vigilancía y Control"]
[4,"GET-IVC-P001 Procedimiento radicación y reparto en el consejo de justicia"]
[5,"GET-IVC-P002 Procedimiento trámite, estudio, sustanciación e impulso"]
[6,"GET-IVC-P003 Procedimiento toma de decisión de asuntos de competencia del consejo de justicia"]
[7,"GET-IVC-P004 Procedimiento para las notificaciones el consejo de justicia"]
[8,"GET-IVC-P005 Procedimiento Verbal Abreviado Ley 1801 de 2016 para temáticas prioritarias."]
[9,"GET-IVC-P006 Procedimiento Verbal Inmediato Ley 1801 De 2016- Segunda Instancia - Para Temáticas Prioritarias."]
[10,"GET-IVC-P007 Procedimiento Gestión de Multas y Cobro Persuasivo"]
[11,"GET-IVC-P010 Sanción a las Violaciones de las Reglas de Convivencia- Procedimiento Ordinario"]
[12,"GET-IVC-P013 Sanción a las Violaciones de las Reglas de Convivencia - Procedimiento Sumario"]
[13,"GET-IVC-P015 Perturbación a la Posesión, por despojo, a la Mera Tenencia y al Ejercicio de Servidumbre"]
[14,"GET-IVC-P016 Amparo al Domicilio"]
[15,"GET-IVC-P025 Procedimiento verbal abreviado en caso de comportamientos contrarios a la convivencia. Ley 1801 de 2016"]
[16,"GET-IVC-P026 Procedimiento Verbal abreviado para la protección de bienes inmuebles. Ley 1801 de 2016"]
[17,"GET-IVC-P027 Procedimiento para resolver en segunda instancia"]
[18,"GET-IVC-P031 Procedimiento Sancionatorio para Establecimiento de Comercio – Ley 232 de 1995"]
[19,"GET-IVC-P032 Procedimiento Infracciones al Régimen de Obras y Urbanismo Decreto 01 de 1984"]
[20,"GET-IVC-P033 Procedimiento restitución del espacio público -decreto 01 de 1984"]
[21,"GET-IVC-P034 Procedimiento administrativo sancionatorio - ley 1437 de 2011 control de espacio público"]
[22,"GET-IVC-P035 Procedimiento Administrativo Sancionatorio - Ley 1437 de 2011 Control de Obras y Urbanismo"]
[23,"GET-IVC-P036 Procedimiento administrativo sancionatorio - ley 1437 de 2011 control de establecimientos comerciales"]
[24,"GET-IVC-P037 Procedimiento asignación y pago de delegados para sorteos, concursos y espectáculos públicos"]
[25,"GET-IVC-P038 Procedimiento autorización de actividades de aglomeración de público y habilitación de escenarios de las A. E."]
[26,"GET-IVC-P039 Procedimiento Autorización y seguimiento a concursos"]
[27,"GET-IVC-P040 Procedimiento Registro previo de Parques de Diversiones y Atracciones o Dispositivos de Entretenimiento"]
[28,"GET-IVC-P041 Procedimiento de Concepto Previo para los Juegos Localizados de Suerte y Azar"]
[29,"GET-IVC-P042 Procedimiento inspección vigilancia y control para establecimientos de comercio"]
[30,"GET-IVC-P043 Procedimiento inspección vigilancia y control para obras y urbanismo"]
[31,"GET-IVC-P044 Procedimiento para la inspección vigilancia y control en el espacio público"]
[32,"GET-IVC-P046 Procedimiento de control de tarifas en estacionamiento fuera de vía cuando se inicia de oficio"]
[33,"GET-IVC-P047 Procedimiento para la Inspección, Vigilancia y Control en Metrología Legal"]
[34,"GET-IVC-P048 Procedimiento para la expedición y/o suspensión del reconocimiento denominado \"sello seguro\""]
[35,"GET-IVC-P049 Procedimiento Verbal Abreviado por Imposición de Comparendo con Multa General Señalada"]
[36,"GET-IVC-P050 Procedimiento para la entrega de inmuebles expropiados"]
[37,"GET-IVC-P051 Procedimiento Segunda Instancia Autoridad Administrativa Especial de Policía"]
[38,"GET-IVC-P052 Procedimiento para la Autorización de Permiso de Ocupación"]
[39,"GET-IVC-P053 Procedimiento para la protección, promoción y garantía de los derechos de los consumidores"]
[40,"GET-IVC-P054 Procedimiento Verbal Abreviado – Priorización de comparendos objetados"]
[41,"GET-IVC-P055 Procedimiento verbal abreviado por multa conmutada, pronto pago y pago total"]
[null,"Acompañamiento a la gestión local"]
[42,"GET-AGL-P002 Seguimiento a las obligaciones por pagar de los FDL"]
[43,"GET-AGL-P003 Acompañamiento al proceso de depuración e impulso de actuaciones administrativas en las alcaldías locales."]
[44,"GET-AGL-P004 Asistencia técnica a la inversión de los fondos de desarrollo local"]
[45,"ET-AGL-IN003 Instrucciones para el funcionamiento del consejo de alcaldes locales"]
[null,"Relaciones Estratégicas"]
[46,"RES-P001 Procedimiento Gestión de Asuntos Electorales"]
[47,"RES-P002 Procedimiento Estudio del Proyecto de Ley y/o Acto Legislativo del Congreso de la República."]
[48,"RES-P003 Procedimiento para el Trámite de los Proyectos de Acuerdo"]
[49,"RES-P004 Procedimiento de gestión de iniciativas de control político - Concejo de Bogotá D.C."]
[50,"RES-P005 Procedimiento Gestión de Iniciativas de Control Político del Congreso de la República."]
[51,"RES-IN001 Instrucciones para la preparación de debates de control político – Concejo de Bogotá D.C."]
[52,"RES-IN002 Instrucciones para Generar Acciones de Fortalecimiento de las Relaciones Políticas con las Juntas Administradoras Loc."]
[null,"Convivencia y Dialogo Social"]
[53,"DHH-CDS-M001 Manual Abordaje territorial"]
[54,"DHH-CDS-P001 Procedimiento Convivencia y Diálogo Social"]
[55,"DHH-CDS-IN001 Instrucciones para sensibilización y formación en prevención de conflictos y fortalecimiento de la convivencia"]
[56,"DHH-CDS-IN002 Instrucciones iniciativas ciudadanas"]
[57,"DHH-CDS-IN003 Instrucciones para pactos"]
[null,"Fomento y Protección de derechos humanos"]
[58,"DHH-FPD-M001 Manual del Sistema Distrital de Derechos Humanos"]
[59,"DHH-FPD-P001 Procedimiento para el diseño, implementación, evaluación, mejora y sostenibilidad del Sistema Distrital de Derechos"]
[60,"DHH-FPD-IN001Instrucciones para el centro de documentación en Derechos Humanos"]
[61,"DHH-FPD-IN002 Protocolo para formación en Derechos Humanos"]
[62,"DHH-FPD-IN008 Instrucciones para espacio de atención diferenciada - CONFIA- Centro de Orientación y Fortalecimiento Integral Afr"]
[63,"DHH-FPD-IN009 Instrucciones para espacio de atención diferenciada - Cada del pensamiento indígena"]
[64,"DHH-FPD-IN011 Protocolo para la atención Víctimas de Violencia(s) en Razón a su Orientación Sexual e Identidad de Género Casa Re"]
[65,"DHH-FPD-IN012 Protocolo para la atención y protección de defensoras y defensores"]
[66,"DHH-FPD-IN013 Protocolo para la Atención Interna de las Víctimas de Trata de Personas."]
[67,"DHH-FPD-IN014 Instrucciones para Territorialización del Sistema Distrital de Derechos Humanos."]
[68,"DHH-FPD-IN015 Instrucciones para la orientación a personas que no hacen parte de los grupos poblacionales atendidos en el marco"]
[null,"Gestión Jurídica"]
[69,"JR-P001 Procedimiento para la asesoría jurídica y representación administrativa, judicial y extrajudicial"]
[70,"GJR-P002 Procedimiento para la identificación, actualización, monitoreo y evaluación de requisitos legales"]
[null,"Gestión Corporativa Institucional"]
[71,"GCO-GCI-M001 Manual de cajas menores"]
[72,"GCO-GCI-M002 Manual De Políticas de Operación Contable de la Secretaría Distrital de Gobierno y Fondos de Desarrollo Local"]
[73,"GCO-GCI-M003 Manual de contratación"]
[74,"GCO-GCI-M004 Manual de Supervisión e interventoría"]
[75,"GCO-GCI-M005 Manual de Buenas Prácticas en la Actividad Contractual"]
[76,"GCO-GCI-P001 Procedimiento para la adquisición y administración de bienes y servicios"]
[77,"GCO-GCI-P002 Procedimiento de ingresos y egresos de bienes muebles"]
[78,"GCO-GCI-IN001 guía de contratación sostenible"]
[79,"GCO-GCI-IN002 Instrucciones para la toma y/o verificación física y actualización de registros de los bienes de la Secretaría Dis"]
[80,"GCO-GCI-IN003 instrucciones contables"]
[81,"GCO-GCI-IN004 Instrucciones para la elaboración, programación, aprobación, ejecución, modificación y cierre presupuestal"]
[82," GCO-GCI-IN005 Instrucciones para la programación, reprogramación y liberación del PAC"]
[83,"GCO-GCI-IN007 Instrucciones para la modalidad contratación directa"]
[84,"GCO-GCI-IN008 Instrucciones para el arrendamiento de inmuebles para sedes de la SDG"]
[85,"GCO-GCI-IN009 Instrucciones para la modalidad de selección licitación pública"]
[86,"GCO-GCI-IN010 Instrucciones para la modalidad de selección abreviada - subasta inversa"]
[87,"GCO-GCI-IN011 Instrucciones para la modalidad de selección concurso de méritos."]
[88,"GCO-GCI-IN012 Instrucciones para la modalidad de selección abreviada - menor cuantía."]
[89,"GCO-GCI-IN013 Instrucciones para la modalidad de selección modalidad Mínima Cuantía"]
[90,"GCO-GCI-IN014 Instrucciones para liquidación del contrato"]
[91,"GCO-GCI-IN015 Instrucciones para modificaciones contractuales."]
[92,"GCO-GCI-IN018 instrucciones para el mantenimiento de la infraestructura física de la SDG."]
[93,"GCO-GCI-IN019 Instrucciones de Pagos"]
[94,"GCO-GCI-IN020 Instrucciones para el pago de nómina y aportes patronales"]
[95,"GCO-GCI-IN021 Instrucciones Control Administrativo Edificio Liévano - Bicentenario"]
[96,"GCO-GCI-IN022 Instrucciones para traslado de elementos"]
[97,"GCO-GCI-IN023 Instrucciones para determinar, verificar y evaluar los componentes financieros y la capacidad organizacional"]
[98,"GCO-GCI-IN025 instrucciones para la depuración de pasivos exigibles"]
[99,"GCO-GCI-IN029 Instrucciones para el control del consumo de combustible de vehículos en el área rural y urbana, y el mantenimient"]
[100,"GCO-GCI-IN031 Instrucciones para la entrega de Bienes Muebles e inmuebles en Comodato"]
[101,"GCO-GCI-IN032 instrucciones para el procedimiento administrativo sancionatorio en materia contractual"]
[102,"GCO-GCI-IN033 Instrucciones para la solicitud del incentivo del uso de la bicicleta"]
[103,"GCO-GCI-IN034 Instrucciones para la solicitud de Acreditación de No Existencia o Insuficiencia de Personal"]
[104,"Ficha 1. Realización de exámenes periódicos ocupacionales para los funcionarios de la Secretaría"]
[105,"Ficha 2. Servicio de fotocopiado y/o mantenimiento de fotocopias"]
[106,"Ficha 3. Mantenimiento de vehículos"]
[107,"Ficha 4. Mantenimiento de aire acondicionado"]
[108,"Ficha 5. Actividades de fumigación"]
[109,"Ficha 6. Servicio integral de aseo y cafetería"]
[110,"Ficha 7. Mantenimiento preventivo y correctivo de equipos de cómputo y Sistema de alimentación"]
[111,"Ficha 8. Mantenimiento preventivo y correctivo de extintores"]
[112,"Ficha 9. Impresión de folletos y publicaciones."]
[113,"Ficha 10. Servicio de transporte"]
[114,"Ficha 11. Arrendamiento de inmuebles"]
[115,"Ficha 12. Diseño, construcción, remodelación, demolición, mantenimiento preventivo, correctivo y"]
[116,"Ficha 13. Contenedores para separación de residuos"]
[117,"Ficha 14. Adquisición de llantas para vehículos automotores"]
[118,"Ficha 15. Compra de vehículos automotores"]
[119,"Ficha 16. Compra de combustible"]
[120,"Ficha 17. Servicios integrales técnicos, operativos y logísticos para la realización de las acti"]
[121,"Ficha 18. Suministro de materiales de Oficina"]
[122,"Ficha 19. Compra de computadores, equipos de comunicación y periféricos"]
[123,"Ficha 20. Mantenimiento plantas eléctricas"]
[124,"Ficha 21. Mantenimiento de ascensores"]
[125,"Ficha 22. Estudios técnicos ambientales"]
[126,"Ficha 23. Servicio de catering"]
[127,"Ficha 24. Servicio de vigilancia"]
[null,"Gerencia del Talento Humano"]
[128,"GCO-GTH-P001 Procedimiento vinculación a la planta de personal"]
[129,"GCO-GTH-P002 Incapacidades y/o licencias médicas"]
[130,"GCO-GTH-P003 Procedimiento identificación de peligros, evaluación y valoración de los riesgos en el SGSST"]
[131,"GCO-GTH-P004 Procedimiento de prevención, preparación y respuesta ante emergencias que se presentan en la SDG"]
[132,"GCO-GTH-P005 Procedimiento para reporte e investigación de incidentes y accidentes de trabajo"]
[133,"GCO-GTH-P006 Procedimiento para la reubicación de servidores públicos."]
[134,"GCO-GTH-P007 Procedimiento de Evaluación del Desempeño Laboral de Servidores de Carrera Administrativa y en Periodo de Prueba"]
[135,"GCO-GTH-P008 Procedimiento para la identificación y verificación al cumplimiento de requisitos legales en SST"]
[136,"GCO-GTH-P009 Procedimiento para el desarrollo de exámenes médicos ocupacionales"]
[137,"GCO-GTH-P010 Procedimiento Transitorio de Vinculación Virtual a la Planta de Personal"]
[138,"CO-GTH-IN001 Instrucciones para la provisión transitoria de empleos mediante el derecho preferencial a encargo."]
[139,"GCO-GTH-IN002 Instrucciones para la inducción y reinducción"]
[140,"GCO-GTH-IN003 Instrucciones para Liquidación Nómina, Prestaciones Sociales y Aportes de Nómina"]
[141,"GCO-GTH-IN004 Instrucciones para el entrenamiento en puesto de trabajo"]
[142,"GCO-GTH-IN005 Instrucciones para la solicitud de permiso de estudio"]
[143,"GCO-GTH-IN006 Instrucciones para el descuento en nómina de días no laborados sin justa causa."]
[144,"GCO-GTH-IN007 Instrucciones para la Expedición de las Certificaciones Laborales"]
[145,"GCO-GTH-IN010 Instrucciones novedades ante entidades de seguridad social"]
[146,"GCO-GTH-IN011 Instrucciones Para la Entrega de Puesto de Trabajo Servidor de Planta"]
[147,"GCO-GTH-IN014 Instrucciones para la Posesión de Jueces"]
[148,"GCO-GTHPL001 Plan Estratégico del Talento Humano -PETH"]
[149,"GCO-GTHPL002 Plan Anual de Vacantes"]
[150,"GCO-GTHPL003 Plan de Previsión de Recursos Humanos"]
[151,"GCO-GTHPL004 Plan Institucional de Capacitación"]
[152,"GCO-GTHPL005 Plan de Bienestar e Incentivos"]
[153,"GCO-GTHPL006 Plan del Sistema de Gestión de Seguridad y Salud en el Trabajo-SGSST"]
[null,"Control Disciplinario"]
[154,"Control Disciplinario Ordinario"]
[155,"Control Disciplinario Verbal"]
[156,"Segunda Instancia Proceso Disciplinario"]
[null,"Comunicación Estratégica"]
[157,"CES-M001 Manual de direccionamiento estratégico para las comunicaciones"]
[158,"CES-P001 Procedimiento para Comunicaciones Estratégicas Internas"]
[159,"CES-P002 Procedimiento para Comunicaciones Estratégicas Externas"]
[160,"CES-IN001 Instrucciones para la publicación y administración de contenidos en canales internos."]
[161,"CES-IN002 Instrucciones comunicaciones estratégicas externas"]
[162,"CES-IN003 Instrucciones para la Participación Ciudadana por Medios Electrónicos"]
[null,"Planeación Institucional"]
[163,"PLE-PIN-M001 Manual de gestión del riesgo"]
[164,"PLE-PIN-M002 Manual de planeación y medición institucional"]
[165,"PLE-PIN-M003 Manual de Elaboración y control de los documentos del sistema de gestión"]
[166,"PLE-PIN-M005 Plan Integral de Movilidad Sostenible - PIMS"]
[167,"PLE-PIN-M006 Metodología de seguimiento a proyectos de inversión"]
[168,"PLE-PIN-P001 Procedimiento para la identificación, evaluación y actualización de aspectos e impactos ambientales"]
[169,"PLE-PIN-P002 Procedimiento de identificación, evaluación y actualización de los requisitos legales ambientales y otros requisito"]
[170,"PLE-PIN-P003 Procedimiento de Control Operacional"]
[171,"PLE-PIN-P005 Procedimiento planeación de la gestión institucional"]
[172,"PLE-PIN-P006 Procedimiento de formación y toma de conciencia"]
[173,"PLE-PIN-P007 Procedimiento para la preparación, respuesta, reporte y desarrollo de investigaciones de emergencias ambientales"]
[174,"PLE-PIN-P008 Procedimiento formulación, programación y seguimiento a los proyectos de inversión"]
[175,"PLE-PIN-P009 Procedimiento para la adopción de la plataforma estratégica y el plan estratégico institucional"]
[176,"PLE-PIN-IN001 Instrucciones para la gestión integral de residuos aprovechables y no aprovechables"]
[177,"PLE-PIN-IN002 Instrucciones para la gestión integral de residuos peligrosos y manejo de sustancias peligrosas"]
[178,"PLE-PIN-IN003 Instrucciones para la gestión de residuos de manejo especial y diferencial"]
[179,"PLE-PIN-IN004 Instrucciones para para la evaluación, control y seguimiento de las condiciones de la calidad del aire y publicida"]
[180,"PLE-PIN-IN005 Instrucciones para el control del consumo de agua, energía, papel y combustible"]
[181,"PLE-PIN-IN006 Instrucciones para el desarrollo de inspecciones ambientales"]
[182,"PLE-PIN-IN007 Instrucciones para la expedición de viabilidad técnica"]
[183,"PLE-PIN-IN008 Instrucciones para la etapa de preinversión de los proyectos de inversión."]
[184,"PLE-PIN-IN009 Instrucciones para la expedición del concepto de viabilidad"]
[185,"PLE-PIN-IN010 Instrucciones para la etapa de inversión, operación y seguimiento"]
[186,"PLE-PIN-IN011 Instrucciones para la formulación, programación y actualización del producto meta resultado - PMR"]
[187,"PLE-PIN-IN012 Instrucciones para estructurar y evaluar el plan anticorrupción y de atención al ciudadano"]
[188,"PLE-PIN-PL001 Plan Institucional de Gestión Ambiental"]
[189,"PLE-PIN-PL002 Plan de Emergencias Ambientales"]
[190,"PLE-PIN-PL004 Plan de Gestión Integral de Residuos Peligrosos"]
[null,"Planeación y Gestión Sectorial"]
[191,"PLE-PGS-P001 Procedimiento para la formulación, implementación y seguimiento de política pública."]
[192,"PLE-PGS-IN001 Instrucciones Metodológicas para la Formulación del Plan Estratégico Sectorial"]
[null,"Gerencia de TIC"]
[193,"GDI-TIC-M002 Plan de contingencia informático"]
[194,"GDI-TIC-M004 Manual de Gestión de Seguridad"]
[195,"GDI-TIC-M005 Manual de soporte físico y lógico de la infraestructura tecnológica de la secretaría distrital de gobierno"]
[196,"GDI-TIC-M006 Manual De Política De Tecnología E Información (TI)"]
[197,"GDI-TIC-P001 Procedimiento para la gestión de servicios de tecnologías de la información y las comunicaciones."]
[198,"GDI-TIC-P002 Procedimiento para la gestión de sistemas de información"]
[199,"DGI-TIC-P003 Procedimiento de gestión de niveles de servicios"]
[200,"GDI-TIC-IN001 Instrucciones para digitalización de firma mecánica"]
[201,"GDI-TIC-IN005 Instrucciones control de versiones y despliegue de sistemas de información"]
[202,"GDI-TIC-IN006 Instructivo Monitoreo de infraestructura de red de datos."]
[203,"GDI-TIC-IN014 Instructivo para Administrador de la base de datos DBMS y la encriptación de claves"]
[204,"GDI-TIC-IN015 Instrucciones para la realización de copias de seguridad, pruebas de restauración y restauración de información cr"]
[205,"GDI-TIC-IN016 Instrucciones plan de pruebas"]
[206,"GDI-TIC-IN018 Instrucciones para protección de datos personales/propiedad del usuario"]
[207,"GDI-TIC-PL001 Plan Estratégico de las Tecnologías de Información (PETI)"]
[208,"GDI-TIC-PL002 Plan de Seguridad y Privacidad de la Información"]
[209,"GDI-TIC-PL003 Plan de Tratamiento de Riesgos de Seguridad y Privacidad de la Información"]
[null,"Gestión Patrimonio Documental"]
[210,"GDI-GPD-P002 Procedimiento de Planeación Documental"]
[211,"GDI-GPD-P003 Procedimiento de Producción Documental"]
[212,"GDI-GPD-P004 Procedimiento de Gestión y Trámite de documentos"]
[213,"GDI-GPD-P005 Procedimiento de Organización Documental"]
[214,"GDI-GPD-P006 Procedimiento de Transferencias Documentales"]
[215,"GDI-GPD-P007 Procedimiento Disposición de Documentos"]
[216,"GDI-GPD-P008 Procedimiento de Conservación Documental"]
[217,"GDI-GPD-P009 Procedimiento de Valoración de Documentos"]
[218,"GDI-GPD-P010 Procedimiento para Consulta, Préstamo y Devolución de Documentos y/o Expedientes en los Archivos de Gestión y Centr"]
[219,"GDI-GPD-IN002 Instrucciones para el trámite de radicación, digitalización y reparto de comunicaciones en el CDI"]
[220,"GDI-GPD-IN007 Instructivo para la Conformación, Manejo y Archivo del Expediente Único del Contrato"]
[221,"GDI-GPD-IN012 Instructivo para la pérdida y reconstrucción de documentos"]
[222,"GDI-GPD-IN014 Instrucciones para la elaboración e implementación de fichas de valoración documental y disposición final"]
[223,"GDI-GPD-IN016 Instrucciones para la elaboración de documentos organizacionales"]
[224,"GDI-GPD-IN017 Instrucciones de Foliación"]
[225,"GCO-GPD-PL001 Plan Institucional de Archivos - PINAR"]
[null,"Gestión del Conocimiento"]
[226,"GCN-M002 Manual para la gestión de planes de mejoramiento"]
[227,"GCN-M003 Manual y/o Documento Técnico de Soporte del Observatorio de Asuntos Políticos"]
[228,"GCN-M004 Manual y/o Documento Técnico de Soporte del Observatorio Gestión Pública Local y Participación"]
[229,"GCN-P005 Generación, producción y cultura de compartir y difundir el conocimiento dentro de la entidad"]
[230,"GCN-P006 Herramientas para uso y apropiación y analítica institucional"]
[231,"GCN-IN002 Instrucciones para la producción y difusión del conocimiento"]
[232,"GCN-IN003 Instrucciones para la identificación y captura de buenas prácticas"]
[233,"GCN-IN004 Instrucciones para el trámite interno en la presentación de información a la Contraloría de Bogotá, D.C."]
[null,"Evaluación Independiente"]
[234,"EIN-P001 Procedimiento Auditoría Interna de Gestión"]
[235,"EIN-IN001 Estatuto de Auditoría Interna"]
[236,"EIN-IN002 Código de Ética de Auditores Internos"]
[237,"EIN-IN003 Instrucciones para la evaluación de la gestión por áreas o dependencias"]
[null,"Servicio a la Ciudadanía"]
[238,"SAC-M001 Manual de Atención a la Ciudadanía"]
[239,"SAC-M002 Manual de Atención Incluyente"]
[240,"SAC-P001 Procedimiento Trámite a los Requerimientos presentados por la Ciudadanía"]
[241,"SAC-P002 Procedimiento recepción de documentos de identificación extraviados"]
[242,"SAC-IN002 Instrucciones para la Expedición Certificado de Residencia"]
[243,"SAC-IN005 Instrucciones para la expedición certificado de propiedad horizontal, extinción de la propiedad"]